"SERVICE_CODE","ORGANISATION_UNIT","EXPENDITURE_CATEGORY","EXPENDITURE_DESCRIPTION","EXPENDITURE_CODE","NARRATIVE","DATE","TRANSATION_CODE","NET_AMOUNT","SUPPLIER_CODE","SUPPLIER_NAME","FROM_DATE","TO_DATE","FINANCIAL_PERIOD_YEAR"
"P&V","NORTH AREA RANGERS","EMPLOYEES","APPOINTMENT EXPENSES","1301","P119265-SERVICE-Rangers Recruitment",13/9/2022 00:00:00,"266872",407.55,"SA0133","SOWERBY ADVERTISING AND COMMUNICATIONS",29/8/2022 00:00:00,25/9/2022 00:00:00,"P06-2023"
"P&V","SOUTH AREA RANGERS","EMPLOYEES","APPOINTMENT EXPENSES","1301","P119265-SERVICE-Rangers Recruitment",13/9/2022 00:00:00,"266872",407.55,"SA0133","SOWERBY ADVERTISING AND COMMUNICATIONS",29/8/2022 00:00:00,25/9/2022 00:00:00,"P06-2023"
"P&V","POLICY & PERFORMANCE (L&E)","EMPLOYEES","APPOINTMENT EXPENSES","1301","P119222-SERVICE-Placement fee for Procurement officer",6/9/2022 00:00:00,"266468",4850,"RE0011","REED EMPLOYMENT PLC",29/8/2022 00:00:00,25/9/2022 00:00:00,"P06-2023"
"R&B","HUMAN RESOURCES","EMPLOYEES","TRAINING EXPENSES","1305","BUSOLA DRIVING LICENCE CHECK",7/9/2022 00:00:00,"266751",6.25,"FI0288","FIRST ADVANTAGE EUROPE LTD",29/8/2022 00:00:00,25/9/2022 00:00:00,"P06-2023"
"P&V","MYDDELTON HOUSE GARDENS","EMPLOYEES","TRAINING EXPENSES","1305","P119096-SERVICE-Gary Povey",14/9/2022 00:00:00,"266444",165,"WR0023","WRITTLE UNIVERSITY COLLEGE",29/8/2022 00:00:00,25/9/2022 00:00:00,"P06-2023"
"P&V","NORTH AREA RANGERS","EMPLOYEES","TRAINING EXPENSES","1305","P118862-SERVICE-Pesticide Training",25/9/2022 00:00:00,"267302",1205,"SA0137","SAFFRON WALDEN AGRICULTURAL TRAINING GROUP",29/8/2022 00:00:00,25/9/2022 00:00:00,"P06-2023"
"P&V","SOUTH AREA RANGERS","EMPLOYEES","TRAINING EXPENSES","1305","P118862-SERVICE-Pesticide Training",25/9/2022 00:00:00,"267302",1205,"SA0137","SAFFRON WALDEN AGRICULTURAL TRAINING GROUP",29/8/2022 00:00:00,25/9/2022 00:00:00,"P06-2023"
"R&B","NON DISTRIBUTED COSTS","EMPLOYEES","SUPERANNUATION ADDED YEARS","1310","LONDON PENSIONS FUND AUTHORITY",6/9/2022 00:00:00,"266516",5575.02,"LO0031","LONDON PENSIONS FUND AUTHORITY",29/8/2022 00:00:00,25/9/2022 00:00:00,"P06-2023"
"P&V","NORTH AREA RANGERS","EMPLOYEES","CRB CHECKS","1330","ADMIN FEE",6/9/2022 00:00:00,"266731",57,"DD0119","DUE DILIGENCE CHECKING LIMITED",29/8/2022 00:00:00,25/9/2022 00:00:00,"P06-2023"
"P&V","NORTH AREA RANGERS","EMPLOYEES","CRB CHECKS","1330","DBS CHECKS",6/9/2022 00:00:00,"266731",27,"DD0119","DUE DILIGENCE CHECKING LIMITED",29/8/2022 00:00:00,25/9/2022 00:00:00,"P06-2023"
"P&V","SOUTH AREA RANGERS","EMPLOYEES","CRB CHECKS","1330","ADMIN FEE",6/9/2022 00:00:00,"266731",57,"DD0119","DUE DILIGENCE CHECKING LIMITED",29/8/2022 00:00:00,25/9/2022 00:00:00,"P06-2023"
"P&V","SOUTH AREA RANGERS","EMPLOYEES","CRB CHECKS","1330","DBS CHECKS",6/9/2022 00:00:00,"266731",27,"DD0119","DUE DILIGENCE CHECKING LIMITED",29/8/2022 00:00:00,25/9/2022 00:00:00,"P06-2023"
"R&B","CORPORATE TRAINING","EMPLOYEES","APPRENTICE LEVY","1390","PAYE",12/9/2022 00:00:00,"266761",770,"HM0368","HMRC",29/8/2022 00:00:00,25/9/2022 00:00:00,"P06-2023"
"CEO","LVLC SERVICE CHARGE","PREMISES RELATED EXPENDITURE","SCHEDULED GROUND MAINTENANCE","2111","GLENDALE GROUNDS MANAGEMENT LI",7/9/2022 00:00:00,"266750",108.26,"GL0214","GLENDALE GROUNDS MANAGEMENT LIMITED",29/8/2022 00:00:00,25/9/2022 00:00:00,"P06-2023"
"CEO","LVLC SERVICE CHARGE","PREMISES RELATED EXPENDITURE","SCHEDULED GROUND MAINTENANCE","2111","GLENDALE GROUNDS MANAGEMENT LI",7/9/2022 00:00:00,"266750",2968.25,"GL0214","GLENDALE GROUNDS MANAGEMENT LIMITED",29/8/2022 00:00:00,25/9/2022 00:00:00,"P06-2023"
,"LEE VALLEY MARINA SPRINGFIELD","PREMISES RELATED EXPENDITURE","UNSCHEDULED GROUND MAINTENANCE","2112","P119224-SERVICE-To make safe willow tree by water point",6/9/2022 00:00:00,"266655",295,"PA0222","PARKIN & PARKER TREE SPECIALISTS",29/8/2022 00:00:00,25/9/2022 00:00:00,"P06-2023"
"P&V","MYDDELTON HOUSE","PREMISES RELATED EXPENDITURE","CONTRACT CLEANING","2120","P117626-SERVICE-Contract Cleaning",25/9/2022 00:00:00,"267280",1991.01,"BR0632","BRITANNIA SERVICES GROUP LTD",29/8/2022 00:00:00,25/9/2022 00:00:00,"P06-2023"
,"LEE VALLEY WATERWORKS CENTRE","PREMISES RELATED EXPENDITURE","CONTRACT CLEANING","2120","P118242-SERVICE-Cleaning WaterWorks Centre",25/9/2022 00:00:00,"267281",758.4,"BR0632","BRITANNIA SERVICES GROUP LTD",29/8/2022 00:00:00,25/9/2022 00:00:00,"P06-2023"
,"LEE VALLEY CAMPSITE","PREMISES RELATED EXPENDITURE","CONTRACT CLEANING","2120","P119313-SERVICE-daily clean  showers toilet blocks 168 hrs",12/9/2022 00:00:00,"266669",2344,"LI0305","LIMPIAR CLEANING",29/8/2022 00:00:00,25/9/2022 00:00:00,"P06-2023"
,"LEE VALLEY CAMPSITE","PREMISES RELATED EXPENDITURE","CONTRACT CLEANING","2120","P119313-SERVICE-123 cabins 62 hours",12/9/2022 00:00:00,"266669",865,"LI0305","LIMPIAR CLEANING",29/8/2022 00:00:00,25/9/2022 00:00:00,"P06-2023"
,"LEE VALLEY CAMPSITE","PREMISES RELATED EXPENDITURE","CONTRACT CLEANING","2120","P119313-SERVICE-95 Cocoons 33 hours",12/9/2022 00:00:00,"266669",460,"LI0305","LIMPIAR CLEANING",29/8/2022 00:00:00,25/9/2022 00:00:00,"P06-2023"
,"LEE VALLEY CAMPSITE","PREMISES RELATED EXPENDITURE","CONTRACT CLEANING","2120","P119313-SERVICE-17 Peakys 51 hours",12/9/2022 00:00:00,"266669",711,"LI0305","LIMPIAR CLEANING",29/8/2022 00:00:00,25/9/2022 00:00:00,"P06-2023"
,"LEE VALLEY CAMPSITE","PREMISES RELATED EXPENDITURE","CONTRACT CLEANING","2120","P119313-SERVICE-Stirling 2 cleans 6 hours",12/9/2022 00:00:00,"266669",84,"LI0305","LIMPIAR CLEANING",29/8/2022 00:00:00,25/9/2022 00:00:00,"P06-2023"
,"LEE VALLEY CAMPSITE","PREMISES RELATED EXPENDITURE","CONTRACT CLEANING","2120","P118742-SERVICE-26/09/22 - 25/10/22",20/9/2022 00:00:00,"266757",88.25,"IN0012","INITIAL WASHROOM HYGIENE",29/8/2022 00:00:00,25/9/2022 00:00:00,"P06-2023"
,"LEE VALLEY CAMPSITE","PREMISES RELATED EXPENDITURE","CONTRACT CLEANING","2120","P119419-SERVICE-soap dispenser refills x12",20/9/2022 00:00:00,"267061",50.1,"IN0012","INITIAL WASHROOM HYGIENE",29/8/2022 00:00:00,25/9/2022 00:00:00,"P06-2023"
,"LEE VALLEY CARAVAN PARK","PREMISES RELATED EXPENDITURE","CONTRACT CLEANING","2120","P119246-SERVICE-Cleaning of rental units",6/9/2022 00:00:00,"266670",3376,"LI0305","LIMPIAR CLEANING",29/8/2022 00:00:00,25/9/2022 00:00:00,"P06-2023"
,"LEE VALLEY CARAVAN PARK","PREMISES RELATED EXPENDITURE","CONTRACT CLEANING","2120","P119421-SERVICE-Washroom hygiene",21/9/2022 00:00:00,"267095",93.28,"IN0012","INITIAL WASHROOM HYGIENE",29/8/2022 00:00:00,25/9/2022 00:00:00,"P06-2023"
"P&V","NORTH AREA RANGERS","PREMISES RELATED EXPENDITURE","CONTRACT CLEANING","2120","GLENDALE GROUNDS MANAGEMENT LI",7/9/2022 00:00:00,"266750",395.98,"GL0214","GLENDALE GROUNDS MANAGEMENT LIMITED",29/8/2022 00:00:00,25/9/2022 00:00:00,"P06-2023"
"P&V","GUNPOWDER PARK","PREMISES RELATED EXPENDITURE","CONTRACT CLEANING","2120","GLENDALE GROUNDS MANAGEMENT LI",7/9/2022 00:00:00,"266750",542.17,"GL0214","GLENDALE GROUNDS MANAGEMENT LIMITED",29/8/2022 00:00:00,25/9/2022 00:00:00,"P06-2023"
"P&V","RIVER LEE COUNTRY PARK","PREMISES RELATED EXPENDITURE","CONTRACT CLEANING","2120","GLENDALE GROUNDS MANAGEMENT LI",7/9/2022 00:00:00,"266750",1084.34,"GL0214","GLENDALE GROUNDS MANAGEMENT LIMITED",29/8/2022 00:00:00,25/9/2022 00:00:00,"P06-2023"
,"LV LEISURE CENTRE CAMPSITE","PREMISES RELATED EXPENDITURE","CONTRACT CLEANING","2120","P119264-SERVICE-monthly cleaning",12/9/2022 00:00:00,"266668",3014,"LI0305","LIMPIAR CLEANING",29/8/2022 00:00:00,25/9/2022 00:00:00,"P06-2023"
,"LV LEISURE CENTRE CAMPSITE","PREMISES RELATED EXPENDITURE","CONTRACT CLEANING","2120","P119489-SERVICE-Sanitary disposal waste",25/9/2022 00:00:00,"266909",147.33,"PE0015","PHS GROUP PLC",29/8/2022 00:00:00,25/9/2022 00:00:00,"P06-2023"
"P&V","MYDDLETON HSE HERITAGE CENTRE","PREMISES RELATED EXPENDITURE","CLEANING CONTRACT","2121","P118226-SERVICE-Cleaning Bowles Tea Room (Visitor Centre)",25/9/2022 00:00:00,"267279",778.44,"BR0632","BRITANNIA SERVICES GROUP LTD",29/8/2022 00:00:00,25/9/2022 00:00:00,"P06-2023"
,"LEE VALLEY CAMPSITE","PREMISES RELATED EXPENDITURE","LINEN SERVICE","2122","P119227-SERVICE-23x double duvet covers",6/9/2022 00:00:00,"266440",53.31,"JO0168","JOHNSONS STALBRIDGE LINEN SERVICES",29/8/2022 00:00:00,25/9/2022 00:00:00,"P06-2023"
,"LEE VALLEY CAMPSITE","PREMISES RELATED EXPENDITURE","LINEN SERVICE","2122","P119227-SERVICE-20x single duvet covers",6/9/2022 00:00:00,"266440",42.16,"JO0168","JOHNSONS STALBRIDGE LINEN SERVICES",29/8/2022 00:00:00,25/9/2022 00:00:00,"P06-2023"
,"LEE VALLEY CAMPSITE","PREMISES RELATED EXPENDITURE","LINEN SERVICE","2122","P119227-SERVICE-60x hand towels",6/9/2022 00:00:00,"266440",33.76,"JO0168","JOHNSONS STALBRIDGE LINEN SERVICES",29/8/2022 00:00:00,25/9/2022 00:00:00,"P06-2023"
,"LEE VALLEY CAMPSITE","PREMISES RELATED EXPENDITURE","LINEN SERVICE","2122","P119227-SERVICE-120x pillowcases",6/9/2022 00:00:00,"266440",57.6,"JO0168","JOHNSONS STALBRIDGE LINEN SERVICES",29/8/2022 00:00:00,25/9/2022 00:00:00,"P06-2023"
,"LEE VALLEY CAMPSITE","PREMISES RELATED EXPENDITURE","LINEN SERVICE","2122","P119227-SERVICE-26x double sheets",6/9/2022 00:00:00,"266440",24.55,"JO0168","JOHNSONS STALBRIDGE LINEN SERVICES",29/8/2022 00:00:00,25/9/2022 00:00:00,"P06-2023"
,"LEE VALLEY CAMPSITE","PREMISES RELATED EXPENDITURE","LINEN SERVICE","2122","P119227-SERVICE-20x single sheets",6/9/2022 00:00:00,"266440",17.4,"JO0168","JOHNSONS STALBRIDGE LINEN SERVICES",29/8/2022 00:00:00,25/9/2022 00:00:00,"P06-2023"
,"LEE VALLEY CAMPSITE","PREMISES RELATED EXPENDITURE","LINEN SERVICE","2122","P119227-SERVICE-60x bathsheets",6/9/2022 00:00:00,"266440",54.88,"JO0168","JOHNSONS STALBRIDGE LINEN SERVICES",29/8/2022 00:00:00,25/9/2022 00:00:00,"P06-2023"
,"LEE VALLEY CAMPSITE","PREMISES RELATED EXPENDITURE","LINEN SERVICE","2122","P119227-SERVICE-28 x bathmats",6/9/2022 00:00:00,"266440",19.96,"JO0168","JOHNSONS STALBRIDGE LINEN SERVICES",29/8/2022 00:00:00,25/9/2022 00:00:00,"P06-2023"
,"LEE VALLEY MARINA STANSTEAD","PREMISES RELATED EXPENDITURE","GM MAIN CONTRACT SCHEDULED","2141","GLENDALE GROUNDS MANAGEMENT LI",7/9/2022 00:00:00,"266750",633.4,"GL0214","GLENDALE GROUNDS MANAGEMENT LIMITED",29/8/2022 00:00:00,25/9/2022 00:00:00,"P06-2023"
,"LEE VALLEY WATERWORKS CENTRE","PREMISES RELATED EXPENDITURE","GM MAIN CONTRACT SCHEDULED","2141","GLENDALE GROUNDS MANAGEMENT LI",7/9/2022 00:00:00,"266750",595.05,"GL0214","GLENDALE GROUNDS MANAGEMENT LIMITED",29/8/2022 00:00:00,25/9/2022 00:00:00,"P06-2023"
,"LEE VALLEY WATERWORKS CENTRE","PREMISES RELATED EXPENDITURE","GM MAIN CONTRACT SCHEDULED","2141","GLENDALE GROUNDS MANAGEMENT LI",7/9/2022 00:00:00,"266750",260.88,"GL0214","GLENDALE GROUNDS MANAGEMENT LIMITED",29/8/2022 00:00:00,25/9/2022 00:00:00,"P06-2023"
,"LEE VALLEY FARM HAYES HILL","PREMISES RELATED EXPENDITURE","GM MAIN CONTRACT SCHEDULED","2141","GLENDALE GROUNDS MANAGEMENT LI",7/9/2022 00:00:00,"266750",306,"GL0214","GLENDALE GROUNDS MANAGEMENT LIMITED",29/8/2022 00:00:00,25/9/2022 00:00:00,"P06-2023"
"P&V","EAST INDIA DOCK AND BOW CREEK","PREMISES RELATED EXPENDITURE","GM MAIN CONTRACT SCHEDULED","2141","GLENDALE GROUNDS MANAGEMENT LI",7/9/2022 00:00:00,"266750",931.76,"GL0214","GLENDALE GROUNDS MANAGEMENT LIMITED",29/8/2022 00:00:00,25/9/2022 00:00:00,"P06-2023"
"P&V","EAST INDIA DOCK AND BOW CREEK","PREMISES RELATED EXPENDITURE","GM MAIN CONTRACT SCHEDULED","2141","GLENDALE GROUNDS MANAGEMENT LI",7/9/2022 00:00:00,"266750",834.36,"GL0214","GLENDALE GROUNDS MANAGEMENT LIMITED",29/8/2022 00:00:00,25/9/2022 00:00:00,"P06-2023"
"P&V","NORTH AREA RANGERS","PREMISES RELATED EXPENDITURE","GM MAIN CONTRACT SCHEDULED","2141","GLENDALE GROUNDS MANAGEMENT LI",7/9/2022 00:00:00,"266750",5610.98,"GL0214","GLENDALE GROUNDS MANAGEMENT LIMITED",29/8/2022 00:00:00,25/9/2022 00:00:00,"P06-2023"
"P&V","SOUTH AREA RANGERS","PREMISES RELATED EXPENDITURE","GM MAIN CONTRACT SCHEDULED","2141","GLENDALE GROUNDS MANAGEMENT LI",7/9/2022 00:00:00,"266750",745.41,"GL0214","GLENDALE GROUNDS MANAGEMENT LIMITED",29/8/2022 00:00:00,25/9/2022 00:00:00,"P06-2023"
"P&V","SOUTH AREA RANGERS","PREMISES RELATED EXPENDITURE","GM MAIN CONTRACT SCHEDULED","2141","GLENDALE GROUNDS MANAGEMENT LI",7/9/2022 00:00:00,"266750",6408.88,"GL0214","GLENDALE GROUNDS MANAGEMENT LIMITED",29/8/2022 00:00:00,25/9/2022 00:00:00,"P06-2023"
"P&V","ABBEY GARDENS","PREMISES RELATED EXPENDITURE","GM MAIN CONTRACT SCHEDULED","2141","GLENDALE GROUNDS MANAGEMENT LI",7/9/2022 00:00:00,"266750",2842.32,"GL0214","GLENDALE GROUNDS MANAGEMENT LIMITED",29/8/2022 00:00:00,25/9/2022 00:00:00,"P06-2023"
"P&V","GUNPOWDER PARK","PREMISES RELATED EXPENDITURE","GM MAIN CONTRACT SCHEDULED","2141","GLENDALE GROUNDS MANAGEMENT LI",7/9/2022 00:00:00,"266750",2798.45,"GL0214","GLENDALE GROUNDS MANAGEMENT LIMITED",29/8/2022 00:00:00,25/9/2022 00:00:00,"P06-2023"
"P&V","RIVER LEE COUNTRY PARK","PREMISES RELATED EXPENDITURE","GM MAIN CONTRACT SCHEDULED","2141","GLENDALE GROUNDS MANAGEMENT LI",7/9/2022 00:00:00,"266750",16359.56,"GL0214","GLENDALE GROUNDS MANAGEMENT LIMITED",29/8/2022 00:00:00,25/9/2022 00:00:00,"P06-2023"
"P&V","RIVER LEE COUNTRY PARK","PREMISES RELATED EXPENDITURE","GM MAIN CONTRACT SCHEDULED","2141","GLENDALE GROUNDS MANAGEMENT LI",7/9/2022 00:00:00,"266750",2608.92,"GL0214","GLENDALE GROUNDS MANAGEMENT LIMITED",29/8/2022 00:00:00,25/9/2022 00:00:00,"P06-2023"
,"LEE VALLEY VELOPARK","PREMISES RELATED EXPENDITURE","GM MAIN CONTRACT SCHEDULED","2141","GLENDALE GROUNDS MANAGEMENT LI",7/9/2022 00:00:00,"266750",7087.23,"GL0214","GLENDALE GROUNDS MANAGEMENT LIMITED",29/8/2022 00:00:00,25/9/2022 00:00:00,"P06-2023"
,"LV HOCKEY AND TENNIS CENTRE","PREMISES RELATED EXPENDITURE","GM MAIN CONTRACT SCHEDULED","2141","GLENDALE GROUNDS MANAGEMENT LI",7/9/2022 00:00:00,"266750",4358.07,"GL0214","GLENDALE GROUNDS MANAGEMENT LIMITED",29/8/2022 00:00:00,25/9/2022 00:00:00,"P06-2023"
"P&V","THREE MILLS","PREMISES RELATED EXPENDITURE","GM MAIN CONTRACT SCHEDULED","2141","GLENDALE GROUNDS MANAGEMENT LI",7/9/2022 00:00:00,"266750",1593.99,"GL0214","GLENDALE GROUNDS MANAGEMENT LIMITED",29/8/2022 00:00:00,25/9/2022 00:00:00,"P06-2023"
,"LEE VALLEY RIDING CENTRE","PREMISES RELATED EXPENDITURE","GM MAIN CONTRACT SCHEDULED","2141","GLENDALE GROUNDS MANAGEMENT LI",7/9/2022 00:00:00,"266750",486.91,"GL0214","GLENDALE GROUNDS MANAGEMENT LIMITED",29/8/2022 00:00:00,25/9/2022 00:00:00,"P06-2023"
,"LEE VALLEY ICE CENTRE","PREMISES RELATED EXPENDITURE","GM MAIN CONTRACT SCHEDULED","2141","GLENDALE GROUNDS MANAGEMENT LI",7/9/2022 00:00:00,"266750",329.82,"GL0214","GLENDALE GROUNDS MANAGEMENT LIMITED",29/8/2022 00:00:00,25/9/2022 00:00:00,"P06-2023"
"P&V","FORMER LV LIDO SITE","PREMISES RELATED EXPENDITURE","GM MAIN CONTRACT SCHEDULED","2141","GLENDALE GROUNDS MANAGEMENT LI",7/9/2022 00:00:00,"266750",1091.9,"GL0214","GLENDALE GROUNDS MANAGEMENT LIMITED",29/8/2022 00:00:00,25/9/2022 00:00:00,"P06-2023"
,"LEE VALLEY ATHLETICS CENTRE","PREMISES RELATED EXPENDITURE","GM MAIN CONTRACT SCHEDULED","2141","GLENDALE GROUNDS MANAGEMENT LI",7/9/2022 00:00:00,"266750",655.21,"GL0214","GLENDALE GROUNDS MANAGEMENT LIMITED",29/8/2022 00:00:00,25/9/2022 00:00:00,"P06-2023"
,"LEE VALLEY WHITE WATER CENTRE","PREMISES RELATED EXPENDITURE","GM MAIN CONTRACT SCHEDULED","2141","GLENDALE GROUNDS MANAGEMENT LI",7/9/2022 00:00:00,"266750",2602.94,"GL0214","GLENDALE GROUNDS MANAGEMENT LIMITED",29/8/2022 00:00:00,25/9/2022 00:00:00,"P06-2023"
,"LEE VALLEY WATERWORKS CENTRE","PREMISES RELATED EXPENDITURE","GM HORTICULTURE SCHEDULED","2143","GLENDALE GROUNDS MANAGEMENT LI",7/9/2022 00:00:00,"266750",166.85,"GL0214","GLENDALE GROUNDS MANAGEMENT LIMITED",29/8/2022 00:00:00,25/9/2022 00:00:00,"P06-2023"
"P&V","NORTH AREA RANGERS","PREMISES RELATED EXPENDITURE","GM HORTICULTURE SCHEDULED","2143","GLENDALE GROUNDS MANAGEMENT LI",7/9/2022 00:00:00,"266750",248.06,"GL0214","GLENDALE GROUNDS MANAGEMENT LIMITED",29/8/2022 00:00:00,25/9/2022 00:00:00,"P06-2023"
"P&V","SOUTH AREA RANGERS","PREMISES RELATED EXPENDITURE","GM HORTICULTURE SCHEDULED","2143","GLENDALE GROUNDS MANAGEMENT LI",7/9/2022 00:00:00,"266750",142.22,"GL0214","GLENDALE GROUNDS MANAGEMENT LIMITED",29/8/2022 00:00:00,25/9/2022 00:00:00,"P06-2023"
"P&V","ABBEY GARDENS","PREMISES RELATED EXPENDITURE","GM HORTICULTURE SCHEDULED","2143","GLENDALE GROUNDS MANAGEMENT LI",7/9/2022 00:00:00,"266750",1938.16,"GL0214","GLENDALE GROUNDS MANAGEMENT LIMITED",29/8/2022 00:00:00,25/9/2022 00:00:00,"P06-2023"
"P&V","GUNPOWDER PARK","PREMISES RELATED EXPENDITURE","GM HORTICULTURE SCHEDULED","2143","GLENDALE GROUNDS MANAGEMENT LI",7/9/2022 00:00:00,"266750",254.42,"GL0214","GLENDALE GROUNDS MANAGEMENT LIMITED",29/8/2022 00:00:00,25/9/2022 00:00:00,"P06-2023"
"P&V","RIVER LEE COUNTRY PARK","PREMISES RELATED EXPENDITURE","GM HORTICULTURE SCHEDULED","2143","GLENDALE GROUNDS MANAGEMENT LI",7/9/2022 00:00:00,"266750",132.03,"GL0214","GLENDALE GROUNDS MANAGEMENT LIMITED",29/8/2022 00:00:00,25/9/2022 00:00:00,"P06-2023"
,"LEE VALLEY VELOPARK","PREMISES RELATED EXPENDITURE","GM HORTICULTURE SCHEDULED","2143","GLENDALE GROUNDS MANAGEMENT LI",7/9/2022 00:00:00,"266750",1131.69,"GL0214","GLENDALE GROUNDS MANAGEMENT LIMITED",29/8/2022 00:00:00,25/9/2022 00:00:00,"P06-2023"
,"LV HOCKEY AND TENNIS CENTRE","PREMISES RELATED EXPENDITURE","GM HORTICULTURE SCHEDULED","2143","GLENDALE GROUNDS MANAGEMENT LI",7/9/2022 00:00:00,"266750",1629.71,"GL0214","GLENDALE GROUNDS MANAGEMENT LIMITED",29/8/2022 00:00:00,25/9/2022 00:00:00,"P06-2023"
"P&V","THREE MILLS","PREMISES RELATED EXPENDITURE","GM HORTICULTURE SCHEDULED","2143","GLENDALE GROUNDS MANAGEMENT LI",7/9/2022 00:00:00,"266750",52.89,"GL0214","GLENDALE GROUNDS MANAGEMENT LIMITED",29/8/2022 00:00:00,25/9/2022 00:00:00,"P06-2023"
,"LEE VALLEY RIDING CENTRE","PREMISES RELATED EXPENDITURE","GM HORTICULTURE SCHEDULED","2143","GLENDALE GROUNDS MANAGEMENT LI",7/9/2022 00:00:00,"266750",13.22,"GL0214","GLENDALE GROUNDS MANAGEMENT LIMITED",29/8/2022 00:00:00,25/9/2022 00:00:00,"P06-2023"
"P&V","FORMER LV LIDO SITE","PREMISES RELATED EXPENDITURE","GM HORTICULTURE SCHEDULED","2143","GLENDALE GROUNDS MANAGEMENT LI",7/9/2022 00:00:00,"266750",12.61,"GL0214","GLENDALE GROUNDS MANAGEMENT LIMITED",29/8/2022 00:00:00,25/9/2022 00:00:00,"P06-2023"
,"LEE VALLEY WHITE WATER CENTRE","PREMISES RELATED EXPENDITURE","GM HORTICULTURE SCHEDULED","2143","GLENDALE GROUNDS MANAGEMENT LI",7/9/2022 00:00:00,"266750",28.88,"GL0214","GLENDALE GROUNDS MANAGEMENT LIMITED",29/8/2022 00:00:00,25/9/2022 00:00:00,"P06-2023"
"P&V","RIVER LEE COUNTRY PARK","PREMISES RELATED EXPENDITURE","GM ARBORICULTURE UNSCHEDULED","2146","P119135-SERVICE-Tree Works at Rushy Mead",7/9/2022 00:00:00,"266793",895,"MU0030","P J MUSK TREES",29/8/2022 00:00:00,25/9/2022 00:00:00,"P06-2023"
"P&V","RIVER LEE COUNTRY PARK","PREMISES RELATED EXPENDITURE","GM ARBORICULTURE UNSCHEDULED","2146","P118941-SERVICE-Tree Works OPM Nests - Cheshunt Country Walk",25/9/2022 00:00:00,"267321",325,"VE0004","PRINCIPAL TREES LTD",29/8/2022 00:00:00,25/9/2022 00:00:00,"P06-2023"
"P&V","SOUTH AREA RANGERS","PREMISES RELATED EXPENDITURE","GM NON MAIN CONT UNSCHEDULED","2147","P119325-SERVICE-Install Bench at Coppermill",21/9/2022 00:00:00,"266916",800,"JO0019","R G JOYCE",29/8/2022 00:00:00,25/9/2022 00:00:00,"P06-2023"
"P&V","EAST INDIA DOCK AND BOW CREEK","PREMISES RELATED EXPENDITURE","HABITAT MANAGEMENT WORKS","2149","P119213-SERVICE-Clear Wall Vegetation at East India Dock Basi",21/9/2022 00:00:00,"266915",830,"JO0019","R G JOYCE",29/8/2022 00:00:00,25/9/2022 00:00:00,"P06-2023"
"P&V","SOUTH AREA RANGERS","PREMISES RELATED EXPENDITURE","HABITAT MANAGEMENT WORKS","2149","P119119-SERVICE-Emergency Tree Works Walthamstow Marsh",6/9/2022 00:00:00,"266326",200,"PA0222","PARKIN & PARKER TREE SPECIALISTS",29/8/2022 00:00:00,25/9/2022 00:00:00,"P06-2023"
"P&V","THREE MILLS","PREMISES RELATED EXPENDITURE","HABITAT MANAGEMENT WORKS","2149","P119212-SERVICE-Clear Wall Vegetation at Three Mills",12/9/2022 00:00:00,"266723",150,"JO0019","R G JOYCE",29/8/2022 00:00:00,25/9/2022 00:00:00,"P06-2023"
,"LEE VALLEY MARINA STANSTEAD","PREMISES RELATED EXPENDITURE","GENERAL WASTE","2211","P117691-SERVICE-Annual useage Veolia -bins 4 Rye and Stan Mar",13/9/2022 00:00:00,"266901",256.16,"CL0037","VEOLIA ES (UK) LTD",29/8/2022 00:00:00,25/9/2022 00:00:00,"P06-2023"
,"LEE VALLEY MARINA STANSTEAD","PREMISES RELATED EXPENDITURE","GENERAL WASTE","2211","P117691-SERVICE-Annual useage Veolia -bins 4 Rye and Stan Mar",13/9/2022 00:00:00,"266902",13.47,"CL0037","VEOLIA ES (UK) LTD",29/8/2022 00:00:00,25/9/2022 00:00:00,"P06-2023"
,"LEE VALLEY MARINA STANSTEAD","PREMISES RELATED EXPENDITURE","GENERAL WASTE","2211","P117691-SERVICE-Annual useage Veolia -bins 4 Rye and Stan Mar",13/9/2022 00:00:00,"266906",761.5,"CL0037","VEOLIA ES (UK) LTD",29/8/2022 00:00:00,25/9/2022 00:00:00,"P06-2023"
,"LEE VALLEY CAMPSITE","PREMISES RELATED EXPENDITURE","GENERAL WASTE","2211","P119388-SERVICE-Skip collection Aug 22",20/9/2022 00:00:00,"266904",796.53,"CL0037","VEOLIA ES (UK) LTD",29/8/2022 00:00:00,25/9/2022 00:00:00,"P06-2023"
,"LEE VALLEY CARAVAN PARK","PREMISES RELATED EXPENDITURE","GENERAL WASTE","2211","P119370-SERVICE-Monthly waste collection",14/9/2022 00:00:00,"266899",6740.33,"CL0037","VEOLIA ES (UK) LTD",29/8/2022 00:00:00,25/9/2022 00:00:00,"P06-2023"
"P&V","SOUTH AREA RANGERS","PREMISES RELATED EXPENDITURE","GENERAL WASTE","2211","P119211-SERVICE-Litter Clearance at Waterworks Field",1/9/2022 00:00:00,"266550",200,"JO0019","R G JOYCE",29/8/2022 00:00:00,25/9/2022 00:00:00,"P06-2023"
"P&V","RIVER LEE COUNTRY PARK","PREMISES RELATED EXPENDITURE","GENERAL WASTE","2211","P117498-SERVICE-12yd General Rubbish Skip at Holyfield Hall F",22/9/2022 00:00:00,"266957",676.5,"GB0239","GBN SERVICES LTD",29/8/2022 00:00:00,25/9/2022 00:00:00,"P06-2023"
,"LV LEISURE CENTRE CAMPSITE","PREMISES RELATED EXPENDITURE","GENERAL WASTE","2211","P119333-SERVICE-Recycling",22/9/2022 00:00:00,"266873",485.7,"BY0049","BYWATERS (LEYTON) LTD",29/8/2022 00:00:00,25/9/2022 00:00:00,"P06-2023"
,"LV LEISURE CENTRE CAMPSITE","PREMISES RELATED EXPENDITURE","GENERAL WASTE","2211","P119477-SERVICE-Compactor",25/9/2022 00:00:00,"266903",405.78,"CL0037","VEOLIA ES (UK) LTD",29/8/2022 00:00:00,25/9/2022 00:00:00,"P06-2023"
"P&V","MYDDELTON HOUSE","PREMISES RELATED EXPENDITURE","RECYCLING","2214","P119281-SERVICE-Recycling",6/9/2022 00:00:00,"266735",233.67,"CA0341","F & R CAWLEY LTD",29/8/2022 00:00:00,25/9/2022 00:00:00,"P06-2023"
"P&V","MYDDELTON HOUSE","PREMISES RELATED EXPENDITURE","BUILDING SERVICE AGREEMENTS","2220","P118773-SERVICE-Sanitary Services",6/9/2022 00:00:00,"266498",178.08,"PE0015","PHS GROUP PLC",29/8/2022 00:00:00,25/9/2022 00:00:00,"P06-2023"
"P&V","MYDDELTON HOUSE","PREMISES RELATED EXPENDITURE","BUILDING SERVICE AGREEMENTS","2220","P118773-SERVICE-Sanitary Services",6/9/2022 00:00:00,"266528",22.52,"PE0015","PHS GROUP PLC",29/8/2022 00:00:00,25/9/2022 00:00:00,"P06-2023"
"P&V","MYDDELTON HOUSE","PREMISES RELATED EXPENDITURE","BUILDING SERVICE AGREEMENTS","2220","P117526-SERVICE-Santiary Services",6/9/2022 00:00:00,"266529",8.25,"PE0015","PHS GROUP PLC",29/8/2022 00:00:00,25/9/2022 00:00:00,"P06-2023"
"P&V","MYDDELTON HOUSE","PREMISES RELATED EXPENDITURE","BUILDING SERVICE AGREEMENTS","2220","P119371-SERVICE-Signalling Transmission Service 09/22-08/23",14/9/2022 00:00:00,"266729",503.31,"AD0015","ADT FIRE & SECURITY PLC",29/8/2022 00:00:00,25/9/2022 00:00:00,"P06-2023"
"P&V","MYDDELTON HOUSE","PREMISES RELATED EXPENDITURE","BUILDING SERVICE AGREEMENTS","2220","P118773-SERVICE-Sanitary Services",21/9/2022 00:00:00,"267148",58.72,"PE0015","PHS GROUP PLC",29/8/2022 00:00:00,25/9/2022 00:00:00,"P06-2023"
"P&V","MYDDELTON HOUSE","PREMISES RELATED EXPENDITURE","BUILDING SERVICE AGREEMENTS","2220","P118335-SERVICE-Standard Contract for Stannah Lift at Abercro",25/9/2022 00:00:00,"267263",83.5,"ST0175","STANNAH LIFT SERVICES LTD",29/8/2022 00:00:00,25/9/2022 00:00:00,"P06-2023"
"P&V","MYDDELTON HOUSE","PREMISES RELATED EXPENDITURE","BUILDING SERVICE AGREEMENTS","2220","P118773-SERVICE-Sanitary Services",25/9/2022 00:00:00,"267346",178.08,"PE0015","PHS GROUP PLC",29/8/2022 00:00:00,25/9/2022 00:00:00,"P06-2023"
"P&V","MYDDELTON HOUSE","PREMISES RELATED EXPENDITURE","BUILDING SERVICE AGREEMENTS","2220","P117526-SERVICE-Santiary Services",25/9/2022 00:00:00,"267348",9.09,"PE0015","PHS GROUP PLC",29/8/2022 00:00:00,25/9/2022 00:00:00,"P06-2023"
"P&V","MYDDELTON HOUSE","PREMISES RELATED EXPENDITURE","BUILDING SERVICE AGREEMENTS","2220","P118773-SERVICE-Sanitary Services",25/9/2022 00:00:00,"267350",22.52,"PE0015","PHS GROUP PLC",29/8/2022 00:00:00,25/9/2022 00:00:00,"P06-2023"
"P&V","ASSET PROTECTION, MAINT, DEVEL","PREMISES RELATED EXPENDITURE","BUILDING SERVICE AGREEMENTS","2220","P118398-SERVICE-Stanstead Marina - Supply and Fit New Door to",20/9/2022 00:00:00,"267070",940,"TO0639","TOWNS-END DOUBLE GLAZING LTD",29/8/2022 00:00:00,25/9/2022 00:00:00,"P06-2023"
,"LEE VALLEY MARINA STANSTEAD","PREMISES RELATED EXPENDITURE","BUILDING SERVICE AGREEMENTS","2220","P118802-SERVICE-AIS annual service agreement charge",20/9/2022 00:00:00,"267073",492.29,"AI0262","AIS ( ADVANCED INTEGRATED SECURITY)",29/8/2022 00:00:00,25/9/2022 00:00:00,"P06-2023"
,"LEE VALLEY WATERWORKS CENTRE","PREMISES RELATED EXPENDITURE","BUILDING SERVICE AGREEMENTS","2220","P119344-SERVICE-Clean Gullies at WaterWorks",12/9/2022 00:00:00,"266657",1570,"AB0257","ABBEY DRAINS LTD",29/8/2022 00:00:00,25/9/2022 00:00:00,"P06-2023"
,"LEE VALLEY WATERWORKS CENTRE","PREMISES RELATED EXPENDITURE","BUILDING SERVICE AGREEMENTS","2220","P119311-SERVICE-Sanitary Disposal / Air Freshner Toilets",12/9/2022 00:00:00,"266713",603.32,"PE0015","PHS GROUP PLC",29/8/2022 00:00:00,25/9/2022 00:00:00,"P06-2023"
,"LEE VALLEY WATERWORKS CENTRE","PREMISES RELATED EXPENDITURE","BUILDING SERVICE AGREEMENTS","2220","P118423-SERVICE-New Boiler Ignition at Waterworks",25/9/2022 00:00:00,"267284",290.36,"CO0199","EQUANS FM LIMITED (frmlyENGIE FM LIMITED)",29/8/2022 00:00:00,25/9/2022 00:00:00,"P06-2023"
,"LEE VALLEY WATERWORKS CENTRE","PREMISES RELATED EXPENDITURE","BUILDING SERVICE AGREEMENTS","2220","P118424-SERVICE-Local Disinfection at Waterworks",25/9/2022 00:00:00,"267285",184,"CO0199","EQUANS FM LIMITED (frmlyENGIE FM LIMITED)",29/8/2022 00:00:00,25/9/2022 00:00:00,"P06-2023"
,"LEE VALLEY CAMPSITE","PREMISES RELATED EXPENDITURE","BUILDING SERVICE AGREEMENTS","2220","P119162-SERVICE-A Block",1/9/2022 00:00:00,"266457",325,"SO0400","SOUTHERN GREEN SERVICES LIMITED",29/8/2022 00:00:00,25/9/2022 00:00:00,"P06-2023"
,"LEE VALLEY CAMPSITE","PREMISES RELATED EXPENDITURE","BUILDING SERVICE AGREEMENTS","2220","P119162-SERVICE-B Block",1/9/2022 00:00:00,"266458",455,"SO0400","SOUTHERN GREEN SERVICES LIMITED",29/8/2022 00:00:00,25/9/2022 00:00:00,"P06-2023"
,"LEE VALLEY CAMPSITE","PREMISES RELATED EXPENDITURE","BUILDING SERVICE AGREEMENTS","2220","P118102-SERVICE-Aug 22",20/9/2022 00:00:00,"267118",70,"VE0006","VERMINATE CITY & RURAL PEST CONTROL LTD",29/8/2022 00:00:00,25/9/2022 00:00:00,"P06-2023"
,"LEE VALLEY CARAVAN PARK","PREMISES RELATED EXPENDITURE","BUILDING SERVICE AGREEMENTS","2220","P119422-SERVICE-Pest control",21/9/2022 00:00:00,"267117",70,"VE0006","VERMINATE CITY & RURAL PEST CONTROL LTD",29/8/2022 00:00:00,25/9/2022 00:00:00,"P06-2023"
"P&V","NORTH AREA RANGERS","PREMISES RELATED EXPENDITURE","BUILDING SERVICE AGREEMENTS","2220","P117223-SERVICE-Sanitary Disposal - Old Mill & Meadows Toilet",22/9/2022 00:00:00,"267149",3.5,"PE0015","PHS GROUP PLC",29/8/2022 00:00:00,25/9/2022 00:00:00,"P06-2023"
"P&V","WILDLIFE DISCOVERY CENTRE","PREMISES RELATED EXPENDITURE","BUILDING SERVICE AGREEMENTS","2220","P119089-SERVICE-Lift Service Contract - Wildlife Discovery Ce",12/9/2022 00:00:00,"265386",520,"GA0448","GARTEC",29/8/2022 00:00:00,25/9/2022 00:00:00,"P06-2023"
"P&V","WILDLIFE DISCOVERY CENTRE","PREMISES RELATED EXPENDITURE","BUILDING SERVICE AGREEMENTS","2220","P119089-SERVICE-Lift Service Contract - Wildlife Discovery Ce",12/9/2022 00:00:00,"266869",-520,"GA0448","GARTEC",29/8/2022 00:00:00,25/9/2022 00:00:00,"P06-2023"
"P&V","WILDLIFE DISCOVERY CENTRE","PREMISES RELATED EXPENDITURE","BUILDING SERVICE AGREEMENTS","2220","P119089-SERVICE-Lift Service Contract - Wildlife Discovery Ce",22/9/2022 00:00:00,"266892",520,"GA0448","GARTEC",29/8/2022 00:00:00,25/9/2022 00:00:00,"P06-2023"
"P&V","GUNPOWDER PARK","PREMISES RELATED EXPENDITURE","BUILDING SERVICE AGREEMENTS","2220","P117221-SERVICE-Sanitary Disposal - Gunpowder Park Office Toi",1/9/2022 00:00:00,"266524",2.7,"PE0015","PHS GROUP PLC",29/8/2022 00:00:00,25/9/2022 00:00:00,"P06-2023"
"P&V","GUNPOWDER PARK","PREMISES RELATED EXPENDITURE","BUILDING SERVICE AGREEMENTS","2220","P117222-SERVICE-Annual Duty of Care - Gunpowder Park",1/9/2022 00:00:00,"266526",62.5,"PE0015","PHS GROUP PLC",29/8/2022 00:00:00,25/9/2022 00:00:00,"P06-2023"
"P&V","GUNPOWDER PARK","PREMISES RELATED EXPENDITURE","BUILDING SERVICE AGREEMENTS","2220","P117222-SERVICE-Sanitary Disposal - Gunpowder Park - Public T",20/9/2022 00:00:00,"267050",14.3,"PE0015","PHS GROUP PLC",29/8/2022 00:00:00,25/9/2022 00:00:00,"P06-2023"
"P&V","GUNPOWDER PARK","PREMISES RELATED EXPENDITURE","BUILDING SERVICE AGREEMENTS","2220","P119459-SERVICE-Building Servcie Agreement - Gunpowder Park",25/9/2022 00:00:00,"267307",163.99,"CO0199","EQUANS FM LIMITED (frmlyENGIE FM LIMITED)",29/8/2022 00:00:00,25/9/2022 00:00:00,"P06-2023"
"P&V","RIVER LEE COUNTRY PARK","PREMISES RELATED EXPENDITURE","BUILDING SERVICE AGREEMENTS","2220","P117224-SERVICE-Annual Duty of Care",1/9/2022 00:00:00,"266525",62.5,"PE0015","PHS GROUP PLC",29/8/2022 00:00:00,25/9/2022 00:00:00,"P06-2023"
"P&V","RIVER LEE COUNTRY PARK","PREMISES RELATED EXPENDITURE","BUILDING SERVICE AGREEMENTS","2220","P117218-SERVICE-Sanitary Disposal - Ranger Base Office Holyfi",1/9/2022 00:00:00,"266527",5.88,"PE0015","PHS GROUP PLC",29/8/2022 00:00:00,25/9/2022 00:00:00,"P06-2023"
"P&V","RIVER LEE COUNTRY PARK","PREMISES RELATED EXPENDITURE","BUILDING SERVICE AGREEMENTS","2220","P117224-SERVICE-Sanitary Disposal - Fishers Green Toilets",20/9/2022 00:00:00,"267049",10.07,"PE0015","PHS GROUP PLC",29/8/2022 00:00:00,25/9/2022 00:00:00,"P06-2023"
,"LV LEISURE CENTRE CAMPSITE","PREMISES RELATED EXPENDITURE","BUILDING SERVICE AGREEMENTS","2220","P119102-SERVICE-Fire extinguisher boxes",1/9/2022 00:00:00,"266252",283.42,"MO0478","MORGAN FIRE PROTECTION LTD",29/8/2022 00:00:00,25/9/2022 00:00:00,"P06-2023"
,"LV LEISURE CENTRE CAMPSITE","PREMISES RELATED EXPENDITURE","BUILDING SERVICE AGREEMENTS","2220","P119486-SERVICE-pest control",25/9/2022 00:00:00,"267120",70,"VE0006","VERMINATE CITY & RURAL PEST CONTROL LTD",29/8/2022 00:00:00,25/9/2022 00:00:00,"P06-2023"
"P&V","MYDDELTON HOUSE","PREMISES RELATED EXPENDITURE","BUILDING REPAIRS & MAINTENANCE","2222","P119219-SERVICE-Maintenance test and inspection of the",12/9/2022 00:00:00,"266792",445,"BA0062","BACON LIGHTNING PROTECTION & MAINTENANCE LTD",29/8/2022 00:00:00,25/9/2022 00:00:00,"P06-2023"
"CEO","RESIDENTIAL ACCOMMODATION","PREMISES RELATED EXPENDITURE","BUILDING REPAIRS & MAINTENANCE","2222","P119409-SERVICE-2 Bungalow - Fit Thermostat & Radiators",21/9/2022 00:00:00,"266973",580,"WA0315","PAUL WALLACE ESTATE AGENTS",29/8/2022 00:00:00,25/9/2022 00:00:00,"P06-2023"
"CEO","RESIDENTIAL ACCOMMODATION","PREMISES RELATED EXPENDITURE","BUILDING REPAIRS & MAINTENANCE","2222","P119445-SERVICE-Marshgate Cottage - Replace Shower",25/9/2022 00:00:00,"267128",350,"WA0315","PAUL WALLACE ESTATE AGENTS",29/8/2022 00:00:00,25/9/2022 00:00:00,"P06-2023"
"CEO","COMMERCIAL ACCOMMODATION","PREMISES RELATED EXPENDITURE","BUILDING REPAIRS & MAINTENANCE","2222","P117857-SERVICE-Concrete Blocks Wharf road",6/9/2022 00:00:00,"266639",60,"NA0171","NAIVETTE SERVICES LTD",29/8/2022 00:00:00,25/9/2022 00:00:00,"P06-2023"
,"LEE VALLEY MARINA STANSTEAD","PREMISES RELATED EXPENDITURE","BUILDING REPAIRS & MAINTENANCE","2222","P119200-SERVICE-diesel hose repair",12/9/2022 00:00:00,"266530",135,"FA0269","FAST FUEL SERVICES",29/8/2022 00:00:00,25/9/2022 00:00:00,"P06-2023"
,"LEE VALLEY MARINA STANSTEAD","PREMISES RELATED EXPENDITURE","BUILDING REPAIRS & MAINTENANCE","2222","P119406-SERVICE-electrical testing x 5",20/9/2022 00:00:00,"267123",2145,"BR0018","BRADSHAW ELECTRICAL LIMITED",29/8/2022 00:00:00,25/9/2022 00:00:00,"P06-2023"
"P&V","LEE VALLEY FARM HOLYFIELDHALL","PREMISES RELATED EXPENDITURE","BUILDING REPAIRS & MAINTENANCE","2222","P118127-SERVICE-Steel",20/9/2022 00:00:00,"267099",58,"JP0017","JPS STEEL FABRICATION LTD",29/8/2022 00:00:00,25/9/2022 00:00:00,"P06-2023"
,"LEE VALLEY CAMPSITE","PREMISES RELATED EXPENDITURE","BUILDING REPAIRS & MAINTENANCE","2222","P119159-SERVICE-Peakys  emergency c/out leaks",1/9/2022 00:00:00,"266455",390,"SO0400","SOUTHERN GREEN SERVICES LIMITED",29/8/2022 00:00:00,25/9/2022 00:00:00,"P06-2023"
,"LEE VALLEY CAMPSITE","PREMISES RELATED EXPENDITURE","BUILDING REPAIRS & MAINTENANCE","2222","P119159-SERVICE-Peakys  emergency c/out leaks",1/9/2022 00:00:00,"266456",220,"SO0400","SOUTHERN GREEN SERVICES LIMITED",29/8/2022 00:00:00,25/9/2022 00:00:00,"P06-2023"
"P&V","MYDDLETON HSE HERITAGE CENTRE","PREMISES RELATED EXPENDITURE","BUILDING REPAIRS & MAINTENANCE","2222","KENDALL & SONS LIMITED",14/9/2022 00:00:00,"266008",-698,"KE0023","KENDALL & SONS LIMITED",29/8/2022 00:00:00,25/9/2022 00:00:00,"P06-2023"
"P&V","MYDDLETON HSE HERITAGE CENTRE","PREMISES RELATED EXPENDITURE","BUILDING REPAIRS & MAINTENANCE","2222","KENDALL & SONS LIMITED",14/9/2022 00:00:00,"266008",150,"KE0023","KENDALL & SONS LIMITED",29/8/2022 00:00:00,25/9/2022 00:00:00,"P06-2023"
"P&V","MYDDLETON HSE HERITAGE CENTRE","PREMISES RELATED EXPENDITURE","BUILDING REPAIRS & MAINTENANCE","2222","KENDALL & SONS LIMITED",14/9/2022 00:00:00,"266008",548,"KE0023","KENDALL & SONS LIMITED",29/8/2022 00:00:00,25/9/2022 00:00:00,"P06-2023"
"P&V","MYDDLETON HSE HERITAGE CENTRE","PREMISES RELATED EXPENDITURE","BUILDING REPAIRS & MAINTENANCE","2222","P118897-SERVICE-gardens seciruty upgrade",14/9/2022 00:00:00,"266008",698,"KE0023","KENDALL & SONS LIMITED",29/8/2022 00:00:00,25/9/2022 00:00:00,"P06-2023"
"P&V","RIVER LEE COUNTRY PARK","PREMISES RELATED EXPENDITURE","BUILDING REPAIRS & MAINTENANCE","2222","P118276-SERVICE-Deep Clean Fishers Green Toilets",12/9/2022 00:00:00,"266683",278.26,"GL0214","GLENDALE GROUNDS MANAGEMENT LIMITED",29/8/2022 00:00:00,25/9/2022 00:00:00,"P06-2023"
"P&V","RIVER LEE COUNTRY PARK","PREMISES RELATED EXPENDITURE","BUILDING REPAIRS & MAINTENANCE","2222","P119210-SERVICE-Unblock Fishers Green Toilets -Gents",12/9/2022 00:00:00,"266716",180,"RE0094","REACT 2 IT (BUILDING & REFURBISHMENT) LTD",29/8/2022 00:00:00,25/9/2022 00:00:00,"P06-2023"
"P&V","RIVER LEE COUNTRY PARK","PREMISES RELATED EXPENDITURE","BUILDING REPAIRS & MAINTENANCE","2222","P118276-SERVICE-Deep Clean Fishers Green Toilets",12/9/2022 00:00:00,"266748",-278.26,"GL0214","GLENDALE GROUNDS MANAGEMENT LIMITED",29/8/2022 00:00:00,25/9/2022 00:00:00,"P06-2023"
,"LV LEISURE CENTRE CAMPSITE","PREMISES RELATED EXPENDITURE","BUILDING REPAIRS & MAINTENANCE","2222","P119341-SERVICE-Pump flyght and call out",22/9/2022 00:00:00,"266698",180,"CO0550","CONVERT WATER LTD",29/8/2022 00:00:00,25/9/2022 00:00:00,"P06-2023"
"CEO","LVLC SERVICE CHARGE","PREMISES RELATED EXPENDITURE","BUILDING REPAIRS & MAINTENANCE","2222","P117653-SERVICE-Contract Sweep",20/9/2022 00:00:00,"267064",150,"SE0374","SELECT SWEEPER HIRE LTD",29/8/2022 00:00:00,25/9/2022 00:00:00,"P06-2023"
,"LEE VALLEY WATERWORKS CENTRE","SUPPLIES AND SERVICES","FENCES/GATES ETC.","2231","P118856-SERVICE-Car Park Fence Repairs at WaterWorks Centre",1/9/2022 00:00:00,"266558",700,"JO0019","R G JOYCE",29/8/2022 00:00:00,25/9/2022 00:00:00,"P06-2023"
"P&V","RIVER LEE COUNTRY PARK","SUPPLIES AND SERVICES","FENCES/GATES ETC.","2231","P119271-SERVICE-100x Posts - 1.8m x 75mm Round",12/9/2022 00:00:00,"266874",341,"TI0164","414 TIMBER & FENCING",29/8/2022 00:00:00,25/9/2022 00:00:00,"P06-2023"
"P&V","RIVER LEE COUNTRY PARK","SUPPLIES AND SERVICES","FENCES/GATES ETC.","2231","P119271-SERVICE-50x Rails - 88x38x360",12/9/2022 00:00:00,"266874",274.5,"TI0164","414 TIMBER & FENCING",29/8/2022 00:00:00,25/9/2022 00:00:00,"P06-2023"
"P&V","FORMER LV LIDO SITE","SUPPLIES AND SERVICES","FENCES/GATES ETC.","2231","P119039-SERVICE-Repair Barrier at Broxbourne Riverside",22/9/2022 00:00:00,"267130",180,"LW0268","LWC ENGINEERING LIMITED",29/8/2022 00:00:00,25/9/2022 00:00:00,"P06-2023"
"CEO","COMMERCIAL ACCOMMODATION","PREMISES RELATED EXPENDITURE","EAST HALE ALLOTMENTS","2261","P118482-SERVICE-Grass Cutting at East Hale Allotments",20/9/2022 00:00:00,"266682",369.61,"GL0214","GLENDALE GROUNDS MANAGEMENT LIMITED",29/8/2022 00:00:00,25/9/2022 00:00:00,"P06-2023"
"CEO","COMMERCIAL ACCOMMODATION","PREMISES RELATED EXPENDITURE","EAST HALE ALLOTMENTS","2261","P117652-SERVICE-Allotment Bins",20/9/2022 00:00:00,"266905",114.74,"CL0037","VEOLIA ES (UK) LTD",29/8/2022 00:00:00,25/9/2022 00:00:00,"P06-2023"
"CEO","COMMERCIAL ACCOMMODATION","PREMISES RELATED EXPENDITURE","ENERGY COSTS (ELECTRICITY)","2332","AUGUST 2022",20/9/2022 00:00:00,"266864",24.11,"EO0398","E-ON NEXT ENERGY LTD",29/8/2022 00:00:00,25/9/2022 00:00:00,"P06-2023"
"CEO","COMMERCIAL ACCOMMODATION","PREMISES RELATED EXPENDITURE","ENERGY COSTS (ELECTRICITY)","2332","AUGUST 2022",20/9/2022 00:00:00,"266922",52.1,"EO0398","E-ON NEXT ENERGY LTD",29/8/2022 00:00:00,25/9/2022 00:00:00,"P06-2023"
"CEO","COMMERCIAL ACCOMMODATION","PREMISES RELATED EXPENDITURE","ENERGY COSTS (ELECTRICITY)","2332","AUGUST 2022",20/9/2022 00:00:00,"266925",15.92,"EO0398","E-ON NEXT ENERGY LTD",29/8/2022 00:00:00,25/9/2022 00:00:00,"P06-2023"
"CEO","COMMERCIAL ACCOMMODATION","PREMISES RELATED EXPENDITURE","ENERGY COSTS (ELECTRICITY)","2332","AUGUST-SEPTEMBER 2022",22/9/2022 00:00:00,"267136",16.54,"EO0398","E-ON NEXT ENERGY LTD",29/8/2022 00:00:00,25/9/2022 00:00:00,"P06-2023"
,"LEE VALLEY WATERWORKS CENTRE","PREMISES RELATED EXPENDITURE","ENERGY COSTS (ELECTRICITY)","2332","NPOWER LIMITED",22/9/2022 00:00:00,"267091",719.36,"NP0123","NPOWER LIMITED",29/8/2022 00:00:00,25/9/2022 00:00:00,"P06-2023"
"P&V","CAR PARK INCOME","PREMISES RELATED EXPENDITURE","ENERGY COSTS (ELECTRICITY)","2332","NPOWER LIMITED",22/9/2022 00:00:00,"267088",29.55,"NP0123","NPOWER LIMITED",29/8/2022 00:00:00,25/9/2022 00:00:00,"P06-2023"
"P&V","CAR PARK INCOME","PREMISES RELATED EXPENDITURE","ENERGY COSTS (ELECTRICITY)","2332","NPOWER LIMITED",22/9/2022 00:00:00,"267090",22.56,"NP0123","NPOWER LIMITED",29/8/2022 00:00:00,25/9/2022 00:00:00,"P06-2023"
,"LV LEISURE CENTRE CAMPSITE","PREMISES RELATED EXPENDITURE","ENERGY COSTS (ELECTRICITY)","2332","NPOWER LIMITED",20/9/2022 00:00:00,"267092",4494.39,"NP0123","NPOWER LIMITED",29/8/2022 00:00:00,25/9/2022 00:00:00,"P06-2023"
"P&V","MYDDELTON HOUSE","PREMISES RELATED EXPENDITURE","ENERGY COSTS (GAS)","2333","AUGUST 2022",20/9/2022 00:00:00,"266939",283.12,"KE0007","KENT COUNTY COUNCIL (KCS)",29/8/2022 00:00:00,25/9/2022 00:00:00,"P06-2023"
,"LEE VALLEY MARINA STANSTEAD","PREMISES RELATED EXPENDITURE","ENERGY COSTS (GAS)","2333","AUGUST 2022",20/9/2022 00:00:00,"266942",65.63,"KE0007","KENT COUNTY COUNCIL (KCS)",29/8/2022 00:00:00,25/9/2022 00:00:00,"P06-2023"
,"LEE VALLEY MARINA STANSTEAD","PREMISES RELATED EXPENDITURE","ENERGY COSTS (GAS)","2333","AUGUST 2022",20/9/2022 00:00:00,"266943",93.25,"KE0007","KENT COUNTY COUNCIL (KCS)",29/8/2022 00:00:00,25/9/2022 00:00:00,"P06-2023"
,"LEE VALLEY CAMPSITE","PREMISES RELATED EXPENDITURE","ENERGY COSTS (GAS)","2333","AUGUST 2022",20/9/2022 00:00:00,"266941",240.43,"KE0007","KENT COUNTY COUNCIL (KCS)",29/8/2022 00:00:00,25/9/2022 00:00:00,"P06-2023"
,"LV LEISURE CENTRE CAMPSITE","PREMISES RELATED EXPENDITURE","ENERGY COSTS (GAS)","2333","AUGUST 2022",20/9/2022 00:00:00,"266940",548.1,"KE0007","KENT COUNTY COUNCIL (KCS)",29/8/2022 00:00:00,25/9/2022 00:00:00,"P06-2023"
,"LEE VALLEY MARINA SPRINGFIELD","PREMISES RELATED EXPENDITURE","RENT (EXTERNAL)","2442","RENT OCTOBER-MARCH",22/9/2022 00:00:00,"267126",200,"TH0020","THAMES WATER UTILITIES LIMITED",29/8/2022 00:00:00,25/9/2022 00:00:00,"P06-2023"
"P&V","KING GEORGE RESERVOIR SOUTH","PREMISES RELATED EXPENDITURE","RENT (EXTERNAL)","2442","RENT OCTOBER-DECEMBER",22/9/2022 00:00:00,"267127",3375,"TH0020","THAMES WATER UTILITIES LIMITED",29/8/2022 00:00:00,25/9/2022 00:00:00,"P06-2023"
"P&V","RIVER LEE COUNTRY PARK","PREMISES RELATED EXPENDITURE","RENT (EXTERNAL)","2442","RENT APRIL-OCT 2022",22/9/2022 00:00:00,"267167",7.5,"BR0036","CANAL & RIVER TRUST",29/8/2022 00:00:00,25/9/2022 00:00:00,"P06-2023"
"P&V","MYDDELTON HOUSE","PREMISES RELATED EXPENDITURE","BUSINESS RATES","2444","LONDON BOROUGH OF ENFIELD",22/9/2022 00:00:00,"267089",-15321.6,"EN0035","LONDON BOROUGH OF ENFIELD",29/8/2022 00:00:00,25/9/2022 00:00:00,"P06-2023"
"CEO","RESIDENTIAL ACCOMMODATION","PREMISES RELATED EXPENDITURE","COUNCIL TAX","2445","EPPING FOREST DISTRICT COUNCIL",20/9/2022 00:00:00,"266494",-60.01,"EP0025","EPPING FOREST DISTRICT COUNCIL",29/8/2022 00:00:00,25/9/2022 00:00:00,"P06-2023"
"P&V","LEE VALLEY FARM HOLYFIELDHALL","PREMISES RELATED EXPENDITURE","COUNCIL TAX","2445","EPPING FOREST DISTRICT COUNCIL",6/9/2022 00:00:00,"266689",-278.37,"EP0025","EPPING FOREST DISTRICT COUNCIL",29/8/2022 00:00:00,25/9/2022 00:00:00,"P06-2023"
"P&V","MYDDELTON HOUSE GARDENS","PREMISES RELATED EXPENDITURE","COUNCIL TAX","2445","LONDON BOROUGH OF ENFIELD",6/9/2022 00:00:00,"266260",2250.98,"EN0035","LONDON BOROUGH OF ENFIELD",29/8/2022 00:00:00,25/9/2022 00:00:00,"P06-2023"
"CEO","RESIDENTIAL ACCOMMODATION","PREMISES RELATED EXPENDITURE","PROPERTY MANAGEMT/LETTING FEES","2447","P119407-SERVICE-Railway Cottage - 6 Month Management Fee",21/9/2022 00:00:00,"267113",750,"WA0315","PAUL WALLACE ESTATE AGENTS",29/8/2022 00:00:00,25/9/2022 00:00:00,"P06-2023"
"P&V","MYDDELTON HOUSE","PREMISES RELATED EXPENDITURE","WATER","2555","CASTLE WATER LIMITED",6/9/2022 00:00:00,"266491",2721.54,"CA0625","CASTLE WATER LIMITED",29/8/2022 00:00:00,25/9/2022 00:00:00,"P06-2023"
,"LEE VALLEY MARINA SPRINGFIELD","PREMISES RELATED EXPENDITURE","WATER","2555","CASTLE WATER LIMITED",6/9/2022 00:00:00,"266687",3939.52,"CA0625","CASTLE WATER LIMITED",29/8/2022 00:00:00,25/9/2022 00:00:00,"P06-2023"
,"LEE VALLEY MARINA SPRINGFIELD","PREMISES RELATED EXPENDITURE","WATER","2555","CASTLE WATER LIMITED",6/9/2022 00:00:00,"266687",2717.09,"CA0625","CASTLE WATER LIMITED",29/8/2022 00:00:00,25/9/2022 00:00:00,"P06-2023"
,"LEE VALLEY WATERWORKS CENTRE","PREMISES RELATED EXPENDITURE","WATER","2555","CASTLE WATER LIMITED",6/9/2022 00:00:00,"266321",98.96,"CA0625","CASTLE WATER LIMITED",29/8/2022 00:00:00,25/9/2022 00:00:00,"P06-2023"
"P&V","LEE VALLEY FARM HOLYFIELDHALL","PREMISES RELATED EXPENDITURE","WATER","2555","CASTLE WATER LIMITED",7/9/2022 00:00:00,"266637",-6194.66,"CA0625","CASTLE WATER LIMITED",29/8/2022 00:00:00,25/9/2022 00:00:00,"P06-2023"
"P&V","LEE VALLEY FARM HOLYFIELDHALL","PREMISES RELATED EXPENDITURE","WATER","2555","CASTLE WATER LIMITED",7/9/2022 00:00:00,"266638",2913.73,"CA0625","CASTLE WATER LIMITED",29/8/2022 00:00:00,25/9/2022 00:00:00,"P06-2023"
,"LEE VALLEY CARAVAN PARK","PREMISES RELATED EXPENDITURE","WATER","2555","CASTLE WATER LIMITED",12/9/2022 00:00:00,"266736",3864.25,"CA0625","CASTLE WATER LIMITED",29/8/2022 00:00:00,25/9/2022 00:00:00,"P06-2023"
,"LEE VALLEY CARAVAN PARK","PREMISES RELATED EXPENDITURE","WATER","2555","CASTLE WATER LIMITED",12/9/2022 00:00:00,"266736",2505.15,"CA0625","CASTLE WATER LIMITED",29/8/2022 00:00:00,25/9/2022 00:00:00,"P06-2023"
,"LEE VALLEY CARAVAN PARK","PREMISES RELATED EXPENDITURE","WATER","2555","P119369-SERVICE-Faulty pump station",14/9/2022 00:00:00,"266887",180,"CO0550","CONVERT WATER LTD",29/8/2022 00:00:00,25/9/2022 00:00:00,"P06-2023"
,"LV LEISURE CENTRE CAMPSITE","PREMISES RELATED EXPENDITURE","WATER","2555","CASTLE WATER LIMITED",1/9/2022 00:00:00,"266490",1059.77,"CA0625","CASTLE WATER LIMITED",29/8/2022 00:00:00,25/9/2022 00:00:00,"P06-2023"
,"LV LEISURE CENTRE CAMPSITE","PREMISES RELATED EXPENDITURE","WATER","2555","CASTLE WATER LIMITED",1/9/2022 00:00:00,"266490",1156.37,"CA0625","CASTLE WATER LIMITED",29/8/2022 00:00:00,25/9/2022 00:00:00,"P06-2023"
,"LV LEISURE CENTRE CAMPSITE","PREMISES RELATED EXPENDITURE","WATER","2555","CASTLE WATER LIMITED",6/9/2022 00:00:00,"266644",33.58,"CA0625","CASTLE WATER LIMITED",29/8/2022 00:00:00,25/9/2022 00:00:00,"P06-2023"
,"LV LEISURE CENTRE CAMPSITE","PREMISES RELATED EXPENDITURE","WATER","2555","CASTLE WATER LIMITED",6/9/2022 00:00:00,"266644",34.17,"CA0625","CASTLE WATER LIMITED",29/8/2022 00:00:00,25/9/2022 00:00:00,"P06-2023"
,"LEE VALLEY MARINA STANSTEAD","PREMISES RELATED EXPENDITURE","CLEANING & DOMESTIC SUPPLIES","2666","P119290-SERVICE-bin liners and hand soap  JKL Maria",13/9/2022 00:00:00,"266895",48.05,"TH0008","JKL SOLUTIONS LTD",29/8/2022 00:00:00,25/9/2022 00:00:00,"P06-2023"
,"LEE VALLEY MARINA STANSTEAD","PREMISES RELATED EXPENDITURE","CLEANING & DOMESTIC SUPPLIES","2666","P119290-SERVICE-additional cost same items",13/9/2022 00:00:00,"266895",21.05,"TH0008","JKL SOLUTIONS LTD",29/8/2022 00:00:00,25/9/2022 00:00:00,"P06-2023"
,"LEE VALLEY CAMPSITE","PREMISES RELATED EXPENDITURE","CLEANING & DOMESTIC SUPPLIES","2666","P119316-SERVICE-toilet rolls",12/9/2022 00:00:00,"266753",70.74,"HY0043","HYGIENE SYSTEMS LTD",29/8/2022 00:00:00,25/9/2022 00:00:00,"P06-2023"
,"LEE VALLEY CAMPSITE","PREMISES RELATED EXPENDITURE","CLEANING & DOMESTIC SUPPLIES","2666","P119316-SERVICE-toilet brush sets",12/9/2022 00:00:00,"266753",38.7,"HY0043","HYGIENE SYSTEMS LTD",29/8/2022 00:00:00,25/9/2022 00:00:00,"P06-2023"
,"LEE VALLEY CARAVAN PARK","PREMISES RELATED EXPENDITURE","CLEANING & DOMESTIC SUPPLIES","2666","P118880-SERVICE-Cleaning materials",12/9/2022 00:00:00,"266754",7.4,"HY0043","HYGIENE SYSTEMS LTD",29/8/2022 00:00:00,25/9/2022 00:00:00,"P06-2023"
,"LEE VALLEY CARAVAN PARK","PREMISES RELATED EXPENDITURE","CLEANING & DOMESTIC SUPPLIES","2666","P119138-SERVICE-Cleaning supplies",12/9/2022 00:00:00,"266755",502.49,"HY0043","HYGIENE SYSTEMS LTD",29/8/2022 00:00:00,25/9/2022 00:00:00,"P06-2023"
,"LV LEISURE CENTRE CAMPSITE","PREMISES RELATED EXPENDITURE","CLEANING & DOMESTIC SUPPLIES","2666","P119074-SERVICE-Cleaning supplies",1/9/2022 00:00:00,"266298",70.17,"HY0043","HYGIENE SYSTEMS LTD",29/8/2022 00:00:00,25/9/2022 00:00:00,"P06-2023"
"P&V","LEE VALLEY FARM HOLYFIELDHALL","TRANSPORT RELATED EXPENDITURE","TRANSPORT RUNNING EXPENSES","3333","P117606-SERVICE-Welding Sundries",7/9/2022 00:00:00,"266504",44.95,"BO0015","BOC LTD",29/8/2022 00:00:00,25/9/2022 00:00:00,"P06-2023"
"P&V","LEE VALLEY FARM HOLYFIELDHALL","TRANSPORT RELATED EXPENDITURE","TRANSPORT RUNNING EXPENSES","3333","P117572-SERVICE-Parts",7/9/2022 00:00:00,"266520",105.32,"GR0022","GROUP COMPONENTS LIMITED",29/8/2022 00:00:00,25/9/2022 00:00:00,"P06-2023"
"P&V","LEE VALLEY FARM HOLYFIELDHALL","TRANSPORT RELATED EXPENDITURE","TRANSPORT RUNNING EXPENSES","3333","P117678-SERVICE-Chains & Drives",7/9/2022 00:00:00,"266538",24.24,"BE0066","BEARINGS AND DRIVES",29/8/2022 00:00:00,25/9/2022 00:00:00,"P06-2023"
"P&V","LEE VALLEY FARM HOLYFIELDHALL","TRANSPORT RELATED EXPENDITURE","TRANSPORT RUNNING EXPENSES","3333","P117597-SERVICE-Hose Repairs/Sundries",7/9/2022 00:00:00,"266543",22.2,"HU0003","ALLIANCE AUTOMOTIVE UK CV LIMITED T/A",29/8/2022 00:00:00,25/9/2022 00:00:00,"P06-2023"
"P&V","LEE VALLEY FARM HOLYFIELDHALL","TRANSPORT RELATED EXPENDITURE","TRANSPORT RUNNING EXPENSES","3333","P117597-SERVICE-Hose Repairs/Sundries",7/9/2022 00:00:00,"266544",6.6,"HU0003","ALLIANCE AUTOMOTIVE UK CV LIMITED T/A",29/8/2022 00:00:00,25/9/2022 00:00:00,"P06-2023"
"P&V","LEE VALLEY FARM HOLYFIELDHALL","TRANSPORT RELATED EXPENDITURE","TRANSPORT RUNNING EXPENSES","3333","P119192-SERVICE-Parts",7/9/2022 00:00:00,"266548",379.8,"RW0257","R. W. CRAWFORD AGRICULTURAL MACHINERY LTD",29/8/2022 00:00:00,25/9/2022 00:00:00,"P06-2023"
"P&V","LEE VALLEY FARM HOLYFIELDHALL","TRANSPORT RELATED EXPENDITURE","TRANSPORT RUNNING EXPENSES","3333","P117605-SERVICE-Machinery Spares",7/9/2022 00:00:00,"266549",459.38,"SP0034","SPALDINGS (UK) LIMITED",29/8/2022 00:00:00,25/9/2022 00:00:00,"P06-2023"
"P&V","LEE VALLEY FARM HOLYFIELDHALL","TRANSPORT RELATED EXPENDITURE","TRANSPORT RUNNING EXPENSES","3333","P119191-SERVICE-Various Parts",7/9/2022 00:00:00,"266726",111.89,"BO0292","R C BOREHAM & CO LTD",29/8/2022 00:00:00,25/9/2022 00:00:00,"P06-2023"
"P&V","LEE VALLEY FARM HOLYFIELDHALL","TRANSPORT RELATED EXPENDITURE","TRANSPORT RUNNING EXPENSES","3333","P119192-SERVICE-Parts",22/9/2022 00:00:00,"266963",68.14,"RW0257","R. W. CRAWFORD AGRICULTURAL MACHINERY LTD",29/8/2022 00:00:00,25/9/2022 00:00:00,"P06-2023"
"P&V","LEE VALLEY FARM HOLYFIELDHALL","TRANSPORT RELATED EXPENDITURE","TRANSPORT RUNNING EXPENSES","3333","P117598-SERVICE-Tractor Spares",22/9/2022 00:00:00,"266963",30.86,"RW0257","R. W. CRAWFORD AGRICULTURAL MACHINERY LTD",29/8/2022 00:00:00,25/9/2022 00:00:00,"P06-2023"
"P&V","LEE VALLEY FARM HOLYFIELDHALL","TRANSPORT RELATED EXPENDITURE","TRANSPORT RUNNING EXPENSES","3333","P119192-SERVICE-Parts",22/9/2022 00:00:00,"267066",99,"RW0257","R. W. CRAWFORD AGRICULTURAL MACHINERY LTD",29/8/2022 00:00:00,25/9/2022 00:00:00,"P06-2023"
"P&V","LEE VALLEY FARM HOLYFIELDHALL","TRANSPORT RELATED EXPENDITURE","TRANSPORT RUNNING EXPENSES","3333","P119447-SERVICE-Parts",22/9/2022 00:00:00,"267164",91.76,"OL0001","OLIVER AGRICULTURE LTD",29/8/2022 00:00:00,25/9/2022 00:00:00,"P06-2023"
,"LEE VALLEY CARAVAN PARK","TRANSPORT RELATED EXPENDITURE","TRANSPORT RUNNING EXPENSES","3333","P119354-SERVICE-Full service & MOT to campsite van",12/9/2022 00:00:00,"266865",294,"AB0153","ABBEY SERVICE CENTRE",29/8/2022 00:00:00,25/9/2022 00:00:00,"P06-2023"
,"LEE VALLEY CARAVAN PARK","TRANSPORT RELATED EXPENDITURE","TRANSPORT RUNNING EXPENSES","3333","ABBEY SERVICE CENTRE",12/9/2022 00:00:00,"266865",249,"AB0153","ABBEY SERVICE CENTRE",29/8/2022 00:00:00,25/9/2022 00:00:00,"P06-2023"
,"LEE VALLEY CARAVAN PARK","TRANSPORT RELATED EXPENDITURE","TRANSPORT RUNNING EXPENSES","3333","ABBEY SERVICE CENTRE",12/9/2022 00:00:00,"266865",45,"AB0153","ABBEY SERVICE CENTRE",29/8/2022 00:00:00,25/9/2022 00:00:00,"P06-2023"
,"LEE VALLEY CARAVAN PARK","TRANSPORT RELATED EXPENDITURE","TRANSPORT RUNNING EXPENSES","3333","ABBEY SERVICE CENTRE",12/9/2022 00:00:00,"266865",-294,"AB0153","ABBEY SERVICE CENTRE",29/8/2022 00:00:00,25/9/2022 00:00:00,"P06-2023"
,"LEE VALLEY MARINA STANSTEAD","TRANSPORT RELATED EXPENDITURE","VEHICLE FUEL","3335","ALLSTAR BUSINESS SOLUTIONS LTD",6/9/2022 00:00:00,"266661",305.17,"AR0035","ALLSTAR BUSINESS SOLUTIONS LTD",29/8/2022 00:00:00,25/9/2022 00:00:00,"P06-2023"
"P&V","LEE VALLEY FARM HOLYFIELDHALL","TRANSPORT RELATED EXPENDITURE","VEHICLE FUEL","3335","ALLSTAR BUSINESS SOLUTIONS LTD",6/9/2022 00:00:00,"266661",267.27,"AR0035","ALLSTAR BUSINESS SOLUTIONS LTD",29/8/2022 00:00:00,25/9/2022 00:00:00,"P06-2023"
,"LEE VALLEY CAMPSITE","TRANSPORT RELATED EXPENDITURE","VEHICLE FUEL","3335","ALLSTAR BUSINESS SOLUTIONS LTD",6/9/2022 00:00:00,"266661",111.69,"AR0035","ALLSTAR BUSINESS SOLUTIONS LTD",29/8/2022 00:00:00,25/9/2022 00:00:00,"P06-2023"
,"LEE VALLEY CARAVAN PARK","TRANSPORT RELATED EXPENDITURE","VEHICLE FUEL","3335","ALLSTAR BUSINESS SOLUTIONS LTD",6/9/2022 00:00:00,"266661",167.39,"AR0035","ALLSTAR BUSINESS SOLUTIONS LTD",29/8/2022 00:00:00,25/9/2022 00:00:00,"P06-2023"
"P&V","SOUTH AREA RANGERS","TRANSPORT RELATED EXPENDITURE","VEHICLE FUEL","3335","ALLSTAR BUSINESS SOLUTIONS LTD",6/9/2022 00:00:00,"266661",410.9,"AR0035","ALLSTAR BUSINESS SOLUTIONS LTD",29/8/2022 00:00:00,25/9/2022 00:00:00,"P06-2023"
"P&V","RIVER LEE COUNTRY PARK","TRANSPORT RELATED EXPENDITURE","VEHICLE FUEL","3335","ALLSTAR BUSINESS SOLUTIONS LTD",6/9/2022 00:00:00,"266661",64.79,"AR0035","ALLSTAR BUSINESS SOLUTIONS LTD",29/8/2022 00:00:00,25/9/2022 00:00:00,"P06-2023"
"P&V","RIVER LEE COUNTRY PARK","TRANSPORT RELATED EXPENDITURE","VEHICLE FUEL","3335","ALLSTAR BUSINESS SOLUTIONS LTD",6/9/2022 00:00:00,"266661",442.79,"AR0035","ALLSTAR BUSINESS SOLUTIONS LTD",29/8/2022 00:00:00,25/9/2022 00:00:00,"P06-2023"
"P&V","ABBEY GARDENS","TRANSPORT RELATED EXPENDITURE","VEHICLE REPAIRS & MAINTENANCE","3338","P119359-SERVICE-3 x VIP Valet of Isuzu D-Max",25/9/2022 00:00:00,"267152",135,"AB0153","ABBEY SERVICE CENTRE",29/8/2022 00:00:00,25/9/2022 00:00:00,"P06-2023"
,"LEE VALLEY MARINA SPRINGFIELD","SUPPLIES AND SERVICES","EQUIPMENT & MATERIALS","4111","P118471-SERVICE-Workshop supplies",20/9/2022 00:00:00,"267060",44.54,"EN0259","L & S ENGINEERS LTD",29/8/2022 00:00:00,25/9/2022 00:00:00,"P06-2023"
,"STANSTEAD RECHARGEABLE WORKS","SUPPLIES AND SERVICES","EQUIPMENT & MATERIALS","4111","P119129-SERVICE-anodes",6/9/2022 00:00:00,"266324",1023.5,"MI0200","MIDLAND CHANDLERS LIMITED",29/8/2022 00:00:00,25/9/2022 00:00:00,"P06-2023"
,"STANSTEAD RECHARGEABLE WORKS","SUPPLIES AND SERVICES","EQUIPMENT & MATERIALS","4111","P119350-SERVICE-screwfix chandlery stuff",20/9/2022 00:00:00,"267053",66.42,"SC0057","SCREWFIX DIRECT LTD",29/8/2022 00:00:00,25/9/2022 00:00:00,"P06-2023"
,"STANSTEAD RECHARGEABLE WORKS","SUPPLIES AND SERVICES","EQUIPMENT & MATERIALS","4111","SCREWFIX DIRECT LTD",20/9/2022 00:00:00,"267054",-145.35,"SC0057","SCREWFIX DIRECT LTD",29/8/2022 00:00:00,25/9/2022 00:00:00,"P06-2023"
,"STANSTEAD RECHARGEABLE WORKS","SUPPLIES AND SERVICES","EQUIPMENT & MATERIALS","4111","P119345-SERVICE-screwfix misc workshop",20/9/2022 00:00:00,"267054",145.35,"SC0057","SCREWFIX DIRECT LTD",29/8/2022 00:00:00,25/9/2022 00:00:00,"P06-2023"
,"STANSTEAD RECHARGEABLE WORKS","SUPPLIES AND SERVICES","EQUIPMENT & MATERIALS","4111","SCREWFIX DIRECT LTD",20/9/2022 00:00:00,"267054",81.43,"SC0057","SCREWFIX DIRECT LTD",29/8/2022 00:00:00,25/9/2022 00:00:00,"P06-2023"
,"STANSTEAD RECHARGEABLE WORKS","SUPPLIES AND SERVICES","EQUIPMENT & MATERIALS","4111","SCREWFIX DIRECT LTD",20/9/2022 00:00:00,"267054",63.92,"SC0057","SCREWFIX DIRECT LTD",29/8/2022 00:00:00,25/9/2022 00:00:00,"P06-2023"
,"STANSTEAD RECHARGEABLE WORKS","SUPPLIES AND SERVICES","EQUIPMENT & MATERIALS","4111","P119320-SERVICE-blacking",22/9/2022 00:00:00,"267106",2276.55,"SM0658","SML PAINTS AND COATINGS",29/8/2022 00:00:00,25/9/2022 00:00:00,"P06-2023"
,"LEE VALLEY CAMPSITE","SUPPLIES AND SERVICES","EQUIPMENT & MATERIALS","4111","P119229-SERVICE-CFL 2D light bulbs",12/9/2022 00:00:00,"266551",28.25,"SC0057","SCREWFIX DIRECT LTD",29/8/2022 00:00:00,25/9/2022 00:00:00,"P06-2023"
,"LEE VALLEY CAMPSITE","SUPPLIES AND SERVICES","EQUIPMENT & MATERIALS","4111","P119229-SERVICE-DELIVERY",12/9/2022 00:00:00,"266551",4.17,"SC0057","SCREWFIX DIRECT LTD",29/8/2022 00:00:00,25/9/2022 00:00:00,"P06-2023"
,"LEE VALLEY CAMPSITE","SUPPLIES AND SERVICES","EQUIPMENT & MATERIALS","4111","P119245-SERVICE-Supplies walkie talkie plates cups knives for",12/9/2022 00:00:00,"266660",27.92,"AM0406","AMAZON PAYMENTS UK LIMITED",29/8/2022 00:00:00,25/9/2022 00:00:00,"P06-2023"
,"LEE VALLEY CAMPSITE","SUPPLIES AND SERVICES","EQUIPMENT & MATERIALS","4111","P119245-SERVICE-Supplies walkie talkie plates cups knives for",12/9/2022 00:00:00,"266672",124.37,"AM0406","AMAZON PAYMENTS UK LIMITED",29/8/2022 00:00:00,25/9/2022 00:00:00,"P06-2023"
,"LEE VALLEY CAMPSITE","SUPPLIES AND SERVICES","EQUIPMENT & MATERIALS","4111","P119245-SERVICE-Supplies walkie talkie plates cups knives for",12/9/2022 00:00:00,"266673",31.64,"AM0406","AMAZON PAYMENTS UK LIMITED",29/8/2022 00:00:00,25/9/2022 00:00:00,"P06-2023"
,"LEE VALLEY CAMPSITE","SUPPLIES AND SERVICES","EQUIPMENT & MATERIALS","4111","P119245-SERVICE-Supplies walkie talkie plates cups knives for",12/9/2022 00:00:00,"266692",28.32,"AM0406","AMAZON PAYMENTS UK LIMITED",29/8/2022 00:00:00,25/9/2022 00:00:00,"P06-2023"
,"LEE VALLEY CAMPSITE","SUPPLIES AND SERVICES","EQUIPMENT & MATERIALS","4111","P119245-SERVICE-Supplies walkie talkie plates cups knives for",12/9/2022 00:00:00,"266693",24.24,"AM0406","AMAZON PAYMENTS UK LIMITED",29/8/2022 00:00:00,25/9/2022 00:00:00,"P06-2023"
,"LEE VALLEY CAMPSITE","SUPPLIES AND SERVICES","EQUIPMENT & MATERIALS","4111","P119245-SERVICE-Supplies walkie talkie plates cups knives for",12/9/2022 00:00:00,"266694",54.41,"AM0406","AMAZON PAYMENTS UK LIMITED",29/8/2022 00:00:00,25/9/2022 00:00:00,"P06-2023"
,"LEE VALLEY CAMPSITE","SUPPLIES AND SERVICES","EQUIPMENT & MATERIALS","4111","P119245-SERVICE-Sew-Supplies, Wet floor sign, Door stop,cable",12/9/2022 00:00:00,"266694",20.56,"AM0406","AMAZON PAYMENTS UK LIMITED",29/8/2022 00:00:00,25/9/2022 00:00:00,"P06-2023"
,"LEE VALLEY CAMPSITE","SUPPLIES AND SERVICES","EQUIPMENT & MATERIALS","4111","P119245-SERVICE-Sew-Supplies, Wet floor sign, Door stop,cable",12/9/2022 00:00:00,"266695",13.32,"AM0406","AMAZON PAYMENTS UK LIMITED",29/8/2022 00:00:00,25/9/2022 00:00:00,"P06-2023"
,"LEE VALLEY CAMPSITE","SUPPLIES AND SERVICES","EQUIPMENT & MATERIALS","4111","P119245-SERVICE-Sew-Supplies, Wet floor sign, Door stop,cable",12/9/2022 00:00:00,"266696",22.59,"AM0406","AMAZON PAYMENTS UK LIMITED",29/8/2022 00:00:00,25/9/2022 00:00:00,"P06-2023"
,"LEE VALLEY CAMPSITE","SUPPLIES AND SERVICES","EQUIPMENT & MATERIALS","4111","P119245-SERVICE-Sew-Supplies, Wet floor sign, Door stop,cable",12/9/2022 00:00:00,"266697",7.91,"AM0406","AMAZON PAYMENTS UK LIMITED",29/8/2022 00:00:00,25/9/2022 00:00:00,"P06-2023"
,"LEE VALLEY CAMPSITE","SUPPLIES AND SERVICES","EQUIPMENT & MATERIALS","4111","P119390-SERVICE-wire rope clip",20/9/2022 00:00:00,"266868",2.44,"BQ0164","TRADE UK ACCOUNT",29/8/2022 00:00:00,25/9/2022 00:00:00,"P06-2023"
,"LEE VALLEY CAMPSITE","SUPPLIES AND SERVICES","EQUIPMENT & MATERIALS","4111","P119390-SERVICE-Hook & Eye",20/9/2022 00:00:00,"266868",1.82,"BQ0164","TRADE UK ACCOUNT",29/8/2022 00:00:00,25/9/2022 00:00:00,"P06-2023"
,"LEE VALLEY CAMPSITE","SUPPLIES AND SERVICES","EQUIPMENT & MATERIALS","4111","P119390-SERVICE-NBS bag",20/9/2022 00:00:00,"266868",1.97,"BQ0164","TRADE UK ACCOUNT",29/8/2022 00:00:00,25/9/2022 00:00:00,"P06-2023"
,"LEE VALLEY CAMPSITE","SUPPLIES AND SERVICES","EQUIPMENT & MATERIALS","4111","P119390-SERVICE-cylinder locks",20/9/2022 00:00:00,"266868",18.6,"BQ0164","TRADE UK ACCOUNT",29/8/2022 00:00:00,25/9/2022 00:00:00,"P06-2023"
,"LEE VALLEY CAMPSITE","SUPPLIES AND SERVICES","EQUIPMENT & MATERIALS","4111","P119390-SERVICE-steel wire tape",20/9/2022 00:00:00,"266868",5.47,"BQ0164","TRADE UK ACCOUNT",29/8/2022 00:00:00,25/9/2022 00:00:00,"P06-2023"
,"LEE VALLEY CAMPSITE","SUPPLIES AND SERVICES","EQUIPMENT & MATERIALS","4111","P119390-SERVICE-delivery",20/9/2022 00:00:00,"266910",5,"BQ0164","TRADE UK ACCOUNT",29/8/2022 00:00:00,25/9/2022 00:00:00,"P06-2023"
,"LEE VALLEY CAMPSITE","SUPPLIES AND SERVICES","EQUIPMENT & MATERIALS","4111","P119390-SERVICE-Screwed Access caps",20/9/2022 00:00:00,"266910",46.79,"BQ0164","TRADE UK ACCOUNT",29/8/2022 00:00:00,25/9/2022 00:00:00,"P06-2023"
,"LEE VALLEY CAMPSITE","SUPPLIES AND SERVICES","EQUIPMENT & MATERIALS","4111","P119368-SERVICE-Stock for site, bedding and P-pods equipment",25/9/2022 00:00:00,"266947",45.03,"AM0406","AMAZON PAYMENTS UK LIMITED",29/8/2022 00:00:00,25/9/2022 00:00:00,"P06-2023"
,"LEE VALLEY CAMPSITE","SUPPLIES AND SERVICES","EQUIPMENT & MATERIALS","4111","P119368-SERVICE-Stock for site, bedding and P-pods equipment",25/9/2022 00:00:00,"266948",56.97,"AM0406","AMAZON PAYMENTS UK LIMITED",29/8/2022 00:00:00,25/9/2022 00:00:00,"P06-2023"
,"LEE VALLEY CAMPSITE","SUPPLIES AND SERVICES","EQUIPMENT & MATERIALS","4111","P119342-SERVICE-Solar lights, scoop, cable clips",25/9/2022 00:00:00,"266949",15.82,"AM0406","AMAZON PAYMENTS UK LIMITED",29/8/2022 00:00:00,25/9/2022 00:00:00,"P06-2023"
,"LEE VALLEY CAMPSITE","SUPPLIES AND SERVICES","EQUIPMENT & MATERIALS","4111","P119342-SERVICE-Solar lights, scoop, cable clips",25/9/2022 00:00:00,"266950",6.97,"AM0406","AMAZON PAYMENTS UK LIMITED",29/8/2022 00:00:00,25/9/2022 00:00:00,"P06-2023"
,"LEE VALLEY CAMPSITE","SUPPLIES AND SERVICES","EQUIPMENT & MATERIALS","4111","P119342-SERVICE-Solar lights, scoop, cable clips",25/9/2022 00:00:00,"266951",33.32,"AM0406","AMAZON PAYMENTS UK LIMITED",29/8/2022 00:00:00,25/9/2022 00:00:00,"P06-2023"
,"LEE VALLEY CAMPSITE","SUPPLIES AND SERVICES","EQUIPMENT & MATERIALS","4111","P119368-SERVICE-Stock for site, bedding and P-pods equipment",25/9/2022 00:00:00,"266952",41.58,"AM0406","AMAZON PAYMENTS UK LIMITED",29/8/2022 00:00:00,25/9/2022 00:00:00,"P06-2023"
,"LEE VALLEY CAMPSITE","SUPPLIES AND SERVICES","EQUIPMENT & MATERIALS","4111","P119225-SERVICE-CCTV ACCESS",20/9/2022 00:00:00,"267067",200,"DE0013","DENNIS SECURITY CENTRE",29/8/2022 00:00:00,25/9/2022 00:00:00,"P06-2023"
,"LEE VALLEY CAMPSITE","SUPPLIES AND SERVICES","EQUIPMENT & MATERIALS","4111","P119368-SERVICE-Stock for site, bedding and P-pods equipment",25/9/2022 00:00:00,"267084",21.22,"AM0406","AMAZON PAYMENTS UK LIMITED",29/8/2022 00:00:00,25/9/2022 00:00:00,"P06-2023"
,"LEE VALLEY CAMPSITE","SUPPLIES AND SERVICES","EQUIPMENT & MATERIALS","4111","P119368-SERVICE-Stock for site, bedding and P-pods equipment",25/9/2022 00:00:00,"267085",0.12,"AM0406","AMAZON PAYMENTS UK LIMITED",29/8/2022 00:00:00,25/9/2022 00:00:00,"P06-2023"
,"LEE VALLEY CARAVAN PARK","SUPPLIES AND SERVICES","EQUIPMENT & MATERIALS","4111","P118948-SERVICE-6 liter exchange/low frezze Additive",25/9/2022 00:00:00,"266714",231.76,"TJ0009","T.J.FIRE & SECURITY",29/8/2022 00:00:00,25/9/2022 00:00:00,"P06-2023"
,"LEE VALLEY CARAVAN PARK","SUPPLIES AND SERVICES","EQUIPMENT & MATERIALS","4111","P119401-SERVICE-Toilet seats, brown felt",20/9/2022 00:00:00,"267057",51.12,"BQ0164","TRADE UK ACCOUNT",29/8/2022 00:00:00,25/9/2022 00:00:00,"P06-2023"
,"LEE VALLEY CARAVAN PARK","SUPPLIES AND SERVICES","EQUIPMENT & MATERIALS","4111","P119368-SERVICE-Stock for P-pods Dobbs",25/9/2022 00:00:00,"267085",41.7,"AM0406","AMAZON PAYMENTS UK LIMITED",29/8/2022 00:00:00,25/9/2022 00:00:00,"P06-2023"
,"LEE VALLEY CARAVAN PARK","SUPPLIES AND SERVICES","EQUIPMENT & MATERIALS","4111","P119368-SERVICE-Stock for P-pods Dobbs",25/9/2022 00:00:00,"267086",41.82,"AM0406","AMAZON PAYMENTS UK LIMITED",29/8/2022 00:00:00,25/9/2022 00:00:00,"P06-2023"
,"LEE VALLEY CARAVAN PARK","SUPPLIES AND SERVICES","EQUIPMENT & MATERIALS","4111","P119368-SERVICE-Stock for P-pods Dobbs",25/9/2022 00:00:00,"267087",38.84,"AM0406","AMAZON PAYMENTS UK LIMITED",29/8/2022 00:00:00,25/9/2022 00:00:00,"P06-2023"
,"LEE VALLEY CARAVAN PARK","SUPPLIES AND SERVICES","EQUIPMENT & MATERIALS","4111","P119368-SERVICE-Stock for P-pods Dobbs",25/9/2022 00:00:00,"267121",40.44,"AM0406","AMAZON PAYMENTS UK LIMITED",29/8/2022 00:00:00,25/9/2022 00:00:00,"P06-2023"
,"LEE VALLEY CARAVAN PARK","SUPPLIES AND SERVICES","EQUIPMENT & MATERIALS","4111","P119368-SERVICE-Stock for P-pods Dobbs",25/9/2022 00:00:00,"267131",20.22,"AM0406","AMAZON PAYMENTS UK LIMITED",29/8/2022 00:00:00,25/9/2022 00:00:00,"P06-2023"
,"LEE VALLEY CARAVAN PARK","SUPPLIES AND SERVICES","EQUIPMENT & MATERIALS","4111","P119368-SERVICE-Stock for P-pods Dobbs",25/9/2022 00:00:00,"267132",20.22,"AM0406","AMAZON PAYMENTS UK LIMITED",29/8/2022 00:00:00,25/9/2022 00:00:00,"P06-2023"
,"LEE VALLEY CARAVAN PARK","SUPPLIES AND SERVICES","EQUIPMENT & MATERIALS","4111","P119368-SERVICE-Stock for P-pods Dobbs",25/9/2022 00:00:00,"267133",20.22,"AM0406","AMAZON PAYMENTS UK LIMITED",29/8/2022 00:00:00,25/9/2022 00:00:00,"P06-2023"
,"LEE VALLEY CARAVAN PARK","SUPPLIES AND SERVICES","EQUIPMENT & MATERIALS","4111","P119368-SERVICE-Stock for P-pods Dobbs",25/9/2022 00:00:00,"267134",20.22,"AM0406","AMAZON PAYMENTS UK LIMITED",29/8/2022 00:00:00,25/9/2022 00:00:00,"P06-2023"
"P&V","MYDDELTON HOUSE GARDENS","SUPPLIES AND SERVICES","EQUIPMENT & MATERIALS","4111","P119087-SERVICE-Blue Nitrile Gloves DWGL385 x 4 boxes",1/9/2022 00:00:00,"266486",51.01,"DI0017","DIRECT BOOT & SHOE SUPPLIES",29/8/2022 00:00:00,25/9/2022 00:00:00,"P06-2023"
"P&V","MYDDELTON HOUSE GARDENS","SUPPLIES AND SERVICES","EQUIPMENT & MATERIALS","4111","P119087-SERVICE-MS629 Black Grab & Grip Gloves size 9 x 15",1/9/2022 00:00:00,"266486",9.9,"DI0017","DIRECT BOOT & SHOE SUPPLIES",29/8/2022 00:00:00,25/9/2022 00:00:00,"P06-2023"
"P&V","MYDDELTON HOUSE GARDENS","SUPPLIES AND SERVICES","EQUIPMENT & MATERIALS","4111","P119317-SERVICE-gardens supplies",20/9/2022 00:00:00,"266913",149.04,"SC0057","SCREWFIX DIRECT LTD",29/8/2022 00:00:00,25/9/2022 00:00:00,"P06-2023"
"P&V","SOUTH AREA RANGERS","SUPPLIES AND SERVICES","EQUIPMENT & MATERIALS","4111","P119164-SERVICE-5x Bulldog Premier Hay Rakes",6/9/2022 00:00:00,"266474",202.5,"JO0109","F R JONES & SON",29/8/2022 00:00:00,25/9/2022 00:00:00,"P06-2023"
"P&V","VOLUNTEERS (L&E)","SUPPLIES AND SERVICES","EQUIPMENT & MATERIALS","4111","P119279-SERVICE-Q-Connect A4 Laminating Pouch 125x2",13/9/2022 00:00:00,"266877",20.75,"TH0008","JKL SOLUTIONS LTD",29/8/2022 00:00:00,25/9/2022 00:00:00,"P06-2023"
,"LV LEISURE CENTRE CAMPSITE","SUPPLIES AND SERVICES","EQUIPMENT & MATERIALS","4111","P119083-SERVICE-Maintenance supplies",6/9/2022 00:00:00,"265420",-22.5,"BQ0164","TRADE UK ACCOUNT",29/8/2022 00:00:00,25/9/2022 00:00:00,"P06-2023"
,"LV LEISURE CENTRE CAMPSITE","SUPPLIES AND SERVICES","EQUIPMENT & MATERIALS","4111","P119105-SERVICE-poles and lock",6/9/2022 00:00:00,"266233",40,"BQ0164","TRADE UK ACCOUNT",29/8/2022 00:00:00,25/9/2022 00:00:00,"P06-2023"
,"LV LEISURE CENTRE CAMPSITE","SUPPLIES AND SERVICES","EQUIPMENT & MATERIALS","4111","P119100-SERVICE-8x toilet seats",1/9/2022 00:00:00,"266234",213.33,"BQ0164","TRADE UK ACCOUNT",29/8/2022 00:00:00,25/9/2022 00:00:00,"P06-2023"
,"LV LEISURE CENTRE CAMPSITE","SUPPLIES AND SERVICES","EQUIPMENT & MATERIALS","4111","P119340-SERVICE-Timber and materials",22/9/2022 00:00:00,"266705",154.78,"BQ0164","TRADE UK ACCOUNT",29/8/2022 00:00:00,25/9/2022 00:00:00,"P06-2023"
,"LV LEISURE CENTRE CAMPSITE","SUPPLIES AND SERVICES","EQUIPMENT & MATERIALS","4111","P119339-SERVICE-Featheredge fence panels",22/9/2022 00:00:00,"266706",568.75,"BQ0164","TRADE UK ACCOUNT",29/8/2022 00:00:00,25/9/2022 00:00:00,"P06-2023"
,"LV LEISURE CENTRE CAMPSITE","SUPPLIES AND SERVICES","EQUIPMENT & MATERIALS","4111","P119476-SERVICE-Maintenance supplies",25/9/2022 00:00:00,"266707",152.22,"BQ0164","TRADE UK ACCOUNT",29/8/2022 00:00:00,25/9/2022 00:00:00,"P06-2023"
,"LV LEISURE CENTRE CAMPSITE","SUPPLIES AND SERVICES","EQUIPMENT & MATERIALS","4111","P119338-SERVICE-Maintenance supplies",22/9/2022 00:00:00,"266708",88.55,"BQ0164","TRADE UK ACCOUNT",29/8/2022 00:00:00,25/9/2022 00:00:00,"P06-2023"
,"LV LEISURE CENTRE CAMPSITE","SUPPLIES AND SERVICES","EQUIPMENT & MATERIALS","4111","P119332-SERVICE-Fence posts",22/9/2022 00:00:00,"266878",140,"BQ0164","TRADE UK ACCOUNT",29/8/2022 00:00:00,25/9/2022 00:00:00,"P06-2023"
,"LV LEISURE CENTRE CAMPSITE","SUPPLIES AND SERVICES","EQUIPMENT & MATERIALS","4111","P119478-SERVICE-Cocoon materials",25/9/2022 00:00:00,"266911",9.03,"BQ0164","TRADE UK ACCOUNT",29/8/2022 00:00:00,25/9/2022 00:00:00,"P06-2023"
,"LV LEISURE CENTRE CAMPSITE","SUPPLIES AND SERVICES","EQUIPMENT & MATERIALS","4111","P119482-SERVICE-bags and hollow well anchor",25/9/2022 00:00:00,"266912",23.43,"BQ0164","TRADE UK ACCOUNT",29/8/2022 00:00:00,25/9/2022 00:00:00,"P06-2023"
,"LV LEISURE CENTRE CAMPSITE","SUPPLIES AND SERVICES","EQUIPMENT & MATERIALS","4111","P119332-SERVICE-Fence posts",22/9/2022 00:00:00,"267055",-140,"BQ0164","TRADE UK ACCOUNT",29/8/2022 00:00:00,25/9/2022 00:00:00,"P06-2023"
,"LV LEISURE CENTRE CAMPSITE","SUPPLIES AND SERVICES","EQUIPMENT & MATERIALS","4111","P119339-SERVICE-Featheredge fence panels",22/9/2022 00:00:00,"267056",-113.75,"BQ0164","TRADE UK ACCOUNT",29/8/2022 00:00:00,25/9/2022 00:00:00,"P06-2023"
,"LV LEISURE CENTRE CAMPSITE","SUPPLIES AND SERVICES","EQUIPMENT & MATERIALS","4111","P119485-SERVICE-Posts for fencing",25/9/2022 00:00:00,"267096",132,"BQ0164","TRADE UK ACCOUNT",29/8/2022 00:00:00,25/9/2022 00:00:00,"P06-2023"
,"LV LEISURE CENTRE CAMPSITE","SUPPLIES AND SERVICES","EQUIPMENT & MATERIALS","4111","P119049-SERVICE-Edmonton Hook up cables, pegs and mats",25/9/2022 00:00:00,"267252",14.83,"AM0406","AMAZON PAYMENTS UK LIMITED",29/8/2022 00:00:00,25/9/2022 00:00:00,"P06-2023"
,"LV LEISURE CENTRE GOLF COURSE","SUPPLIES AND SERVICES","EQUIPMENT & MATERIALS","4111","P119438-SERVICE-Fairway mower",22/9/2022 00:00:00,"267242",45.78,"LE0279","REESINK TURFCARE UK LIMITED",29/8/2022 00:00:00,25/9/2022 00:00:00,"P06-2023"
,"LV LEISURE CENTRE GOLF COURSE","SUPPLIES AND SERVICES","EQUIPMENT & MATERIALS","4111","P119438-SERVICE-Fairway mower",25/9/2022 00:00:00,"267258",45.78,"LE0279","REESINK TURFCARE UK LIMITED",29/8/2022 00:00:00,25/9/2022 00:00:00,"P06-2023"
,"LEE VALLEY CAMPSITE","SUPPLIES AND SERVICES","EQUIPMENT MAINTENANCE","4112","P119150-SERVICE-A Block boiler repairs",1/9/2022 00:00:00,"266448",660,"SO0400","SOUTHERN GREEN SERVICES LIMITED",29/8/2022 00:00:00,25/9/2022 00:00:00,"P06-2023"
,"LEE VALLEY CAMPSITE","SUPPLIES AND SERVICES","EQUIPMENT MAINTENANCE","4112","P119153-SERVICE-Mens A block urinals",1/9/2022 00:00:00,"266449",230,"SO0400","SOUTHERN GREEN SERVICES LIMITED",29/8/2022 00:00:00,25/9/2022 00:00:00,"P06-2023"
,"LEE VALLEY CAMPSITE","SUPPLIES AND SERVICES","EQUIPMENT MAINTENANCE","4112","P119155-SERVICE-Mens A block Shower repairs",1/9/2022 00:00:00,"266450",185,"SO0400","SOUTHERN GREEN SERVICES LIMITED",29/8/2022 00:00:00,25/9/2022 00:00:00,"P06-2023"
,"LEE VALLEY CAMPSITE","SUPPLIES AND SERVICES","EQUIPMENT MAINTENANCE","4112","P119156-SERVICE-B Block no hot water",1/9/2022 00:00:00,"266452",100,"SO0400","SOUTHERN GREEN SERVICES LIMITED",29/8/2022 00:00:00,25/9/2022 00:00:00,"P06-2023"
,"LEE VALLEY CAMPSITE","SUPPLIES AND SERVICES","EQUIPMENT MAINTENANCE","4112","P119158-SERVICE-Ladies B Block leaking WC",1/9/2022 00:00:00,"266454",340,"SO0400","SOUTHERN GREEN SERVICES LIMITED",29/8/2022 00:00:00,25/9/2022 00:00:00,"P06-2023"
,"LEE VALLEY CAMPSITE","SUPPLIES AND SERVICES","EQUIPMENT MAINTENANCE","4112","P119163-SERVICE-Ladies B Block leaking WC",1/9/2022 00:00:00,"266459",80,"SO0400","SOUTHERN GREEN SERVICES LIMITED",29/8/2022 00:00:00,25/9/2022 00:00:00,"P06-2023"
,"LEE VALLEY CAMPSITE","SUPPLIES AND SERVICES","EQUIPMENT MAINTENANCE","4112","P119228-SERVICE-power failure cocoons - reset RCD Tunnel A",12/9/2022 00:00:00,"266535",180,"BR0018","BRADSHAW ELECTRICAL LIMITED",29/8/2022 00:00:00,25/9/2022 00:00:00,"P06-2023"
,"LEE VALLEY CAMPSITE","SUPPLIES AND SERVICES","EQUIPMENT MAINTENANCE","4112","P119228-SERVICE-Robin  no hot water",12/9/2022 00:00:00,"266536",180,"BR0018","BRADSHAW ELECTRICAL LIMITED",29/8/2022 00:00:00,25/9/2022 00:00:00,"P06-2023"
,"LEE VALLEY CAMPSITE","SUPPLIES AND SERVICES","EQUIPMENT MAINTENANCE","4112","P119228-SERVICE- hook up with no power - switch on main",12/9/2022 00:00:00,"266537",80,"BR0018","BRADSHAW ELECTRICAL LIMITED",29/8/2022 00:00:00,25/9/2022 00:00:00,"P06-2023"
,"LEE VALLEY CAMPSITE","SUPPLIES AND SERVICES","EQUIPMENT MAINTENANCE","4112","P119494-SERVICE-Site Equipment PAT Testing",25/9/2022 00:00:00,"267260",450,"BR0018","BRADSHAW ELECTRICAL LIMITED",29/8/2022 00:00:00,25/9/2022 00:00:00,"P06-2023"
,"LEE VALLEY CAMPSITE","SUPPLIES AND SERVICES","EQUIPMENT MAINTENANCE","4112","P119418-SERVICE-Repair to Torro",25/9/2022 00:00:00,"267265",648,"GE0440","GTEC'S",29/8/2022 00:00:00,25/9/2022 00:00:00,"P06-2023"
,"LEE VALLEY CAMPSITE","SUPPLIES AND SERVICES","EQUIPMENT MAINTENANCE","4112","P118259-SERVICE-STAFF CARAVAN 1",25/9/2022 00:00:00,"267299",200,"SO0400","SOUTHERN GREEN SERVICES LIMITED",29/8/2022 00:00:00,25/9/2022 00:00:00,"P06-2023"
,"LEE VALLEY CARAVAN PARK","SUPPLIES AND SERVICES","EQUIPMENT MAINTENANCE","4112","P119251-SERVICE-New blades and belt on Kubota",13/9/2022 00:00:00,"266927",498.75,"GE0440","GTEC'S",29/8/2022 00:00:00,25/9/2022 00:00:00,"P06-2023"
,"LEE VALLEY CARAVAN PARK","SUPPLIES AND SERVICES","EQUIPMENT MAINTENANCE","4112","P119247-SERVICE-Weld collector on Kubota",13/9/2022 00:00:00,"266928",407,"GE0440","GTEC'S",29/8/2022 00:00:00,25/9/2022 00:00:00,"P06-2023"
,"LEE VALLEY CARAVAN PARK","SUPPLIES AND SERVICES","EQUIPMENT MAINTENANCE","4112","P119397-SERVICE-Hot tub service",20/9/2022 00:00:00,"267116",999.08,"RO0327","ROTOSPA",29/8/2022 00:00:00,25/9/2022 00:00:00,"P06-2023"
,"LEE VALLEY CARAVAN PARK","SUPPLIES AND SERVICES","EQUIPMENT MAINTENANCE","4112","P119481-SERVICE-Hot tub readings",25/9/2022 00:00:00,"267168",339.71,"KI0090","KINGFISHER ENVIRONMENTAL SERVICES LTD",29/8/2022 00:00:00,25/9/2022 00:00:00,"P06-2023"
,"LEE VALLEY CARAVAN PARK","SUPPLIES AND SERVICES","EQUIPMENT MAINTENANCE","4112","P119483-SERVICE-Monthly Contract cost",25/9/2022 00:00:00,"267239",82.5,"KI0090","KINGFISHER ENVIRONMENTAL SERVICES LTD",29/8/2022 00:00:00,25/9/2022 00:00:00,"P06-2023"
"P&V","MYDDELTON HOUSE GARDENS","SUPPLIES AND SERVICES","EQUIPMENT MAINTENANCE","4112","P119215-SERVICE-Kubota G23-2 lawn mower repairs",22/9/2022 00:00:00,"266888",250,"BR0143","GEORGE BROWNS LTD",29/8/2022 00:00:00,25/9/2022 00:00:00,"P06-2023"
"P&V","SOUTH AREA RANGERS","SUPPLIES AND SERVICES","EQUIPMENT MAINTENANCE","4112","P118508-SERVICE-Repair Brush Cutter",25/9/2022 00:00:00,"267276",65,"AP0245","APS LIMITED",29/8/2022 00:00:00,25/9/2022 00:00:00,"P06-2023"
"P&V","ABBEY GARDENS","SUPPLIES AND SERVICES","EQUIPMENT MAINTENANCE","4112","P118799-SERVICE-Replace Light at WAG",7/9/2022 00:00:00,"265849",95,"BR0018","BRADSHAW ELECTRICAL LIMITED",29/8/2022 00:00:00,25/9/2022 00:00:00,"P06-2023"
"P&V","ABBEY GARDENS","SUPPLIES AND SERVICES","EQUIPMENT MAINTENANCE","4112","P118799-SERVICE-Replace Light at WAG",7/9/2022 00:00:00,"266738",-95,"BR0018","BRADSHAW ELECTRICAL LIMITED",29/8/2022 00:00:00,25/9/2022 00:00:00,"P06-2023"
"P&V","RIVER LEE COUNTRY PARK","SUPPLIES AND SERVICES","EQUIPMENT MAINTENANCE","4112","P119321-SERVICE-1x Duplex Cutter Bar - 59058639t",25/9/2022 00:00:00,"267277",134.8,"TR0039","TRACMASTER LTD",29/8/2022 00:00:00,25/9/2022 00:00:00,"P06-2023"
"P&V","RIVER LEE COUNTRY PARK","SUPPLIES AND SERVICES","EQUIPMENT MAINTENANCE","4112","P119321-SERVICE-1x Cuttter Bar - 590.48906",25/9/2022 00:00:00,"267277",130.8,"TR0039","TRACMASTER LTD",29/8/2022 00:00:00,25/9/2022 00:00:00,"P06-2023"
"P&V","RIVER LEE COUNTRY PARK","SUPPLIES AND SERVICES","EQUIPMENT MAINTENANCE","4112","P119321-SERVICE-6x Screw M8x1x12 10.9 - 58058659",25/9/2022 00:00:00,"267277",6,"TR0039","TRACMASTER LTD",29/8/2022 00:00:00,25/9/2022 00:00:00,"P06-2023"
"P&V","RIVER LEE COUNTRY PARK","SUPPLIES AND SERVICES","EQUIPMENT MAINTENANCE","4112","P119321-SERVICE-Delivery",25/9/2022 00:00:00,"267277",7.95,"TR0039","TRACMASTER LTD",29/8/2022 00:00:00,25/9/2022 00:00:00,"P06-2023"
,"LV LEISURE CENTRE CAMPSITE","SUPPLIES AND SERVICES","EQUIPMENT MAINTENANCE","4112","P119258-SERVICE-gloves and metal",12/9/2022 00:00:00,"266288",51.9,"BQ0164","TRADE UK ACCOUNT",29/8/2022 00:00:00,25/9/2022 00:00:00,"P06-2023"
,"LV LEISURE CENTRE CAMPSITE","SUPPLIES AND SERVICES","EQUIPMENT MAINTENANCE","4112","P119260-SERVICE-general purpose spray",12/9/2022 00:00:00,"266507",5.93,"BQ0164","TRADE UK ACCOUNT",29/8/2022 00:00:00,25/9/2022 00:00:00,"P06-2023"
,"LV LEISURE CENTRE CAMPSITE","SUPPLIES AND SERVICES","EQUIPMENT MAINTENANCE","4112","P119259-SERVICE-duck tape brushes and insect spray",12/9/2022 00:00:00,"266552",32.45,"BQ0164","TRADE UK ACCOUNT",29/8/2022 00:00:00,25/9/2022 00:00:00,"P06-2023"
,"LV LEISURE CENTRE CAMPSITE","SUPPLIES AND SERVICES","EQUIPMENT MAINTENANCE","4112","P119196-SERVICE-Compactor engineer attendance",1/9/2022 00:00:00,"266555",260.7,"PD0171","PDE WASTE TECHNOLOGIES",29/8/2022 00:00:00,25/9/2022 00:00:00,"P06-2023"
,"LV LEISURE CENTRE CAMPSITE","SUPPLIES AND SERVICES","EQUIPMENT MAINTENANCE","4112","P119197-SERVICE-Compactor service",6/9/2022 00:00:00,"266680",239.58,"PD0171","PDE WASTE TECHNOLOGIES",29/8/2022 00:00:00,25/9/2022 00:00:00,"P06-2023"
,"LV LEISURE CENTRE CAMPSITE","SUPPLIES AND SERVICES","EQUIPMENT MAINTENANCE","4112","P119334-SERVICE-Brake shoes",22/9/2022 00:00:00,"266749",29.04,"DO0027","ERNEST DOE & SONS LTD",29/8/2022 00:00:00,25/9/2022 00:00:00,"P06-2023"
,"LV LEISURE CENTRE CAMPSITE","SUPPLIES AND SERVICES","EQUIPMENT MAINTENANCE","4112","P119484-SERVICE-Barrier arm and motor repair",25/9/2022 00:00:00,"266958",160,"DE0013","DENNIS SECURITY CENTRE",29/8/2022 00:00:00,25/9/2022 00:00:00,"P06-2023"
,"LV LEISURE CENTRE GOLF COURSE","SUPPLIES AND SERVICES","EQUIPMENT MAINTENANCE","4112","P119456-SERVICE-Faulty Decoders and Coil",25/9/2022 00:00:00,"266337",1094.5,"SJ0635","SJS IRRIGATION",29/8/2022 00:00:00,25/9/2022 00:00:00,"P06-2023"
"R&B","INFORMATION TECHNOLOGY","SUPPLIES AND SERVICES","IT CORE SYSTEMS","4113","P118752-SERVICE-Managed Fee 14 Sept -13 Oct  22",21/9/2022 00:00:00,"265198",1333.47,"CE0021","ADVANCED BUSINESS SOLUTIONS",29/8/2022 00:00:00,25/9/2022 00:00:00,"P06-2023"
"R&B","INFORMATION TECHNOLOGY","SUPPLIES AND SERVICES","IT CORE SYSTEMS","4113","P119204-SERVICE-CIPHR SaaS - 5 year Annual Subscription to 29",12/9/2022 00:00:00,"266521",31940,"CI0721","CIPHR",29/8/2022 00:00:00,25/9/2022 00:00:00,"P06-2023"
"R&B","INFORMATION TECHNOLOGY","SUPPLIES AND SERVICES","IT CORE SYSTEMS","4113","P119429-SERVICE-Business Tax Portal Base Edition (12 VAT Retu",21/9/2022 00:00:00,"266547",1292.3,"CE0021","ADVANCED BUSINESS SOLUTIONS",29/8/2022 00:00:00,25/9/2022 00:00:00,"P06-2023"
"R&B","INFORMATION TECHNOLOGY","SUPPLIES AND SERVICES","IT CORE SYSTEMS","4113","P119269-SERVICE-CIPHR Payroll Oct 2022",7/9/2022 00:00:00,"266678",542.44,"CI0721","CIPHR",29/8/2022 00:00:00,25/9/2022 00:00:00,"P06-2023"
"R&B","INFORMATION TECHNOLOGY","SUPPLIES AND SERVICES","IT CORE SYSTEMS","4113","P119439-SERVICE-Monthly fees PAYware Ocius Pos",22/9/2022 00:00:00,"267139",351,"CO0440","VERIFONE SERVICES UK & IRELAND LTD",29/8/2022 00:00:00,25/9/2022 00:00:00,"P06-2023"
"R&B","INFORMATION TECHNOLOGY","SUPPLIES AND SERVICES","IT CORE SYSTEMS","4113","P119437-SERVICE-Managed Fee 14 Nov - 13 Dec  22",22/9/2022 00:00:00,"267142",1333.47,"CE0021","ADVANCED BUSINESS SOLUTIONS",29/8/2022 00:00:00,25/9/2022 00:00:00,"P06-2023"
"R&B","INFORMATION TECHNOLOGY","SUPPLIES AND SERVICES","IT NETWORK & TELECOMS COSTS","4114","P117871-SERVICE-Monthly SIP Apr 22-Mar 23",7/9/2022 00:00:00,"266663",146.12,"FR0131","VOICEFLEX LTD",29/8/2022 00:00:00,25/9/2022 00:00:00,"P06-2023"
"R&B","INFORMATION TECHNOLOGY","SUPPLIES AND SERVICES","IT NETWORK & TELECOMS COSTS","4114","P119289-SERVICE-MPLS for all sites Sept 22",7/9/2022 00:00:00,"266711",9605.86,"PP0200","PPSNET LIMITED",29/8/2022 00:00:00,25/9/2022 00:00:00,"P06-2023"
,"LEE VALLEY CARAVAN PARK","SUPPLIES AND SERVICES","IT NETWORK & TELECOMS COSTS","4114","MY O2",6/9/2022 00:00:00,"266532",60.3,"O20134","MY O2",29/8/2022 00:00:00,25/9/2022 00:00:00,"P06-2023"
,"LEE VALLEY CARAVAN PARK","SUPPLIES AND SERVICES","IT NETWORK & TELECOMS COSTS","4114","MY O2",25/9/2022 00:00:00,"267351",60.3,"O20134","MY O2",29/8/2022 00:00:00,25/9/2022 00:00:00,"P06-2023"
"CEO","CHIEF EXECUTIVE","SUPPLIES AND SERVICES","IT HARDWARE & SOFTWARE COSTS","4116","P119127-SERVICE-iPhone 11",6/9/2022 00:00:00,"266499",360,"VO0010","VODAFONE  LIMITED (CORPORATE)",29/8/2022 00:00:00,25/9/2022 00:00:00,"P06-2023"
"P&V","MYDDELTON HOUSE","SUPPLIES AND SERVICES","IT HARDWARE & SOFTWARE COSTS","4116","ZEN INTERNET LTD",6/9/2022 00:00:00,"266540",29.5,"ZE0007","ZEN INTERNET LTD",29/8/2022 00:00:00,25/9/2022 00:00:00,"P06-2023"
"P&V","MYDDELTON HOUSE","SUPPLIES AND SERVICES","IT HARDWARE & SOFTWARE COSTS","4116","ZEN INTERNET LTD",22/9/2022 00:00:00,"266975",42,"ZE0007","ZEN INTERNET LTD",29/8/2022 00:00:00,25/9/2022 00:00:00,"P06-2023"
"P&V","MYDDELTON HOUSE","SUPPLIES AND SERVICES","IT HARDWARE & SOFTWARE COSTS","4116","ZEN INTERNET LTD",25/9/2022 00:00:00,"267355",29.5,"ZE0007","ZEN INTERNET LTD",29/8/2022 00:00:00,25/9/2022 00:00:00,"P06-2023"
"R&B","INFORMATION TECHNOLOGY","SUPPLIES AND SERVICES","IT HARDWARE & SOFTWARE COSTS","4116","P119113-SERVICE-Single Incident Parts Only for Battery (FRU)",13/9/2022 00:00:00,"266889",46.57,"DE0011","DELL COMPUTER CORPORATION LTD",29/8/2022 00:00:00,25/9/2022 00:00:00,"P06-2023"
,"LEE VALLEY MARINA SPRINGFIELD","SUPPLIES AND SERVICES","IT HARDWARE & SOFTWARE COSTS","4116","KONICA MINOLTA BUSINESS SOLUTI",1/9/2022 00:00:00,"266545",46.62,"KO0071","KONICA MINOLTA BUSINESS SOLUTIONS ( UK) LTD",29/8/2022 00:00:00,25/9/2022 00:00:00,"P06-2023"
,"LEE VALLEY MARINA SPRINGFIELD","SUPPLIES AND SERVICES","IT HARDWARE & SOFTWARE COSTS","4116","P119328-SERVICE-Annual Service Maintenance Fee Sept",12/9/2022 00:00:00,"266866",139.26,"WI0209","WIFI SPARK LIMITED",29/8/2022 00:00:00,25/9/2022 00:00:00,"P06-2023"
,"LEE VALLEY MARINA SPRINGFIELD","SUPPLIES AND SERVICES","IT HARDWARE & SOFTWARE COSTS","4116","ZEN INTERNET LTD",22/9/2022 00:00:00,"266976",38,"ZE0007","ZEN INTERNET LTD",29/8/2022 00:00:00,25/9/2022 00:00:00,"P06-2023"
,"LEE VALLEY MARINA STANSTEAD","SUPPLIES AND SERVICES","IT HARDWARE & SOFTWARE COSTS","4116","P119328-SERVICE-Annual Service Maintenance Fee Sept Stanstead",12/9/2022 00:00:00,"266866",218.36,"WI0209","WIFI SPARK LIMITED",29/8/2022 00:00:00,25/9/2022 00:00:00,"P06-2023"
,"LEE VALLEY MARINA STANSTEAD","SUPPLIES AND SERVICES","IT HARDWARE & SOFTWARE COSTS","4116","ZEN INTERNET LTD",22/9/2022 00:00:00,"267048",31.32,"ZE0007","ZEN INTERNET LTD",29/8/2022 00:00:00,25/9/2022 00:00:00,"P06-2023"
,"LEE VALLEY CAMPSITE","SUPPLIES AND SERVICES","IT HARDWARE & SOFTWARE COSTS","4116","P119328-SERVICE-Annual Service Maintenance Fee Sept",12/9/2022 00:00:00,"266866",218.92,"WI0209","WIFI SPARK LIMITED",29/8/2022 00:00:00,25/9/2022 00:00:00,"P06-2023"
,"LEE VALLEY CARAVAN PARK","SUPPLIES AND SERVICES","IT HARDWARE & SOFTWARE COSTS","4116","P119287-SERVICE-Fibre Connection July to Sept 22",12/9/2022 00:00:00,"266712",2505,"PP0200","PPSNET LIMITED",29/8/2022 00:00:00,25/9/2022 00:00:00,"P06-2023"
,"LEE VALLEY CARAVAN PARK","SUPPLIES AND SERVICES","IT HARDWARE & SOFTWARE COSTS","4116","P119328-SERVICE-Annual Service Maintenance Fee Sept",12/9/2022 00:00:00,"266866",310.65,"WI0209","WIFI SPARK LIMITED",29/8/2022 00:00:00,25/9/2022 00:00:00,"P06-2023"
"P&V","POLICY & PERFORMANCE (L&E)","SUPPLIES AND SERVICES","IT HARDWARE & SOFTWARE COSTS","4116","P119270-SERVICE-iPhone 11 (White)",13/9/2022 00:00:00,"266923",360,"VO0010","VODAFONE  LIMITED (CORPORATE)",29/8/2022 00:00:00,25/9/2022 00:00:00,"P06-2023"
,"LV LEISURE CENTRE CAMPSITE","SUPPLIES AND SERVICES","IT HARDWARE & SOFTWARE COSTS","4116","P119328-SERVICE-Annual Service Maintenance Fee Sept",12/9/2022 00:00:00,"266866",163.42,"WI0209","WIFI SPARK LIMITED",29/8/2022 00:00:00,25/9/2022 00:00:00,"P06-2023"
,"LEE VALLEY MARINA SPRINGFIELD","SUPPLIES AND SERVICES","IT MAINTENANCE AGREEMENTS","4119","P119299-SERVICE-Support & Data August 22",12/9/2022 00:00:00,"266681",80.26,"CY0653","CYBERTILL",29/8/2022 00:00:00,25/9/2022 00:00:00,"P06-2023"
,"LEE VALLEY MARINA STANSTEAD","SUPPLIES AND SERVICES","IT MAINTENANCE AGREEMENTS","4119","P119299-SERVICE-Support & Data August 22",12/9/2022 00:00:00,"266681",80.27,"CY0653","CYBERTILL",29/8/2022 00:00:00,25/9/2022 00:00:00,"P06-2023"
,"LEE VALLEY CAMPSITE","SUPPLIES AND SERVICES","IT MAINTENANCE AGREEMENTS","4119","P117645-SERVICE-Monthly Subscription May 22 - Oct 22",22/9/2022 00:00:00,"266967",145.5,"NE0218","NETGUIDES LIMITED",29/8/2022 00:00:00,25/9/2022 00:00:00,"P06-2023"
,"LEE VALLEY CARAVAN PARK","SUPPLIES AND SERVICES","IT MAINTENANCE AGREEMENTS","4119","P117645-SERVICE-Monthly Subscriptions May 22 - Oct 22 - Dobbs",22/9/2022 00:00:00,"266967",145.5,"NE0218","NETGUIDES LIMITED",29/8/2022 00:00:00,25/9/2022 00:00:00,"P06-2023"
"P&V","ALMOST WILD CAMPSITE","SUPPLIES AND SERVICES","IT MAINTENANCE AGREEMENTS","4119","P117645-SERVICE-Monthly Subscription May 22 - Oct 22",22/9/2022 00:00:00,"266967",145.5,"NE0218","NETGUIDES LIMITED",29/8/2022 00:00:00,25/9/2022 00:00:00,"P06-2023"
,"LV LEISURE CENTRE CAMPSITE","SUPPLIES AND SERVICES","IT MAINTENANCE AGREEMENTS","4119","P117645-SERVICE-Monthly Subscription May 22 - Oct 22 - Edmont",22/9/2022 00:00:00,"266967",145.5,"NE0218","NETGUIDES LIMITED",29/8/2022 00:00:00,25/9/2022 00:00:00,"P06-2023"
,"LV LEISURE CENTRE CAMPSITE","EXPENDITURE FROM RENEWALS FUND","EXPENDITURE FROM RENEWALS FUND","4121","P119261-SERVICE-wifi nodes 1 2 and 3",12/9/2022 00:00:00,"266533",95,"BR0018","BRADSHAW ELECTRICAL LIMITED",29/8/2022 00:00:00,25/9/2022 00:00:00,"P06-2023"
,"LV LEISURE CENTRE CAMPSITE","EXPENDITURE FROM RENEWALS FUND","EXPENDITURE FROM RENEWALS FUND","4121","P119262-SERVICE-light replacement",12/9/2022 00:00:00,"266534",420,"BR0018","BRADSHAW ELECTRICAL LIMITED",29/8/2022 00:00:00,25/9/2022 00:00:00,"P06-2023"
"P&V","MYDDELTON HOUSE GARDENS","SUPPLIES AND SERVICES","MATERIALS (COUNTERS)","4123","P118976-SERVICE-Foamex panel",14/9/2022 00:00:00,"266478",30,"SI0024","SIGNS EXPRESS (HARLOW)",29/8/2022 00:00:00,25/9/2022 00:00:00,"P06-2023"
"P&V","SOUTH AREA RANGERS","SUPPLIES AND SERVICES","MATERIALS (LOCKS)","4124","P118909-SERVICE-9x ASSA Lock Barrels",1/9/2022 00:00:00,"266522",469.36,"LO0020","LOCK AND KEY SERVICES",29/8/2022 00:00:00,25/9/2022 00:00:00,"P06-2023"
"P&V","SOUTH AREA RANGERS","SUPPLIES AND SERVICES","MATERIALS (LOCKS)","4124","P118909-SERVICE-3x ASSA TXM Keys",1/9/2022 00:00:00,"266522",40.15,"LO0020","LOCK AND KEY SERVICES",29/8/2022 00:00:00,25/9/2022 00:00:00,"P06-2023"
"P&V","SOUTH AREA RANGERS","SUPPLIES AND SERVICES","MATERIALS (LOCKS)","4124","P118909-SERVICE-Delivery",1/9/2022 00:00:00,"266522",10,"LO0020","LOCK AND KEY SERVICES",29/8/2022 00:00:00,25/9/2022 00:00:00,"P06-2023"
"P&V","SOUTH AREA RANGERS","SUPPLIES AND SERVICES","MATERIALS (LOCKS)","4124","P118909-SERVICE-10x ASSA Standard Lock Bodies",1/9/2022 00:00:00,"266522",336.49,"LO0020","LOCK AND KEY SERVICES",29/8/2022 00:00:00,25/9/2022 00:00:00,"P06-2023"
"P&V","SOUTH AREA RANGERS","SUPPLIES AND SERVICES","MATERIALS (LOCKS)","4124","P118888-SERVICE-10x Squire Steel Combi Locks",12/9/2022 00:00:00,"266867",164.75,"SC0057","SCREWFIX DIRECT LTD",29/8/2022 00:00:00,25/9/2022 00:00:00,"P06-2023"
"P&V","RIVER LEE COUNTRY PARK","SUPPLIES AND SERVICES","MATERIALS (LOCKS)","4124","P118874-SERVICE-5x ASSA Standard Lock Bodies",1/9/2022 00:00:00,"266523",168.24,"LO0020","LOCK AND KEY SERVICES",29/8/2022 00:00:00,25/9/2022 00:00:00,"P06-2023"
"P&V","RIVER LEE COUNTRY PARK","SUPPLIES AND SERVICES","MATERIALS (LOCKS)","4124","P118874-SERVICE-Delivery",1/9/2022 00:00:00,"266523",1.48,"LO0020","LOCK AND KEY SERVICES",29/8/2022 00:00:00,25/9/2022 00:00:00,"P06-2023"
"P&V","RIVER LEE COUNTRY PARK","SUPPLIES AND SERVICES","MATERIALS (LOCKS)","4124","P118874-SERVICE-ASSA Keys",1/9/2022 00:00:00,"266523",259,"LO0020","LOCK AND KEY SERVICES",29/8/2022 00:00:00,25/9/2022 00:00:00,"P06-2023"
"P&V","MYDDELTON HOUSE GARDENS","SUPPLIES AND SERVICES","MATERIALS (GROUNDS MAINT)","4125","P119391-SERVICE-bryan gardens work adhoc",20/9/2022 00:00:00,"266488",451.5,"HE0452","BRYAN HEWITT",29/8/2022 00:00:00,25/9/2022 00:00:00,"P06-2023"
"P&V","MYDDELTON HOUSE GARDENS","SUPPLIES AND SERVICES","MATERIALS (GROUNDS MAINT)","4125","P119391-SERVICE-bryan gardens work adhoc",20/9/2022 00:00:00,"266489",315,"HE0452","BRYAN HEWITT",29/8/2022 00:00:00,25/9/2022 00:00:00,"P06-2023"
"P&V","MYDDELTON HOUSE GARDENS","SUPPLIES AND SERVICES","MATERIALS (GROUNDS MAINT)","4125","P119391-SERVICE-bryan gardens work adhoc",20/9/2022 00:00:00,"266674",157.5,"HE0452","BRYAN HEWITT",29/8/2022 00:00:00,25/9/2022 00:00:00,"P06-2023"
,"LV LEISURE CENTRE GOLF COURSE","SUPPLIES AND SERVICES","MATERIALS (GROUNDS MAINT)","4125","P119176-SERVICE-Fungicide",6/9/2022 00:00:00,"266636",915,"MR0420","MR AMENITY LTD",29/8/2022 00:00:00,25/9/2022 00:00:00,"P06-2023"
,"LEE VALLEY MARINA SPRINGFIELD","SUPPLIES AND SERVICES","MATERIALS (TOOLS & PLANT)","4127","P119216-SERVICE-2 x Adams Argon",6/9/2022 00:00:00,"266718",150.7,"EL0281","ELTHAM WELDING SUPPLIES LIMITED",29/8/2022 00:00:00,25/9/2022 00:00:00,"P06-2023"
,"STANSTEAD RECHARGEABLE WORKS","SUPPLIES AND SERVICES","MATERIALS (TOOLS & PLANT)","4127","P119295-SERVICE-tractor tyre, repairs and service charge",12/9/2022 00:00:00,"266635",164,"KB0006","KB TYRES LTD",29/8/2022 00:00:00,25/9/2022 00:00:00,"P06-2023"
,"STANSTEAD RECHARGEABLE WORKS","SUPPLIES AND SERVICES","MATERIALS (TOOLS & PLANT)","4127","P119201-SERVICE-white diesel 200l @ 189.05PPL",22/9/2022 00:00:00,"266725",378.1,"SP0543","SPEEDY FUELS LIMITED",29/8/2022 00:00:00,25/9/2022 00:00:00,"P06-2023"
,"SPRINGFIELD RECHARGEABLE WORKS","SUPPLIES AND SERVICES","MATERIALS (ENG OTHER)","4130","P118886-SERVICE-Crane Hire 23/8/22",6/9/2022 00:00:00,"266497",1610,"BA0339","BALDWINS CRANE HIRE LTD",29/8/2022 00:00:00,25/9/2022 00:00:00,"P06-2023"
,"STANSTEAD RECHARGEABLE WORKS","SUPPLIES AND SERVICES","MATERIALS (ENG OTHER)","4130","P119375-SERVICE-workshop parts",20/9/2022 00:00:00,"267124",200,"TH0642","THOMAS PRECISION ENGINEERS",29/8/2022 00:00:00,25/9/2022 00:00:00,"P06-2023"
,"LV LEISURE CENTRE GOLF COURSE","SUPPLIES AND SERVICES","MATERIALS (ENG OTHER)","4130","P119180-SERVICE-Engineering parts",21/9/2022 00:00:00,"266926",1815.16,"CA0698","CAMBRIDGE GOLF COMPANY",29/8/2022 00:00:00,25/9/2022 00:00:00,"P06-2023"
"P&V","LEE VALLEY FARM HOLYFIELDHALL","SUPPLIES AND SERVICES","FEED","4133","P119309-SERVICE-Optima/Prime Rearer",12/9/2022 00:00:00,"266665",5824.52,"BO0246","FOR FARMERS UK LTD",29/8/2022 00:00:00,25/9/2022 00:00:00,"P06-2023"
"P&V","LEE VALLEY FARM HOLYFIELDHALL","SUPPLIES AND SERVICES","FEED","4133","P119310-SERVICE-Sidewall Film",7/9/2022 00:00:00,"266675",294,"AR0460","ARK AGRICULTURE LTD",29/8/2022 00:00:00,25/9/2022 00:00:00,"P06-2023"
"P&V","LEE VALLEY FARM HOLYFIELDHALL","SUPPLIES AND SERVICES","FEED","4133","P119448-SERVICE-Nutrimol",25/9/2022 00:00:00,"267072",3038.32,"BO0246","FOR FARMERS UK LTD",29/8/2022 00:00:00,25/9/2022 00:00:00,"P06-2023"
"P&V","LEE VALLEY FARM HOLYFIELDHALL","SUPPLIES AND SERVICES","DAIRY SUNDRIES","4138","P118583-SERVICE-Gases",7/9/2022 00:00:00,"266503",127.26,"BO0015","BOC LTD",29/8/2022 00:00:00,25/9/2022 00:00:00,"P06-2023"
"P&V","LEE VALLEY FARM HOLYFIELDHALL","SUPPLIES AND SERVICES","DAIRY SUNDRIES","4138","P119307-SERVICE-Formalin",7/9/2022 00:00:00,"266517",997.5,"MI0023","MILL DAIRY SERVICES",29/8/2022 00:00:00,25/9/2022 00:00:00,"P06-2023"
"P&V","LEE VALLEY FARM HOLYFIELDHALL","SUPPLIES AND SERVICES","DAIRY SUNDRIES","4138","P118371-SERVICE-Dairy Sundries",7/9/2022 00:00:00,"266518",68.5,"MI0023","MILL DAIRY SERVICES",29/8/2022 00:00:00,25/9/2022 00:00:00,"P06-2023"
"P&V","LEE VALLEY FARM HOLYFIELDHALL","SUPPLIES AND SERVICES","DAIRY SUNDRIES","4138","P119308-SERVICE-Labour to Fit Air Injector",7/9/2022 00:00:00,"266519",421.75,"MI0023","MILL DAIRY SERVICES",29/8/2022 00:00:00,25/9/2022 00:00:00,"P06-2023"
"P&V","LEE VALLEY FARM HOLYFIELDHALL","SUPPLIES AND SERVICES","DAIRY SUNDRIES","4138","P119394-SERVICE-Transport Cattle to Market",22/9/2022 00:00:00,"266959",650,"RF0315","R F STAVELEY LTD",29/8/2022 00:00:00,25/9/2022 00:00:00,"P06-2023"
"P&V","LEE VALLEY FARM HOLYFIELDHALL","SUPPLIES AND SERVICES","DAIRY SUNDRIES","4138","P118536-SERVICE-Animal Removal",22/9/2022 00:00:00,"267062",190,"MA0074","W MARTIN & SON LIMITED",29/8/2022 00:00:00,25/9/2022 00:00:00,"P06-2023"
"P&V","LEE VALLEY FARM HOLYFIELDHALL","SUPPLIES AND SERVICES","DAIRY SUNDRIES","4138","P118536-SERVICE-Animal Removal",22/9/2022 00:00:00,"267063",140,"MA0074","W MARTIN & SON LIMITED",29/8/2022 00:00:00,25/9/2022 00:00:00,"P06-2023"
"P&V","LEE VALLEY FARM HOLYFIELDHALL","SUPPLIES AND SERVICES","DAIRY SUNDRIES","4138","P118536-SERVICE-Animal Removal",22/9/2022 00:00:00,"267109",54,"MA0074","W MARTIN & SON LIMITED",29/8/2022 00:00:00,25/9/2022 00:00:00,"P06-2023"
,"LV CAMPSITE CARAVAN SALES","SUPPLIES AND SERVICES","CARAVAN PURCHASES","4171","THE UK CARAVAN CENTRE",14/9/2022 00:00:00,"266924",11703.48,"UK0086","THE UK CARAVAN CENTRE",29/8/2022 00:00:00,25/9/2022 00:00:00,"P06-2023"
,"LV CAMPSITE CARAVAN SALES","SUPPLIES AND SERVICES","CARAVAN PURCHASES","4171","THE UK CARAVAN CENTRE",14/9/2022 00:00:00,"266924",37591.11,"UK0086","THE UK CARAVAN CENTRE",29/8/2022 00:00:00,25/9/2022 00:00:00,"P06-2023"
,"LV CAMPSITE CARAVAN SALES","SUPPLIES AND SERVICES","CARAVAN PURCHASES","4171","THE UK CARAVAN CENTRE",14/9/2022 00:00:00,"266924",-49294.59,"UK0086","THE UK CARAVAN CENTRE",29/8/2022 00:00:00,25/9/2022 00:00:00,"P06-2023"
,"LV CAMPSITE CARAVAN SALES","SUPPLIES AND SERVICES","CARAVAN PURCHASES","4171","P119302-SERVICE-Carnaby Langham and contents",14/9/2022 00:00:00,"266924",49294.59,"UK0086","THE UK CARAVAN CENTRE",29/8/2022 00:00:00,25/9/2022 00:00:00,"P06-2023"
,"LEE VALLEY CARAVAN PARK","SUPPLIES AND SERVICES","MISCELLANEOUS CARAVAN COSTS","4174","P119252-SERVICE-Utensils for Peeky Pods",12/9/2022 00:00:00,"266772",697,"PA0415","PATTERSONS",29/8/2022 00:00:00,25/9/2022 00:00:00,"P06-2023"
,"LEE VALLEY CARAVAN PARK","SUPPLIES AND SERVICES","MISCELLANEOUS CARAVAN COSTS","4174","P119252-SERVICE-Utensils for Peeky Pods",20/9/2022 00:00:00,"267075",97.5,"PA0415","PATTERSONS",29/8/2022 00:00:00,25/9/2022 00:00:00,"P06-2023"
,"LEE VALLEY CARAVAN PARK","SUPPLIES AND SERVICES","MISCELLANEOUS CARAVAN COSTS","4174","P119252-SERVICE-Utensils for Peeky Pods",25/9/2022 00:00:00,"267241",25.7,"PA0415","PATTERSONS",29/8/2022 00:00:00,25/9/2022 00:00:00,"P06-2023"
,"LEE VALLEY CAMPSITE","SUPPLIES AND SERVICES","CLOTHING & UNIFORMS","4225","P119188-SERVICE-Staff Uniform",6/9/2022 00:00:00,"266485",48,"DI0017","DIRECT BOOT & SHOE SUPPLIES",29/8/2022 00:00:00,25/9/2022 00:00:00,"P06-2023"
,"LEE VALLEY CARAVAN PARK","SUPPLIES AND SERVICES","CLOTHING & UNIFORMS","4225","P119188-SERVICE-Staff uniform",6/9/2022 00:00:00,"266485",54,"DI0017","DIRECT BOOT & SHOE SUPPLIES",29/8/2022 00:00:00,25/9/2022 00:00:00,"P06-2023"
,"LEE VALLEY CARAVAN PARK","SUPPLIES AND SERVICES","CLOTHING & UNIFORMS","4225","P119403-SERVICE-Gloves",20/9/2022 00:00:00,"267051",15.38,"SC0057","SCREWFIX DIRECT LTD",29/8/2022 00:00:00,25/9/2022 00:00:00,"P06-2023"
,"LEE VALLEY CARAVAN PARK","SUPPLIES AND SERVICES","CLOTHING & UNIFORMS","4225","P119402-SERVICE-Work boots",20/9/2022 00:00:00,"267052",149.97,"SC0057","SCREWFIX DIRECT LTD",29/8/2022 00:00:00,25/9/2022 00:00:00,"P06-2023"
"P&V","MYDDELTON HOUSE GARDENS","SUPPLIES AND SERVICES","CLOTHING & UNIFORMS","4225","DIRECT BOOT & SHOE SUPPLIES",7/9/2022 00:00:00,"266487",-58.48,"DI0017","DIRECT BOOT & SHOE SUPPLIES",29/8/2022 00:00:00,25/9/2022 00:00:00,"P06-2023"
"P&V","MYDDELTON HOUSE GARDENS","SUPPLIES AND SERVICES","CLOTHING & UNIFORMS","4225","P119137-SERVICE-Water Resistant boot, bump cap safety toe",7/9/2022 00:00:00,"266487",58.48,"DI0017","DIRECT BOOT & SHOE SUPPLIES",29/8/2022 00:00:00,25/9/2022 00:00:00,"P06-2023"
"P&V","MYDDELTON HOUSE GARDENS","SUPPLIES AND SERVICES","CLOTHING & UNIFORMS","4225","DIRECT BOOT & SHOE SUPPLIES",7/9/2022 00:00:00,"266487",3.99,"DI0017","DIRECT BOOT & SHOE SUPPLIES",29/8/2022 00:00:00,25/9/2022 00:00:00,"P06-2023"
"P&V","MYDDELTON HOUSE GARDENS","SUPPLIES AND SERVICES","CLOTHING & UNIFORMS","4225","DIRECT BOOT & SHOE SUPPLIES",7/9/2022 00:00:00,"266487",54.49,"DI0017","DIRECT BOOT & SHOE SUPPLIES",29/8/2022 00:00:00,25/9/2022 00:00:00,"P06-2023"
"P&V","RIVER LEE COUNTRY PARK","SUPPLIES AND SERVICES","CLOTHING & UNIFORMS","4225","P118483-SERVICE-2x Peru Gents Trousers - 14390 Black",1/9/2022 00:00:00,"266509",48.56,"IL0177","KEELA INTERNATION LTD",29/8/2022 00:00:00,25/9/2022 00:00:00,"P06-2023"
"P&V","RIVER LEE COUNTRY PARK","SUPPLIES AND SERVICES","CLOTHING & UNIFORMS","4225","P119236-SERVICE-V12 Oxen STS Safety Boots",6/9/2022 00:00:00,"266724",54.68,"WI0175","WISE WORKSAFE LTD",29/8/2022 00:00:00,25/9/2022 00:00:00,"P06-2023"
"P&V","RIVER LEE COUNTRY PARK","SUPPLIES AND SERVICES","CLOTHING & UNIFORMS","4225","P119236-SERVICE-Delivery Boots",6/9/2022 00:00:00,"266724",9.5,"WI0175","WISE WORKSAFE LTD",29/8/2022 00:00:00,25/9/2022 00:00:00,"P06-2023"
,"LV LEISURE CENTRE CAMPSITE","SUPPLIES AND SERVICES","CLOTHING & UNIFORMS","4225","DIRECT BOOT & SHOE SUPPLIES",6/9/2022 00:00:00,"266485",-291,"DI0017","DIRECT BOOT & SHOE SUPPLIES",29/8/2022 00:00:00,25/9/2022 00:00:00,"P06-2023"
,"LV LEISURE CENTRE CAMPSITE","SUPPLIES AND SERVICES","CLOTHING & UNIFORMS","4225","DIRECT BOOT & SHOE SUPPLIES",6/9/2022 00:00:00,"266485",90,"DI0017","DIRECT BOOT & SHOE SUPPLIES",29/8/2022 00:00:00,25/9/2022 00:00:00,"P06-2023"
,"LV LEISURE CENTRE CAMPSITE","SUPPLIES AND SERVICES","CLOTHING & UNIFORMS","4225","DIRECT BOOT & SHOE SUPPLIES",6/9/2022 00:00:00,"266485",201,"DI0017","DIRECT BOOT & SHOE SUPPLIES",29/8/2022 00:00:00,25/9/2022 00:00:00,"P06-2023"
,"LV LEISURE CENTRE CAMPSITE","SUPPLIES AND SERVICES","CLOTHING & UNIFORMS","4225","P119188-SERVICE-Staff uniform",6/9/2022 00:00:00,"266485",291,"DI0017","DIRECT BOOT & SHOE SUPPLIES",29/8/2022 00:00:00,25/9/2022 00:00:00,"P06-2023"
"CEO","CHIEF EXECUTIVE","SUPPLIES AND SERVICES","OFFICE EXPENSES","4311","P119443-SERVICE-KF24011 Clear Binding Cover",25/9/2022 00:00:00,"267300",24.51,"TH0008","JKL SOLUTIONS LTD",29/8/2022 00:00:00,25/9/2022 00:00:00,"P06-2023"
"CEO","CHIEF EXECUTIVE","SUPPLIES AND SERVICES","OFFICE EXPENSES","4311","P119443-SERVICE-KF00498 White Binding Cover",25/9/2022 00:00:00,"267300",20.43,"TH0008","JKL SOLUTIONS LTD",29/8/2022 00:00:00,25/9/2022 00:00:00,"P06-2023"
"CEO","PR/COMMUNICATIONS","SUPPLIES AND SERVICES","OFFICE EXPENSES","4311","P119183-SERVICE-Collect 3 boxes of leaflets and deliver to 3",7/9/2022 00:00:00,"266728",135,"LE0055","LEE COURIERS LTD",29/8/2022 00:00:00,25/9/2022 00:00:00,"P06-2023"
"CEO","PR/COMMUNICATIONS","SUPPLIES AND SERVICES","OFFICE EXPENSES","4311","P118514-SERVICE-LVRPA business cards - 7 versions x 100 ea +",7/9/2022 00:00:00,"266756",66,"BE0505","BELMONT PRESS",29/8/2022 00:00:00,25/9/2022 00:00:00,"P06-2023"
,"LEE VALLEY MARINA STANSTEAD","SUPPLIES AND SERVICES","OFFICE EXPENSES","4311","P119125-SERVICE-office stationery",1/9/2022 00:00:00,"266553",56.76,"TH0008","JKL SOLUTIONS LTD",29/8/2022 00:00:00,25/9/2022 00:00:00,"P06-2023"
,"LEE VALLEY MARINA STANSTEAD","SUPPLIES AND SERVICES","OFFICE EXPENSES","4311","P119330-SERVICE-misc stationery",25/9/2022 00:00:00,"267278",73.65,"TH0008","JKL SOLUTIONS LTD",29/8/2022 00:00:00,25/9/2022 00:00:00,"P06-2023"
,"LEE VALLEY CAMPSITE","SUPPLIES AND SERVICES","OFFICE EXPENSES","4311","P119209-SERVICE-hole punch",12/9/2022 00:00:00,"266662",-5.8,"TH0008","JKL SOLUTIONS LTD",29/8/2022 00:00:00,25/9/2022 00:00:00,"P06-2023"
,"LEE VALLEY CAMPSITE","SUPPLIES AND SERVICES","OFFICE EXPENSES","4311","P119209-SERVICE-photocopier paper",12/9/2022 00:00:00,"266719",25.11,"TH0008","JKL SOLUTIONS LTD",29/8/2022 00:00:00,25/9/2022 00:00:00,"P06-2023"
,"LEE VALLEY CAMPSITE","SUPPLIES AND SERVICES","OFFICE EXPENSES","4311","P119209-SERVICE-hole punch",12/9/2022 00:00:00,"266719",5.8,"TH0008","JKL SOLUTIONS LTD",29/8/2022 00:00:00,25/9/2022 00:00:00,"P06-2023"
,"LEE VALLEY CAMPSITE","SUPPLIES AND SERVICES","OFFICE EXPENSES","4311","P119209-SERVICE-note pads x5",12/9/2022 00:00:00,"266719",24.36,"TH0008","JKL SOLUTIONS LTD",29/8/2022 00:00:00,25/9/2022 00:00:00,"P06-2023"
,"LEE VALLEY CAMPSITE","SUPPLIES AND SERVICES","OFFICE EXPENSES","4311","P119209-SERVICE-Dividers",12/9/2022 00:00:00,"266719",5.34,"TH0008","JKL SOLUTIONS LTD",29/8/2022 00:00:00,25/9/2022 00:00:00,"P06-2023"
,"LEE VALLEY CAMPSITE","SUPPLIES AND SERVICES","OFFICE EXPENSES","4311","P119209-SERVICE-stapler",12/9/2022 00:00:00,"266719",3.33,"TH0008","JKL SOLUTIONS LTD",29/8/2022 00:00:00,25/9/2022 00:00:00,"P06-2023"
,"LEE VALLEY CAMPSITE","SUPPLIES AND SERVICES","OFFICE EXPENSES","4311","P119209-SERVICE-ring binders",12/9/2022 00:00:00,"266719",24.36,"TH0008","JKL SOLUTIONS LTD",29/8/2022 00:00:00,25/9/2022 00:00:00,"P06-2023"
,"LEE VALLEY CAMPSITE","SUPPLIES AND SERVICES","OFFICE EXPENSES","4311","P119209-SERVICE-box files x2",12/9/2022 00:00:00,"266719",4,"TH0008","JKL SOLUTIONS LTD",29/8/2022 00:00:00,25/9/2022 00:00:00,"P06-2023"
,"LEE VALLEY CAMPSITE","SUPPLIES AND SERVICES","OFFICE EXPENSES","4311","P119209-SERVICE-ring binders",12/9/2022 00:00:00,"266720",3.11,"TH0008","JKL SOLUTIONS LTD",29/8/2022 00:00:00,25/9/2022 00:00:00,"P06-2023"
,"LEE VALLEY CAMPSITE","SUPPLIES AND SERVICES","OFFICE EXPENSES","4311","P119209-SERVICE-note pads x5",12/9/2022 00:00:00,"266720",0.64,"TH0008","JKL SOLUTIONS LTD",29/8/2022 00:00:00,25/9/2022 00:00:00,"P06-2023"
,"LEE VALLEY CAMPSITE","SUPPLIES AND SERVICES","OFFICE EXPENSES","4311","P119209-SERVICE-staplers x3",12/9/2022 00:00:00,"266720",9.72,"TH0008","JKL SOLUTIONS LTD",29/8/2022 00:00:00,25/9/2022 00:00:00,"P06-2023"
,"LEE VALLEY CAMPSITE","SUPPLIES AND SERVICES","OFFICE EXPENSES","4311","P119209-SERVICE-Dividers",12/9/2022 00:00:00,"266720",0.66,"TH0008","JKL SOLUTIONS LTD",29/8/2022 00:00:00,25/9/2022 00:00:00,"P06-2023"
,"LEE VALLEY CAMPSITE","SUPPLIES AND SERVICES","OFFICE EXPENSES","4311","P119209-SERVICE-post it notes X2",12/9/2022 00:00:00,"266720",14,"TH0008","JKL SOLUTIONS LTD",29/8/2022 00:00:00,25/9/2022 00:00:00,"P06-2023"
,"LEE VALLEY CAMPSITE","SUPPLIES AND SERVICES","OFFICE EXPENSES","4311","P119209-SERVICE-box files x2",12/9/2022 00:00:00,"266720",6.94,"TH0008","JKL SOLUTIONS LTD",29/8/2022 00:00:00,25/9/2022 00:00:00,"P06-2023"
,"LEE VALLEY CAMPSITE","SUPPLIES AND SERVICES","OFFICE EXPENSES","4311","P119209-SERVICE-stapler",12/9/2022 00:00:00,"266720",0.01,"TH0008","JKL SOLUTIONS LTD",29/8/2022 00:00:00,25/9/2022 00:00:00,"P06-2023"
,"LEE VALLEY CAMPSITE","SUPPLIES AND SERVICES","OFFICE EXPENSES","4311","P119209-SERVICE-photocopier paper",12/9/2022 00:00:00,"266720",8.89,"TH0008","JKL SOLUTIONS LTD",29/8/2022 00:00:00,25/9/2022 00:00:00,"P06-2023"
,"LEE VALLEY CARAVAN PARK","SUPPLIES AND SERVICES","OFFICE EXPENSES","4311","P119174-SERVICE-Stationery",6/9/2022 00:00:00,"266554",103.02,"TH0008","JKL SOLUTIONS LTD",29/8/2022 00:00:00,25/9/2022 00:00:00,"P06-2023"
"R&B","INFORMATION TECHNOLOGY","SUPPLIES AND SERVICES","PHOTOCOPYING","4314","SEPTEMBER-DECEMBER 2022",22/9/2022 00:00:00,"267137",1479.66,"KO0071","KONICA MINOLTA BUSINESS SOLUTIONS ( UK) LTD",29/8/2022 00:00:00,25/9/2022 00:00:00,"P06-2023"
"R&B","HUMAN RESOURCES","SUPPLIES AND SERVICES","PERIODICALS & REFERENCE BOOKS","4332","P119432-SERVICE-XPERTHR SUBS SEPT 22 TO MARCH 23",21/9/2022 00:00:00,"267166",1155,"VI0074","VINE HR LIMITED",29/8/2022 00:00:00,25/9/2022 00:00:00,"P06-2023"
"R&B","FINANCE","SUPPLIES AND SERVICES","SUBSCRIPTIONS","4334","LNRS DATA SERVICES LIMITED (fr",25/9/2022 00:00:00,"266741",173.25,"RE0009","LNRS DATA SERVICES LIMITED (frmly Reed Busi)",29/8/2022 00:00:00,25/9/2022 00:00:00,"P06-2023"
"R&B","FINANCE","SUPPLIES AND SERVICES","SUBSCRIPTIONS","4334","LNRS DATA SERVICES LIMITED (fr",25/9/2022 00:00:00,"267312",-173.25,"RE0009","LNRS DATA SERVICES LIMITED (frmly Reed Busi)",29/8/2022 00:00:00,25/9/2022 00:00:00,"P06-2023"
"P&V","LEE VALLEY FARM HOLYFIELDHALL","SUPPLIES AND SERVICES","SUBSCRIPTIONS","4334","P117608-SERVICE-Subs",20/9/2022 00:00:00,"266863",397.28,"NA0005","NATIONAL MILK RECORDS PLC",29/8/2022 00:00:00,25/9/2022 00:00:00,"P06-2023"
"P&V","MYDDELTON HOUSE","SUPPLIES AND SERVICES","POSTAGE & MAILING","4445","PITNEY BOWES PURCHASE POWER",20/9/2022 00:00:00,"266974",1.12,"PI0021","PITNEY BOWES PURCHASE POWER",29/8/2022 00:00:00,25/9/2022 00:00:00,"P06-2023"
"CEO","PR/COMMUNICATIONS","SUPPLIES AND SERVICES","TELEPHONES (MOBILE)","4484","P119243-SERVICE-iPhone 11 - Charlie Painter",12/9/2022 00:00:00,"266656",360,"VO0010","VODAFONE  LIMITED (CORPORATE)",29/8/2022 00:00:00,25/9/2022 00:00:00,"P06-2023"
"R&B","REVENUE SUSPENSE (AUTHORITY)","SUPPLIES AND SERVICES","TELEPHONES (MOBILE)","4484","VODAFONE  LIMITED (CORPORATE)",6/9/2022 00:00:00,"266531",279.68,"VO0010","VODAFONE  LIMITED (CORPORATE)",29/8/2022 00:00:00,25/9/2022 00:00:00,"P06-2023"
"R&B","REVENUE SUSPENSE (AUTHORITY)","SUPPLIES AND SERVICES","TELEPHONES (MOBILE)","4484","VODAFONE  LIMITED (CORPORATE)",6/9/2022 00:00:00,"266531",5,"VO0010","VODAFONE  LIMITED (CORPORATE)",29/8/2022 00:00:00,25/9/2022 00:00:00,"P06-2023"
"R&B","REVENUE SUSPENSE (AUTHORITY)","SUPPLIES AND SERVICES","TELEPHONES (MOBILE)","4484","GAMMA TELECOM LTD",20/9/2022 00:00:00,"266898",686.28,"GA0432","GAMMA TELECOM LTD",29/8/2022 00:00:00,25/9/2022 00:00:00,"P06-2023"
"R&B","REVENUE SUSPENSE (AUTHORITY)","SUPPLIES AND SERVICES","TELEPHONES (MOBILE)","4484","VODAFONE  LIMITED (CORPORATE)",25/9/2022 00:00:00,"267259",309.82,"VO0010","VODAFONE  LIMITED (CORPORATE)",29/8/2022 00:00:00,25/9/2022 00:00:00,"P06-2023"
"R&B","DEMOCRATIC REPRESENTATION & MA","SUPPLIES AND SERVICES","MEMBERS EXPENSES","4502","P119272-SERVICE-Annual Subscription",6/9/2022 00:00:00,"266721",360,"ME0034","MERLIN DOCUMENT MANAGEMENT SOLUTIONS",29/8/2022 00:00:00,25/9/2022 00:00:00,"P06-2023"
"R&B","DEMOCRATIC REPRESENTATION & MA","SUPPLIES AND SERVICES","MEMBERS EXPENSES","4502","P119274-SERVICE-Annual SSL Encryption Certificate",6/9/2022 00:00:00,"266722",150,"ME0034","MERLIN DOCUMENT MANAGEMENT SOLUTIONS",29/8/2022 00:00:00,25/9/2022 00:00:00,"P06-2023"
"CEO","PR/COMMUNICATIONS","SUPPLIES AND SERVICES","HOSPITALITY","4505","P119312-SERVICE-Commonwealth Games - refreshments for invited",13/9/2022 00:00:00,"266907",410,"GR0097","GREENWICH LEISURE LTD",29/8/2022 00:00:00,25/9/2022 00:00:00,"P06-2023"
"P&V","POLICY & PERFORMANCE (L&E)","SUPPLIES AND SERVICES","HOSPITALITY","4505","P119208-SERVICE-CWG event food and drink",6/9/2022 00:00:00,"266513",412.56,"GR0097","GREENWICH LEISURE LTD",29/8/2022 00:00:00,25/9/2022 00:00:00,"P06-2023"
"P&V","POLICY & PERFORMANCE (L&E)","SUPPLIES AND SERVICES","HOSPITALITY","4505","P118902-SERVICE-Buffett Lunch to be delivered to be delivered",21/9/2022 00:00:00,"267077",89.4,"SH0256","SHARRONS EVENT CATERING COMPANY LTD",29/8/2022 00:00:00,25/9/2022 00:00:00,"P06-2023"
"P&V","SPORTS DEVELOPMENT GRANTS & AG","SUPPLIES AND SERVICES","MARKETING","4603","P119298-SERVICE-500 x 2pp A5 fliers on 170gsm silk stock",13/9/2022 00:00:00,"266893",43.19,"SO0582","SOLOPRESS",29/8/2022 00:00:00,25/9/2022 00:00:00,"P06-2023"
"P&V","NORTH AREA RANGERS","SUPPLIES AND SERVICES","PEST CONTROL","4625","P117772-SERVICE-Pest Control - Ware Town Centre - Aug",25/9/2022 00:00:00,"267247",53.34,"VE0006","VERMINATE CITY & RURAL PEST CONTROL LTD",29/8/2022 00:00:00,25/9/2022 00:00:00,"P06-2023"
"P&V","NORTH AREA RANGERS","SUPPLIES AND SERVICES","PEST CONTROL","4625","P117770-SERVICE-Pest Control - North Sites - Aug",25/9/2022 00:00:00,"267249",66.67,"VE0006","VERMINATE CITY & RURAL PEST CONTROL LTD",29/8/2022 00:00:00,25/9/2022 00:00:00,"P06-2023"
"P&V","SOUTH AREA RANGERS","SUPPLIES AND SERVICES","PEST CONTROL","4625","P117769-SERVICE-Pest Control - Tottenham Marshes - Aug",25/9/2022 00:00:00,"267248",46.67,"VE0006","VERMINATE CITY & RURAL PEST CONTROL LTD",29/8/2022 00:00:00,25/9/2022 00:00:00,"P06-2023"
"P&V","ABBEY GARDENS","SUPPLIES AND SERVICES","PEST CONTROL","4625","P117770-SERVICE-Pest Control - North Sites - Aug",25/9/2022 00:00:00,"267249",33.33,"VE0006","VERMINATE CITY & RURAL PEST CONTROL LTD",29/8/2022 00:00:00,25/9/2022 00:00:00,"P06-2023"
"P&V","RIVER LEE COUNTRY PARK","SUPPLIES AND SERVICES","PEST CONTROL","4625","P117770-SERVICE-Pest Control - North Sites - Aug",25/9/2022 00:00:00,"267249",66.67,"VE0006","VERMINATE CITY & RURAL PEST CONTROL LTD",29/8/2022 00:00:00,25/9/2022 00:00:00,"P06-2023"
"P&V","FORMER LV LIDO SITE","SUPPLIES AND SERVICES","PEST CONTROL","4625","P117770-SERVICE-Pest Control - North Sites - Aug",25/9/2022 00:00:00,"267249",33.33,"VE0006","VERMINATE CITY & RURAL PEST CONTROL LTD",29/8/2022 00:00:00,25/9/2022 00:00:00,"P06-2023"
,"LEE VALLEY MARINA SPRINGFIELD","SUPPLIES AND SERVICES","MERCHANT PROCESSING CHARGES","4641","WORLDPAY",6/9/2022 00:00:00,"266704",30,"WO0338","WORLDPAY",29/8/2022 00:00:00,25/9/2022 00:00:00,"P06-2023"
,"LEE VALLEY MARINA STANSTEAD","SUPPLIES AND SERVICES","MERCHANT PROCESSING CHARGES","4641","WORLDPAY",6/9/2022 00:00:00,"266704",30,"WO0338","WORLDPAY",29/8/2022 00:00:00,25/9/2022 00:00:00,"P06-2023"
"R&B","FINANCE & RESOURCES MANAGEMENT","SUPPLIES AND SERVICES","DEBT RECOVERY FEES","4646","LEGAL RECOVERIES AND COLLECTIO",25/9/2022 00:00:00,"267316",115,"LE0069","LEGAL RECOVERIES AND COLLECTIONS LIMITED",29/8/2022 00:00:00,25/9/2022 00:00:00,"P06-2023"
"R&B","FINANCE & RESOURCES MANAGEMENT","SUPPLIES AND SERVICES","DEBT RECOVERY FEES","4646","LEGAL RECOVERIES AND COLLECTIO",25/9/2022 00:00:00,"267316",198.32,"LE0069","LEGAL RECOVERIES AND COLLECTIONS LIMITED",29/8/2022 00:00:00,25/9/2022 00:00:00,"P06-2023"
"R&B","FINANCE & RESOURCES MANAGEMENT","SUPPLIES AND SERVICES","DEBT RECOVERY FEES","4646","P117729-SERVICE-DEBT RECOVERY FEES 2022/2023",25/9/2022 00:00:00,"267316",313.98,"LE0069","LEGAL RECOVERIES AND COLLECTIONS LIMITED",29/8/2022 00:00:00,25/9/2022 00:00:00,"P06-2023"
"R&B","FINANCE & RESOURCES MANAGEMENT","SUPPLIES AND SERVICES","DEBT RECOVERY FEES","4646","LEGAL RECOVERIES AND COLLECTIO",25/9/2022 00:00:00,"267316",-313.98,"LE0069","LEGAL RECOVERIES AND COLLECTIONS LIMITED",29/8/2022 00:00:00,25/9/2022 00:00:00,"P06-2023"
"P&V","NORTH AREA RANGERS","SUPPLIES AND SERVICES","SECURITY","4650","P118176-SERVICE-Security - North of Park",22/9/2022 00:00:00,"266920",3981.9,"PA0059","PARKGUARD LTD",29/8/2022 00:00:00,25/9/2022 00:00:00,"P06-2023"
"P&V","NORTH AREA RANGERS","SUPPLIES AND SERVICES","SECURITY","4650","P119335-SERVICE-Additional Security at Glen Faba",22/9/2022 00:00:00,"266970",4840,"PA0059","PARKGUARD LTD",29/8/2022 00:00:00,25/9/2022 00:00:00,"P06-2023"
"P&V","SOUTH AREA RANGERS","SUPPLIES AND SERVICES","SECURITY","4650","P119063-SERVICE-Security Cover - Coppermill - July",7/9/2022 00:00:00,"266710",480,"PA0059","PARKGUARD LTD",29/8/2022 00:00:00,25/9/2022 00:00:00,"P06-2023"
"P&V","SOUTH AREA RANGERS","SUPPLIES AND SERVICES","SECURITY","4650","P119063-SERVICE-Security Cover - Coppermill - July",7/9/2022 00:00:00,"266710",480,"PA0059","PARKGUARD LTD",29/8/2022 00:00:00,25/9/2022 00:00:00,"P06-2023"
"P&V","SOUTH AREA RANGERS","SUPPLIES AND SERVICES","SECURITY","4650","P119063-SERVICE-Security Cover - Coppermill - Aug",7/9/2022 00:00:00,"266710",480,"PA0059","PARKGUARD LTD",29/8/2022 00:00:00,25/9/2022 00:00:00,"P06-2023"
"P&V","SOUTH AREA RANGERS","SUPPLIES AND SERVICES","SECURITY","4650","P118177-SERVICE-Security - South of Park",22/9/2022 00:00:00,"266921",7963.85,"PA0059","PARKGUARD LTD",29/8/2022 00:00:00,25/9/2022 00:00:00,"P06-2023"
"P&V","SOUTH AREA RANGERS","SUPPLIES AND SERVICES","SECURITY","4650","P119336-SERVICE-Additional Security at Coppermill",22/9/2022 00:00:00,"266971",1920,"PA0059","PARKGUARD LTD",29/8/2022 00:00:00,25/9/2022 00:00:00,"P06-2023"
"P&V","RIVER LEE COUNTRY PARK","SUPPLIES AND SERVICES","SECURITY","4650","P112727-SERVICE-Security - North of the Park",22/9/2022 00:00:00,"266920",1582.71,"PA0059","PARKGUARD LTD",29/8/2022 00:00:00,25/9/2022 00:00:00,"P06-2023"
"CEO","LVLC SERVICE CHARGE","SUPPLIES AND SERVICES","SECURITY","4650","P118521-SERVICE-Security Services at LVLC",20/9/2022 00:00:00,"266677",2972.28,"SA0626","SAFE SITE SECURITY SOLUTIONS LTD",29/8/2022 00:00:00,25/9/2022 00:00:00,"P06-2023"
"CEO","LVLC SERVICE CHARGE","SUPPLIES AND SERVICES","SECURITY","4650","P118521-SERVICE-Security Services at LVLC",20/9/2022 00:00:00,"266917",95.88,"SA0626","SAFE SITE SECURITY SOLUTIONS LTD",29/8/2022 00:00:00,25/9/2022 00:00:00,"P06-2023"
"CEO","LVLC SERVICE CHARGE","SUPPLIES AND SERVICES","SECURITY","4650","P119373-SERVICE-Security at LVAC",20/9/2022 00:00:00,"266968",860,"PA0059","PARKGUARD LTD",29/8/2022 00:00:00,25/9/2022 00:00:00,"P06-2023"
"CEO","LVLC SERVICE CHARGE","SUPPLIES AND SERVICES","SECURITY","4650","P119449-SERVICE-Security LV Recreation Centre",25/9/2022 00:00:00,"266969",908.88,"PA0059","PARKGUARD LTD",29/8/2022 00:00:00,25/9/2022 00:00:00,"P06-2023"
"CEO","LVLC SERVICE CHARGE","SUPPLIES AND SERVICES","SECURITY","4650","P119372-SERVICE-Eviction of 8 Caravans at Picketts Lock",20/9/2022 00:00:00,"267097",3955,"GR0236","G R C BAILIFFS",29/8/2022 00:00:00,25/9/2022 00:00:00,"P06-2023"
"P&V","GUNPOWDER PARK","SUPPLIES AND SERVICES","UNAUTHORISED INCURSIONS","4651","P119181-SERVICE-Additional Security at Rammey Marsh - Travele",7/9/2022 00:00:00,"266709",680,"PA0059","PARKGUARD LTD",29/8/2022 00:00:00,25/9/2022 00:00:00,"P06-2023"
"CEO","PR/COMMUNICATIONS","SUPPLIES AND SERVICES","ADVERTISING - AWARENESS","4656","P116211-SERVICE-Leisure Kicks 2022 edition (LK22)",25/9/2022 00:00:00,"267268",3327.5,"PO0144","PORTAMENTO PUBLISHING LIMITED (LEISURE KICKS)",29/8/2022 00:00:00,25/9/2022 00:00:00,"P06-2023"
"CEO","PR/COMMUNICATIONS","SUPPLIES AND SERVICES","ONLINE ADVERTISING","4657","P118213-SERVICE-Digital summer campaign",1/9/2022 00:00:00,"265409",2250,"SQ0680","SQUARESTAR DIGITAL LIMITED",29/8/2022 00:00:00,25/9/2022 00:00:00,"P06-2023"
"CEO","PR/COMMUNICATIONS","SUPPLIES AND SERVICES","CUTTINGS SERVICE","4663","P119396-SERVICE-Media monitoring & database services to 29 Au",20/9/2022 00:00:00,"267083",9975,"GO0202","CISION (formerly Gorkana Group)",29/8/2022 00:00:00,25/9/2022 00:00:00,"P06-2023"
"CEO","PR/COMMUNICATIONS","SUPPLIES AND SERVICES","ARTWORK","4664","P119217-SERVICE-Exhibition signage",13/9/2022 00:00:00,"266884",120,"ID0174","IDEAS LIBRARY LTD",29/8/2022 00:00:00,25/9/2022 00:00:00,"P06-2023"
"R&B","PERFORMANCE MANAGEMENT","SUPPLIES AND SERVICES","OFFSITE ARCHIVED STORAGE","4667","P119304-SERVICE-Off site storage/archive August 2022",7/9/2022 00:00:00,"266742",472.48,"DA0154","RESTORE PLC",29/8/2022 00:00:00,25/9/2022 00:00:00,"P06-2023"
,"LEE VALLEY CAMPSITE","SUPPLIES AND SERVICES","ENTERTAINMENT & OTHER LICENCES","4711","P119506-SERVICE-Annual Premises Licence 22/23",25/9/2022 00:00:00,"267318",180,"EP0025","EPPING FOREST DISTRICT COUNCIL",29/8/2022 00:00:00,25/9/2022 00:00:00,"P06-2023"
,"LEE VALLEY VELOPARK","SUPPLIES AND SERVICES","ENTERTAINMENT & OTHER LICENCES","4711","LONDON BOROUGH OF NEWHAM",13/9/2022 00:00:00,"266883",850,"NE0038","LONDON BOROUGH OF NEWHAM",29/8/2022 00:00:00,25/9/2022 00:00:00,"P06-2023"
,"LEE VALLEY VELOPARK","SUPPLIES AND SERVICES","ENTERTAINMENT & OTHER LICENCES","4711","P116619-SERVICE-Music Licence",14/9/2022 00:00:00,"266933",644.27,"PP0425","PPL PRS LTD",29/8/2022 00:00:00,25/9/2022 00:00:00,"P06-2023"
,"LV HOCKEY AND TENNIS CENTRE","SUPPLIES AND SERVICES","ENTERTAINMENT & OTHER LICENCES","4711","P116619-SERVICE-Music License",14/9/2022 00:00:00,"266933",347.28,"PP0425","PPL PRS LTD",29/8/2022 00:00:00,25/9/2022 00:00:00,"P06-2023"
"P&V","LEE VALLEY FARM HOLYFIELDHALL","THIRD PARTY PAYMENTS","VETERINARY SERVICES","4718","P119393-SERVICE-Vets",20/9/2022 00:00:00,"266791",2024.72,"HA0443","HAMPDEN VETERINARY HOSPITAL",29/8/2022 00:00:00,25/9/2022 00:00:00,"P06-2023"
"P&V","YOUTH AND SCHOOLS","SUPPLIES AND SERVICES","ACTIVITIES (SCHOOLS)","4725","P119420-SERVICE-6 x FL0113 Extra large sterile dressing",22/9/2022 00:00:00,"267238",12.55,"FI0215","VALUE PRODUCTS LTD",29/8/2022 00:00:00,25/9/2022 00:00:00,"P06-2023"
"P&V","YOUTH AND SCHOOLS","SUPPLIES AND SERVICES","ACTIVITIES (SCHOOLS)","4725","P119420-SERVICE-14 x FL1462 Koolpacks",22/9/2022 00:00:00,"267238",14.7,"FI0215","VALUE PRODUCTS LTD",29/8/2022 00:00:00,25/9/2022 00:00:00,"P06-2023"
"P&V","YOUTH AND SCHOOLS","SUPPLIES AND SERVICES","ACTIVITIES (SCHOOLS)","4725","P119420-SERVICE-1 x FL0106 Medium sterile dressing",22/9/2022 00:00:00,"267238",4.15,"FI0215","VALUE PRODUCTS LTD",29/8/2022 00:00:00,25/9/2022 00:00:00,"P06-2023"
"P&V","YOUTH AND SCHOOLS","SUPPLIES AND SERVICES","ACTIVITIES (SCHOOLS)","4725","P119420-SERVICE-1 x FL0109 Large sterile dressing",22/9/2022 00:00:00,"267238",4.8,"FI0215","VALUE PRODUCTS LTD",29/8/2022 00:00:00,25/9/2022 00:00:00,"P06-2023"
"P&V","YOUTH AND SCHOOLS","SUPPLIES AND SERVICES","FACILITIES HIRE","4752","P119452-SERVICE-Y&S Service Hall Hire",25/9/2022 00:00:00,"267240",2915.36,"WA0108","WALTHAM ABBEY PAROCHIAL CHURCH COUNCIL",29/8/2022 00:00:00,25/9/2022 00:00:00,"P06-2023"
"P&V","MYDDLETON HSE HERITAGE CENTRE","SUPPLIES AND SERVICES","NET CATERING PURCHASES","4777","BIDFOOD",20/9/2022 00:00:00,"266479",143.02,"360001","BIDFOOD",29/8/2022 00:00:00,25/9/2022 00:00:00,"P06-2023"
"P&V","MYDDLETON HSE HERITAGE CENTRE","SUPPLIES AND SERVICES","NET CATERING PURCHASES","4777","BIDFOOD",20/9/2022 00:00:00,"266479",408.2,"360001","BIDFOOD",29/8/2022 00:00:00,25/9/2022 00:00:00,"P06-2023"
"P&V","MYDDLETON HSE HERITAGE CENTRE","SUPPLIES AND SERVICES","NET CATERING PURCHASES","4777","P119384-SERVICE-food/drinks order VC aug 22 26.8",20/9/2022 00:00:00,"266479",551.22,"360001","BIDFOOD",29/8/2022 00:00:00,25/9/2022 00:00:00,"P06-2023"
"P&V","MYDDLETON HSE HERITAGE CENTRE","SUPPLIES AND SERVICES","NET CATERING PURCHASES","4777","BIDFOOD",20/9/2022 00:00:00,"266479",-551.22,"360001","BIDFOOD",29/8/2022 00:00:00,25/9/2022 00:00:00,"P06-2023"
"P&V","MYDDLETON HSE HERITAGE CENTRE","SUPPLIES AND SERVICES","NET CATERING PURCHASES","4777","BIDFOOD",20/9/2022 00:00:00,"266500",141.98,"360001","BIDFOOD",29/8/2022 00:00:00,25/9/2022 00:00:00,"P06-2023"
"P&V","MYDDLETON HSE HERITAGE CENTRE","SUPPLIES AND SERVICES","NET CATERING PURCHASES","4777","BIDFOOD",20/9/2022 00:00:00,"266500",311.93,"360001","BIDFOOD",29/8/2022 00:00:00,25/9/2022 00:00:00,"P06-2023"
"P&V","MYDDLETON HSE HERITAGE CENTRE","SUPPLIES AND SERVICES","NET CATERING PURCHASES","4777","P119385-SERVICE-food/drinks order VC aug 22 31.8.",20/9/2022 00:00:00,"266500",453.91,"360001","BIDFOOD",29/8/2022 00:00:00,25/9/2022 00:00:00,"P06-2023"
"P&V","MYDDLETON HSE HERITAGE CENTRE","SUPPLIES AND SERVICES","NET CATERING PURCHASES","4777","BIDFOOD",20/9/2022 00:00:00,"266500",-453.91,"360001","BIDFOOD",29/8/2022 00:00:00,25/9/2022 00:00:00,"P06-2023"
"P&V","MYDDLETON HSE HERITAGE CENTRE","SUPPLIES AND SERVICES","NET CATERING PURCHASES","4777","P119324-SERVICE-Food/Drink order week com 05/09/2022",20/9/2022 00:00:00,"266501",462.35,"360001","BIDFOOD",29/8/2022 00:00:00,25/9/2022 00:00:00,"P06-2023"
"P&V","MYDDLETON HSE HERITAGE CENTRE","SUPPLIES AND SERVICES","NET CATERING PURCHASES","4777","BIDFOOD",20/9/2022 00:00:00,"266501",150.3,"360001","BIDFOOD",29/8/2022 00:00:00,25/9/2022 00:00:00,"P06-2023"
"P&V","MYDDLETON HSE HERITAGE CENTRE","SUPPLIES AND SERVICES","NET CATERING PURCHASES","4777","BIDFOOD",20/9/2022 00:00:00,"266501",312.05,"360001","BIDFOOD",29/8/2022 00:00:00,25/9/2022 00:00:00,"P06-2023"
"P&V","MYDDLETON HSE HERITAGE CENTRE","SUPPLIES AND SERVICES","NET CATERING PURCHASES","4777","BIDFOOD",20/9/2022 00:00:00,"266501",-462.35,"360001","BIDFOOD",29/8/2022 00:00:00,25/9/2022 00:00:00,"P06-2023"
"P&V","MYDDLETON HSE HERITAGE CENTRE","SUPPLIES AND SERVICES","NET CATERING PURCHASES","4777","P119386-SERVICE-food/drinks order VC sept 22.9",20/9/2022 00:00:00,"266743",421.76,"360001","BIDFOOD",29/8/2022 00:00:00,25/9/2022 00:00:00,"P06-2023"
"P&V","MYDDLETON HSE HERITAGE CENTRE","SUPPLIES AND SERVICES","NET CATERING PURCHASES","4777","BIDFOOD",20/9/2022 00:00:00,"266743",123.48,"360001","BIDFOOD",29/8/2022 00:00:00,25/9/2022 00:00:00,"P06-2023"
"P&V","MYDDLETON HSE HERITAGE CENTRE","SUPPLIES AND SERVICES","NET CATERING PURCHASES","4777","BIDFOOD",20/9/2022 00:00:00,"266743",-421.76,"360001","BIDFOOD",29/8/2022 00:00:00,25/9/2022 00:00:00,"P06-2023"
"P&V","MYDDLETON HSE HERITAGE CENTRE","SUPPLIES AND SERVICES","NET CATERING PURCHASES","4777","BIDFOOD",20/9/2022 00:00:00,"266743",298.28,"360001","BIDFOOD",29/8/2022 00:00:00,25/9/2022 00:00:00,"P06-2023"
"P&V","MYDDLETON HSE HERITAGE CENTRE","SUPPLIES AND SERVICES","NET CATERING PURCHASES","4777","P119326-SERVICE-Cups/disposables",20/9/2022 00:00:00,"266886",151.5,"CA0585","CAFE CONNECTIONS",29/8/2022 00:00:00,25/9/2022 00:00:00,"P06-2023"
"P&V","MYDDLETON HSE HERITAGE CENTRE","SUPPLIES AND SERVICES","NET CATERING PURCHASES","4777","BIDFOOD",20/9/2022 00:00:00,"266908",-428.25,"360001","BIDFOOD",29/8/2022 00:00:00,25/9/2022 00:00:00,"P06-2023"
"P&V","MYDDLETON HSE HERITAGE CENTRE","SUPPLIES AND SERVICES","NET CATERING PURCHASES","4777","BIDFOOD",20/9/2022 00:00:00,"266908",32.55,"360001","BIDFOOD",29/8/2022 00:00:00,25/9/2022 00:00:00,"P06-2023"
"P&V","MYDDLETON HSE HERITAGE CENTRE","SUPPLIES AND SERVICES","NET CATERING PURCHASES","4777","BIDFOOD",20/9/2022 00:00:00,"266908",395.7,"360001","BIDFOOD",29/8/2022 00:00:00,25/9/2022 00:00:00,"P06-2023"
"P&V","MYDDLETON HSE HERITAGE CENTRE","SUPPLIES AND SERVICES","NET CATERING PURCHASES","4777","P119387-SERVICE-food/drinks order VC sept 9.9",20/9/2022 00:00:00,"266908",428.25,"360001","BIDFOOD",29/8/2022 00:00:00,25/9/2022 00:00:00,"P06-2023"
,"LEE VALLEY MARINA SPRINGFIELD","SUPPLIES AND SERVICES","TRADING AC - EXTERNAL PURCHASE","4875","P118965-SERVICE-Chandlery Stock",12/9/2022 00:00:00,"265900",563.34,"ME0484","MERIDIAN ZERO DISTRIBUTION LIMITED",29/8/2022 00:00:00,25/9/2022 00:00:00,"P06-2023"
,"LEE VALLEY MARINA SPRINGFIELD","SUPPLIES AND SERVICES","TRADING AC - EXTERNAL PURCHASE","4875","P119132-SERVICE-Chandlery Stock  889732",1/9/2022 00:00:00,"266320",760.2,"MI0200","MIDLAND CHANDLERS LIMITED",29/8/2022 00:00:00,25/9/2022 00:00:00,"P06-2023"
,"LEE VALLEY MARINA SPRINGFIELD","SUPPLIES AND SERVICES","TRADING AC - EXTERNAL PURCHASE","4875","P119199-SERVICE-Chandlery Stock",6/9/2022 00:00:00,"266502",736.05,"AQ0033","AQUAFAX LIMITED",29/8/2022 00:00:00,25/9/2022 00:00:00,"P06-2023"
,"LEE VALLEY MARINA SPRINGFIELD","SUPPLIES AND SERVICES","TRADING AC - EXTERNAL PURCHASE","4875","P119199-SERVICE-Chandlery Stock",6/9/2022 00:00:00,"266633",15.52,"AQ0033","AQUAFAX LIMITED",29/8/2022 00:00:00,25/9/2022 00:00:00,"P06-2023"
,"LEE VALLEY MARINA SPRINGFIELD","SUPPLIES AND SERVICES","TRADING AC - EXTERNAL PURCHASE","4875","P118973-SERVICE-Chandlery Stock  (gas)",6/9/2022 00:00:00,"266659",1187.88,"SM0664","KG SMITH & SON",29/8/2022 00:00:00,25/9/2022 00:00:00,"P06-2023"
,"LEE VALLEY MARINA SPRINGFIELD","SUPPLIES AND SERVICES","TRADING AC - EXTERNAL PURCHASE","4875","P119253-SERVICE-Chandlery Stock  893761",12/9/2022 00:00:00,"266691",783.27,"MI0200","MIDLAND CHANDLERS LIMITED",29/8/2022 00:00:00,25/9/2022 00:00:00,"P06-2023"
,"LEE VALLEY MARINA SPRINGFIELD","SUPPLIES AND SERVICES","TRADING AC - EXTERNAL PURCHASE","4875","P119357-SERVICE-Chandlery Stock",20/9/2022 00:00:00,"267059",55.01,"MI0200","MIDLAND CHANDLERS LIMITED",29/8/2022 00:00:00,25/9/2022 00:00:00,"P06-2023"
,"LEE VALLEY MARINA SPRINGFIELD","SUPPLIES AND SERVICES","TRADING AC - EXTERNAL PURCHASE","4875","P119358-SERVICE-Chandlery Stock  111860",20/9/2022 00:00:00,"267093",283.1,"AQ0033","AQUAFAX LIMITED",29/8/2022 00:00:00,25/9/2022 00:00:00,"P06-2023"
,"LEE VALLEY MARINA SPRINGFIELD","SUPPLIES AND SERVICES","TRADING AC - EXTERNAL PURCHASE","4875","P119221-SERVICE-Chandlery Stock",25/9/2022 00:00:00,"267140",927.72,"CR0651","CRAFTMASTER PAINTS",29/8/2022 00:00:00,25/9/2022 00:00:00,"P06-2023"
,"LEE VALLEY MARINA SPRINGFIELD","SUPPLIES AND SERVICES","TRADING AC - EXTERNAL PURCHASE","4875","P119414-SERVICE-Chandlery Stock   899001",25/9/2022 00:00:00,"267144",953.89,"MI0200","MIDLAND CHANDLERS LIMITED",29/8/2022 00:00:00,25/9/2022 00:00:00,"P06-2023"
,"LEE VALLEY MARINA SPRINGFIELD","SUPPLIES AND SERVICES","TRADING AC - EXTERNAL PURCHASE","4875","KG SMITH & SON",25/9/2022 00:00:00,"267244",-2475.08,"SM0664","KG SMITH & SON",29/8/2022 00:00:00,25/9/2022 00:00:00,"P06-2023"
,"LEE VALLEY MARINA SPRINGFIELD","SUPPLIES AND SERVICES","TRADING AC - EXTERNAL PURCHASE","4875","KG SMITH & SON",25/9/2022 00:00:00,"267244",1150,"SM0664","KG SMITH & SON",29/8/2022 00:00:00,25/9/2022 00:00:00,"P06-2023"
,"LEE VALLEY MARINA SPRINGFIELD","SUPPLIES AND SERVICES","TRADING AC - EXTERNAL PURCHASE","4875","KG SMITH & SON",25/9/2022 00:00:00,"267244",1325.08,"SM0664","KG SMITH & SON",29/8/2022 00:00:00,25/9/2022 00:00:00,"P06-2023"
,"LEE VALLEY MARINA SPRINGFIELD","SUPPLIES AND SERVICES","TRADING AC - EXTERNAL PURCHASE","4875","P119381-SERVICE-Chandlery Stock  (gas and coal)",25/9/2022 00:00:00,"267244",2475.08,"SM0664","KG SMITH & SON",29/8/2022 00:00:00,25/9/2022 00:00:00,"P06-2023"
,"STANSTEAD RECHARGEABLE WORKS","SUPPLIES AND SERVICES","TRADING AC - EXTERNAL PURCHASE","4875","P118863-SERVICE-chandlery stock",6/9/2022 00:00:00,"265613",10.16,"MI0200","MIDLAND CHANDLERS LIMITED",29/8/2022 00:00:00,25/9/2022 00:00:00,"P06-2023"
,"STANSTEAD RECHARGEABLE WORKS","SUPPLIES AND SERVICES","TRADING AC - EXTERNAL PURCHASE","4875","P118679-SERVICE-blacking",6/9/2022 00:00:00,"265631",427.45,"SM0658","SML PAINTS AND COATINGS",29/8/2022 00:00:00,25/9/2022 00:00:00,"P06-2023"
,"STANSTEAD RECHARGEABLE WORKS","SUPPLIES AND SERVICES","TRADING AC - EXTERNAL PURCHASE","4875","P117884-SERVICE-logs",6/9/2022 00:00:00,"266265",145,"HA0371","HARTS OF OAK",29/8/2022 00:00:00,25/9/2022 00:00:00,"P06-2023"
,"STANSTEAD RECHARGEABLE WORKS","SUPPLIES AND SERVICES","TRADING AC - EXTERNAL PURCHASE","4875","P119041-SERVICE-chandlery stock",6/9/2022 00:00:00,"266268",160,"HA0371","HARTS OF OAK",29/8/2022 00:00:00,25/9/2022 00:00:00,"P06-2023"
,"STANSTEAD RECHARGEABLE WORKS","SUPPLIES AND SERVICES","TRADING AC - EXTERNAL PURCHASE","4875","P119126-SERVICE-2200l red diesel @ 115.45ppl",6/9/2022 00:00:00,"266462",2539.9,"SP0543","SPEEDY FUELS LIMITED",29/8/2022 00:00:00,25/9/2022 00:00:00,"P06-2023"
,"STANSTEAD RECHARGEABLE WORKS","SUPPLIES AND SERVICES","TRADING AC - EXTERNAL PURCHASE","4875","P119088-SERVICE-chandlery stock",6/9/2022 00:00:00,"266470",45.43,"MI0200","MIDLAND CHANDLERS LIMITED",29/8/2022 00:00:00,25/9/2022 00:00:00,"P06-2023"
,"STANSTEAD RECHARGEABLE WORKS","SUPPLIES AND SERVICES","TRADING AC - EXTERNAL PURCHASE","4875","P119172-SERVICE-chandlery stock",6/9/2022 00:00:00,"266472",1703.38,"AQ0033","AQUAFAX LIMITED",29/8/2022 00:00:00,25/9/2022 00:00:00,"P06-2023"
,"STANSTEAD RECHARGEABLE WORKS","SUPPLIES AND SERVICES","TRADING AC - EXTERNAL PURCHASE","4875","P119173-SERVICE-chandlery stock",6/9/2022 00:00:00,"266473",45.92,"MI0200","MIDLAND CHANDLERS LIMITED",29/8/2022 00:00:00,25/9/2022 00:00:00,"P06-2023"
,"STANSTEAD RECHARGEABLE WORKS","SUPPLIES AND SERVICES","TRADING AC - EXTERNAL PURCHASE","4875","P119172-SERVICE-chandlery stock",6/9/2022 00:00:00,"266508",37.18,"AQ0033","AQUAFAX LIMITED",29/8/2022 00:00:00,25/9/2022 00:00:00,"P06-2023"
,"STANSTEAD RECHARGEABLE WORKS","SUPPLIES AND SERVICES","TRADING AC - EXTERNAL PURCHASE","4875","P119294-SERVICE-chandlery stock",12/9/2022 00:00:00,"266539",166,"CL0722","BEVERLEY CLARKE",29/8/2022 00:00:00,25/9/2022 00:00:00,"P06-2023"
,"STANSTEAD RECHARGEABLE WORKS","SUPPLIES AND SERVICES","TRADING AC - EXTERNAL PURCHASE","4875","P119172-SERVICE-chandlery stock",6/9/2022 00:00:00,"266541",108.19,"AQ0033","AQUAFAX LIMITED",29/8/2022 00:00:00,25/9/2022 00:00:00,"P06-2023"
,"STANSTEAD RECHARGEABLE WORKS","SUPPLIES AND SERVICES","TRADING AC - EXTERNAL PURCHASE","4875","P119088-SERVICE-chandlery stock",21/9/2022 00:00:00,"266542",4.66,"MI0200","MIDLAND CHANDLERS LIMITED",29/8/2022 00:00:00,25/9/2022 00:00:00,"P06-2023"
,"STANSTEAD RECHARGEABLE WORKS","SUPPLIES AND SERVICES","TRADING AC - EXTERNAL PURCHASE","4875","P117548-SERVICE-chandlery stock",21/9/2022 00:00:00,"266632",8.04,"AQ0033","AQUAFAX LIMITED",29/8/2022 00:00:00,25/9/2022 00:00:00,"P06-2023"
,"STANSTEAD RECHARGEABLE WORKS","SUPPLIES AND SERVICES","TRADING AC - EXTERNAL PURCHASE","4875","P118201-SERVICE-Chandlery stock",6/9/2022 00:00:00,"266634",48.24,"AQ0033","AQUAFAX LIMITED",29/8/2022 00:00:00,25/9/2022 00:00:00,"P06-2023"
,"STANSTEAD RECHARGEABLE WORKS","SUPPLIES AND SERVICES","TRADING AC - EXTERNAL PURCHASE","4875","P118995-SERVICE-chandlery stock",22/9/2022 00:00:00,"266666",3.09,"AQ0033","AQUAFAX LIMITED",29/8/2022 00:00:00,25/9/2022 00:00:00,"P06-2023"
,"STANSTEAD RECHARGEABLE WORKS","SUPPLIES AND SERVICES","TRADING AC - EXTERNAL PURCHASE","4875","P119172-SERVICE-chandlery stock",22/9/2022 00:00:00,"266667",4.2,"AQ0033","AQUAFAX LIMITED",29/8/2022 00:00:00,25/9/2022 00:00:00,"P06-2023"
,"STANSTEAD RECHARGEABLE WORKS","SUPPLIES AND SERVICES","TRADING AC - EXTERNAL PURCHASE","4875","P119146-SERVICE-chandlery stock",22/9/2022 00:00:00,"266727",59.68,"EC0394","MANBAT LTD T/AS",29/8/2022 00:00:00,25/9/2022 00:00:00,"P06-2023"
,"STANSTEAD RECHARGEABLE WORKS","SUPPLIES AND SERVICES","TRADING AC - EXTERNAL PURCHASE","4875","P119239-SERVICE-solid fuels",22/9/2022 00:00:00,"266734",3295,"SM0664","KG SMITH & SON",29/8/2022 00:00:00,25/9/2022 00:00:00,"P06-2023"
,"STANSTEAD RECHARGEABLE WORKS","SUPPLIES AND SERVICES","TRADING AC - EXTERNAL PURCHASE","4875","P119273-SERVICE-chandlery stock",22/9/2022 00:00:00,"266740",72.06,"MI0200","MIDLAND CHANDLERS LIMITED",29/8/2022 00:00:00,25/9/2022 00:00:00,"P06-2023"
,"STANSTEAD RECHARGEABLE WORKS","SUPPLIES AND SERVICES","TRADING AC - EXTERNAL PURCHASE","4875","P119098-SERVICE-customer order",22/9/2022 00:00:00,"266774",33.97,"AS0036","ASAP SUPPLIES",29/8/2022 00:00:00,25/9/2022 00:00:00,"P06-2023"
,"STANSTEAD RECHARGEABLE WORKS","SUPPLIES AND SERVICES","TRADING AC - EXTERNAL PURCHASE","4875","P119123-SERVICE-customer order",22/9/2022 00:00:00,"266775",33.78,"AS0036","ASAP SUPPLIES",29/8/2022 00:00:00,25/9/2022 00:00:00,"P06-2023"
,"STANSTEAD RECHARGEABLE WORKS","SUPPLIES AND SERVICES","TRADING AC - EXTERNAL PURCHASE","4875","P119242-SERVICE-chandlery stock",22/9/2022 00:00:00,"266776",30.96,"MI0200","MIDLAND CHANDLERS LIMITED",29/8/2022 00:00:00,25/9/2022 00:00:00,"P06-2023"
,"STANSTEAD RECHARGEABLE WORKS","SUPPLIES AND SERVICES","TRADING AC - EXTERNAL PURCHASE","4875","P119268-SERVICE-chandlery stock",22/9/2022 00:00:00,"266777",84.92,"MI0200","MIDLAND CHANDLERS LIMITED",29/8/2022 00:00:00,25/9/2022 00:00:00,"P06-2023"
,"STANSTEAD RECHARGEABLE WORKS","SUPPLIES AND SERVICES","TRADING AC - EXTERNAL PURCHASE","4875","P119242-SERVICE-chandlery stock",22/9/2022 00:00:00,"266778",30.42,"MI0200","MIDLAND CHANDLERS LIMITED",29/8/2022 00:00:00,25/9/2022 00:00:00,"P06-2023"
,"STANSTEAD RECHARGEABLE WORKS","SUPPLIES AND SERVICES","TRADING AC - EXTERNAL PURCHASE","4875","P119293-SERVICE-chandlery stock",22/9/2022 00:00:00,"266779",188.17,"MI0200","MIDLAND CHANDLERS LIMITED",29/8/2022 00:00:00,25/9/2022 00:00:00,"P06-2023"
,"STANSTEAD RECHARGEABLE WORKS","SUPPLIES AND SERVICES","TRADING AC - EXTERNAL PURCHASE","4875","P119306-SERVICE-customer order",22/9/2022 00:00:00,"266871",200.5,"BE0198","BETA MARINE LIMITED",29/8/2022 00:00:00,25/9/2022 00:00:00,"P06-2023"
,"STANSTEAD RECHARGEABLE WORKS","SUPPLIES AND SERVICES","TRADING AC - EXTERNAL PURCHASE","4875","P119172-SERVICE-chandlery stock",22/9/2022 00:00:00,"266879",125.01,"AQ0033","AQUAFAX LIMITED",29/8/2022 00:00:00,25/9/2022 00:00:00,"P06-2023"
,"STANSTEAD RECHARGEABLE WORKS","SUPPLIES AND SERVICES","TRADING AC - EXTERNAL PURCHASE","4875","P119242-SERVICE-chandlery stock",22/9/2022 00:00:00,"266880",80.32,"MI0200","MIDLAND CHANDLERS LIMITED",29/8/2022 00:00:00,25/9/2022 00:00:00,"P06-2023"
,"STANSTEAD RECHARGEABLE WORKS","SUPPLIES AND SERVICES","TRADING AC - EXTERNAL PURCHASE","4875","P119292-SERVICE-chandlery stock",22/9/2022 00:00:00,"266890",150.03,"LE0059","LEE SANITATION LTD",29/8/2022 00:00:00,25/9/2022 00:00:00,"P06-2023"
,"STANSTEAD RECHARGEABLE WORKS","SUPPLIES AND SERVICES","TRADING AC - EXTERNAL PURCHASE","4875","P119346-SERVICE-chandlery stock",13/9/2022 00:00:00,"266918",433.58,"CR0651","CRAFTMASTER PAINTS",29/8/2022 00:00:00,25/9/2022 00:00:00,"P06-2023"
,"STANSTEAD RECHARGEABLE WORKS","SUPPLIES AND SERVICES","TRADING AC - EXTERNAL PURCHASE","4875","P119360-SERVICE-chandlery stock",22/9/2022 00:00:00,"266954",674.07,"MI0200","MIDLAND CHANDLERS LIMITED",29/8/2022 00:00:00,25/9/2022 00:00:00,"P06-2023"
,"STANSTEAD RECHARGEABLE WORKS","SUPPLIES AND SERVICES","TRADING AC - EXTERNAL PURCHASE","4875","P119347-SERVICE-midland chandlery stock",20/9/2022 00:00:00,"266955",1208.67,"MI0200","MIDLAND CHANDLERS LIMITED",29/8/2022 00:00:00,25/9/2022 00:00:00,"P06-2023"
,"STANSTEAD RECHARGEABLE WORKS","SUPPLIES AND SERVICES","TRADING AC - EXTERNAL PURCHASE","4875","P119347-SERVICE-midland chandlery stock",20/9/2022 00:00:00,"266965",45.61,"MI0200","MIDLAND CHANDLERS LIMITED",29/8/2022 00:00:00,25/9/2022 00:00:00,"P06-2023"
,"STANSTEAD RECHARGEABLE WORKS","SUPPLIES AND SERVICES","TRADING AC - EXTERNAL PURCHASE","4875","P119360-SERVICE-chandlery stock",22/9/2022 00:00:00,"266966",36.14,"MI0200","MIDLAND CHANDLERS LIMITED",29/8/2022 00:00:00,25/9/2022 00:00:00,"P06-2023"
,"STANSTEAD RECHARGEABLE WORKS","SUPPLIES AND SERVICES","TRADING AC - EXTERNAL PURCHASE","4875","P119356-SERVICE-customer order",20/9/2022 00:00:00,"266972",43.72,"CR0651","CRAFTMASTER PAINTS",29/8/2022 00:00:00,25/9/2022 00:00:00,"P06-2023"
,"STANSTEAD RECHARGEABLE WORKS","SUPPLIES AND SERVICES","TRADING AC - EXTERNAL PURCHASE","4875","P119347-SERVICE-midland chandlery stock",20/9/2022 00:00:00,"267058",27.06,"MI0200","MIDLAND CHANDLERS LIMITED",29/8/2022 00:00:00,25/9/2022 00:00:00,"P06-2023"
,"STANSTEAD RECHARGEABLE WORKS","SUPPLIES AND SERVICES","TRADING AC - EXTERNAL PURCHASE","4875","P119172-SERVICE-chandlery stock",22/9/2022 00:00:00,"267071",29.25,"AQ0033","AQUAFAX LIMITED",29/8/2022 00:00:00,25/9/2022 00:00:00,"P06-2023"
,"STANSTEAD RECHARGEABLE WORKS","SUPPLIES AND SERVICES","TRADING AC - EXTERNAL PURCHASE","4875","P119361-SERVICE-2200l red diesel @ 105.25",22/9/2022 00:00:00,"267074",2315.5,"SP0543","SPEEDY FUELS LIMITED",29/8/2022 00:00:00,25/9/2022 00:00:00,"P06-2023"
,"STANSTEAD RECHARGEABLE WORKS","SUPPLIES AND SERVICES","TRADING AC - EXTERNAL PURCHASE","4875","P119382-SERVICE-chandlery stock Sept 22",20/9/2022 00:00:00,"267102",266.22,"AQ0033","AQUAFAX LIMITED",29/8/2022 00:00:00,25/9/2022 00:00:00,"P06-2023"
,"STANSTEAD RECHARGEABLE WORKS","SUPPLIES AND SERVICES","TRADING AC - EXTERNAL PURCHASE","4875","P119088-SERVICE-chandlery stock",22/9/2022 00:00:00,"267104",36.14,"MI0200","MIDLAND CHANDLERS LIMITED",29/8/2022 00:00:00,25/9/2022 00:00:00,"P06-2023"
,"STANSTEAD RECHARGEABLE WORKS","SUPPLIES AND SERVICES","TRADING AC - EXTERNAL PURCHASE","4875","P119360-SERVICE-chandlery stock",22/9/2022 00:00:00,"267105",35.31,"MI0200","MIDLAND CHANDLERS LIMITED",29/8/2022 00:00:00,25/9/2022 00:00:00,"P06-2023"
,"STANSTEAD RECHARGEABLE WORKS","SUPPLIES AND SERVICES","TRADING AC - EXTERNAL PURCHASE","4875","P119404-SERVICE-paint for chandlery",25/9/2022 00:00:00,"267129",43.72,"CR0651","CRAFTMASTER PAINTS",29/8/2022 00:00:00,25/9/2022 00:00:00,"P06-2023"
,"STANSTEAD RECHARGEABLE WORKS","SUPPLIES AND SERVICES","TRADING AC - EXTERNAL PURCHASE","4875","P118786-SERVICE-chandlery stock",22/9/2022 00:00:00,"267138",24.55,"AQ0033","AQUAFAX LIMITED",29/8/2022 00:00:00,25/9/2022 00:00:00,"P06-2023"
,"STANSTEAD RECHARGEABLE WORKS","SUPPLIES AND SERVICES","TRADING AC - EXTERNAL PURCHASE","4875","P119380-SERVICE-chandlery stock - Sept 22",25/9/2022 00:00:00,"267153",386.84,"CA0660","CALFIRE SPARELINE LIMITED",29/8/2022 00:00:00,25/9/2022 00:00:00,"P06-2023"
,"STANSTEAD RECHARGEABLE WORKS","SUPPLIES AND SERVICES","TRADING AC - EXTERNAL PURCHASE","4875","P119379-SERVICE-gas chandlery stock SEPT",25/9/2022 00:00:00,"267245",1400.57,"SM0664","KG SMITH & SON",29/8/2022 00:00:00,25/9/2022 00:00:00,"P06-2023"
,"STANSTEAD RECHARGEABLE WORKS","SUPPLIES AND SERVICES","TRADING AC - EXTERNAL PURCHASE","4875","P119347-SERVICE-midland chandlery stock",25/9/2022 00:00:00,"267254",8.62,"MI0200","MIDLAND CHANDLERS LIMITED",29/8/2022 00:00:00,25/9/2022 00:00:00,"P06-2023"
,"STANSTEAD RECHARGEABLE WORKS","SUPPLIES AND SERVICES","TRADING AC - EXTERNAL PURCHASE","4875","P119392-SERVICE-Chandlery Sept Order",25/9/2022 00:00:00,"267257",381.74,"CE0510","CENTURION EUROPE LIMITED",29/8/2022 00:00:00,25/9/2022 00:00:00,"P06-2023"
,"STANSTEAD RECHARGEABLE WORKS","SUPPLIES AND SERVICES","TRADING AC - EXTERNAL PURCHASE","4875","P119382-SERVICE-chandlery stock Sept 22",25/9/2022 00:00:00,"267290",-266.22,"AQ0033","AQUAFAX LIMITED",29/8/2022 00:00:00,25/9/2022 00:00:00,"P06-2023"
,"STANSTEAD RECHARGEABLE WORKS","SUPPLIES AND SERVICES","TRADING AC - EXTERNAL PURCHASE","4875","P119382-SERVICE-chandlery stock Sept 22",25/9/2022 00:00:00,"267291",127.01,"AQ0033","AQUAFAX LIMITED",29/8/2022 00:00:00,25/9/2022 00:00:00,"P06-2023"
,"STANSTEAD RECHARGEABLE WORKS","SUPPLIES AND SERVICES","TRADING AC - EXTERNAL PURCHASE","4875","P119374-SERVICE-logs for chandlery",25/9/2022 00:00:00,"267308",435,"HA0371","HARTS OF OAK",29/8/2022 00:00:00,25/9/2022 00:00:00,"P06-2023"
,"LEE VALLEY CAMPSITE","SUPPLIES AND SERVICES","TRADING AC - EXTERNAL PURCHASE","4875","P119226-SERVICE-LOGS 1X PALLET",12/9/2022 00:00:00,"266641",95,"LO0473","LOGS DIRECT LTD",29/8/2022 00:00:00,25/9/2022 00:00:00,"P06-2023"
,"LEE VALLEY CAMPSITE","SUPPLIES AND SERVICES","TRADING AC - EXTERNAL PURCHASE","4875","P119226-SERVICE-LOGS 1X PALLET",12/9/2022 00:00:00,"266733",208,"LO0473","LOGS DIRECT LTD",29/8/2022 00:00:00,25/9/2022 00:00:00,"P06-2023"
,"LEE VALLEY CARAVAN PARK","SUPPLIES AND SERVICES","TRADING AC - EXTERNAL PURCHASE","4875","P119082-SERVICE-2 PALLETS OF LOGS",6/9/2022 00:00:00,"266443",468,"LO0473","LOGS DIRECT LTD",29/8/2022 00:00:00,25/9/2022 00:00:00,"P06-2023"
,"LV LEISURE CENTRE CAMPSITE","SUPPLIES AND SERVICES","TRADING AC - EXTERNAL PURCHASE","4875","P119256-SERVICE-Motor",12/9/2022 00:00:00,"266238",38.52,"RI0176","RIJO 42 INGREDIENTS LIMITED",29/8/2022 00:00:00,25/9/2022 00:00:00,"P06-2023"
,"LV LEISURE CENTRE CAMPSITE","SUPPLIES AND SERVICES","TRADING AC - EXTERNAL PURCHASE","4875","P119257-SERVICE-milk for coffee machine",12/9/2022 00:00:00,"266239",114.5,"RI0176","RIJO 42 INGREDIENTS LIMITED",29/8/2022 00:00:00,25/9/2022 00:00:00,"P06-2023"
,"LV LEISURE CENTRE CAMPSITE","SUPPLIES AND SERVICES","TRADING AC - EXTERNAL PURCHASE","4875","RIJO 42 INGREDIENTS LIMITED",12/9/2022 00:00:00,"266239",-114.5,"RI0176","RIJO 42 INGREDIENTS LIMITED",29/8/2022 00:00:00,25/9/2022 00:00:00,"P06-2023"
,"LV LEISURE CENTRE CAMPSITE","SUPPLIES AND SERVICES","TRADING AC - EXTERNAL PURCHASE","4875","RIJO 42 INGREDIENTS LIMITED",12/9/2022 00:00:00,"266239",6.5,"RI0176","RIJO 42 INGREDIENTS LIMITED",29/8/2022 00:00:00,25/9/2022 00:00:00,"P06-2023"
,"LV LEISURE CENTRE CAMPSITE","SUPPLIES AND SERVICES","TRADING AC - EXTERNAL PURCHASE","4875","RIJO 42 INGREDIENTS LIMITED",12/9/2022 00:00:00,"266239",108,"RI0176","RIJO 42 INGREDIENTS LIMITED",29/8/2022 00:00:00,25/9/2022 00:00:00,"P06-2023"
,"LV LEISURE CENTRE CAMPSITE","SUPPLIES AND SERVICES","TRADING AC - EXTERNAL PURCHASE","4875","P119446-SERVICE-Air con Hire",22/9/2022 00:00:00,"266640",620.6,"SY0001","ANDREWS SYKES LIMITED",29/8/2022 00:00:00,25/9/2022 00:00:00,"P06-2023"
,"LV LEISURE CENTRE CAMPSITE","SUPPLIES AND SERVICES","TRADING AC - EXTERNAL PURCHASE","4875","P119263-SERVICE-Audit stock take",12/9/2022 00:00:00,"266654",150,"VE0038","VENNERS LTD",29/8/2022 00:00:00,25/9/2022 00:00:00,"P06-2023"
,"LV LEISURE CENTRE CAMPSITE","SUPPLIES AND SERVICES","TRADING AC - EXTERNAL PURCHASE","4875","P119255-SERVICE-Coffee cups",12/9/2022 00:00:00,"266685",67.5,"RI0176","RIJO 42 INGREDIENTS LIMITED",29/8/2022 00:00:00,25/9/2022 00:00:00,"P06-2023"
,"LV LEISURE CENTRE GOLF COURSE","SUPPLIES AND SERVICES","TRADING AC - EXTERNAL PURCHASE","4875","P119331-SERVICE-lake balls",25/9/2022 00:00:00,"266115",588,"GR0144","BARRY GRIFFITHS",29/8/2022 00:00:00,25/9/2022 00:00:00,"P06-2023"
,"LEE VALLEY CAMPSITE","SUPPLIES AND SERVICES","TRAVEL CARDS","4876","P119118-SERVICE-350x adult cards off peak zone 1-6",1/9/2022 00:00:00,"266510",4536,"PA0003","TRANSPORT TRADING LIMITED",29/8/2022 00:00:00,25/9/2022 00:00:00,"P06-2023"
,"LEE VALLEY CAMPSITE","SUPPLIES AND SERVICES","TRAVEL CARDS","4876","P119118-SERVICE-150 x child cards off pek zone 1-6",1/9/2022 00:00:00,"266510",974.5,"PA0003","TRANSPORT TRADING LIMITED",29/8/2022 00:00:00,25/9/2022 00:00:00,"P06-2023"
,"LEE VALLEY CAMPSITE","SUPPLIES AND SERVICES","BOTTLED GAS","4877","P119495-SERVICE-9x 47kg stock",25/9/2022 00:00:00,"267264",642.94,"FL0147","FLOGAS BRITAIN LIMITED",29/8/2022 00:00:00,25/9/2022 00:00:00,"P06-2023"
"CEO","CHIEF EXECUTIVE","SUPPLIES AND SERVICES","UNRECONCILED COMPANY CARD EXP","4880","P ANDREWS - SEPT 2022 CREDIT CARD",6/9/2022 00:00:00,"266686",29.99,"NA0007","NATWEST CARD CENTRE",29/8/2022 00:00:00,25/9/2022 00:00:00,"P06-2023"
"P&V","MYDDELTON HOUSE","SUPPLIES AND SERVICES","UNRECONCILED COMPANY CARD EXP","4880","G FLAVIEN  - SEPT 2022 CREDIT CARD",6/9/2022 00:00:00,"266686",193.07,"NA0007","NATWEST CARD CENTRE",29/8/2022 00:00:00,25/9/2022 00:00:00,"P06-2023"
"CEO","PR/COMMUNICATIONS","SUPPLIES AND SERVICES","UNRECONCILED COMPANY CARD EXP","4880","S BROMBERG  - SEPT 2022 CREDIT CARD",6/9/2022 00:00:00,"266686",8389.22,"NA0007","NATWEST CARD CENTRE",29/8/2022 00:00:00,25/9/2022 00:00:00,"P06-2023"
"R&B","DEMOCRATIC REPRESENTATION & MA","SUPPLIES AND SERVICES","UNRECONCILED COMPANY CARD EXP","4880","S BERTSCHIN  - SEPT 2022 CREDIT CARD",6/9/2022 00:00:00,"266686",348,"NA0007","NATWEST CARD CENTRE",29/8/2022 00:00:00,25/9/2022 00:00:00,"P06-2023"
"R&B","INFORMATION TECHNOLOGY","SUPPLIES AND SERVICES","UNRECONCILED COMPANY CARD EXP","4880","S CLARK  - SEPT 2022 CREDIT CARD",6/9/2022 00:00:00,"266686",24.94,"NA0007","NATWEST CARD CENTRE",29/8/2022 00:00:00,25/9/2022 00:00:00,"P06-2023"
,"LEE VALLEY MARINA SPRINGFIELD","SUPPLIES AND SERVICES","UNRECONCILED COMPANY CARD EXP","4880","L SCOTT  - SEPT 2022 CREDIT CARD",6/9/2022 00:00:00,"266686",703.73,"NA0007","NATWEST CARD CENTRE",29/8/2022 00:00:00,25/9/2022 00:00:00,"P06-2023"
,"LEE VALLEY MARINA SPRINGFIELD","SUPPLIES AND SERVICES","UNRECONCILED COMPANY CARD EXP","4880","R BEAN  - SEPT 2022 CREDIT CARD",6/9/2022 00:00:00,"266686",319.79,"NA0007","NATWEST CARD CENTRE",29/8/2022 00:00:00,25/9/2022 00:00:00,"P06-2023"
,"LEE VALLEY MARINA STANSTEAD","SUPPLIES AND SERVICES","UNRECONCILED COMPANY CARD EXP","4880","C BAKER  - SEPT 2022 CREDIT CARD",6/9/2022 00:00:00,"266686",340.95,"NA0007","NATWEST CARD CENTRE",29/8/2022 00:00:00,25/9/2022 00:00:00,"P06-2023"
"P&V","LEE VALLEY FARM HOLYFIELDHALL","SUPPLIES AND SERVICES","UNRECONCILED COMPANY CARD EXP","4880","J PAINTER  - SEPT 2022 CREDIT CARD",6/9/2022 00:00:00,"266686",313.52,"NA0007","NATWEST CARD CENTRE",29/8/2022 00:00:00,25/9/2022 00:00:00,"P06-2023"
,"LEE VALLEY CAMPSITE","SUPPLIES AND SERVICES","UNRECONCILED COMPANY CARD EXP","4880","C CARTER  - SEPT 2022 CREDIT CARD",6/9/2022 00:00:00,"266686",3527.75,"NA0007","NATWEST CARD CENTRE",29/8/2022 00:00:00,25/9/2022 00:00:00,"P06-2023"
,"LEE VALLEY CARAVAN PARK","SUPPLIES AND SERVICES","UNRECONCILED COMPANY CARD EXP","4880","I RUSSELL  - SEPT 2022 CREDIT CARD",6/9/2022 00:00:00,"266686",2306.29,"NA0007","NATWEST CARD CENTRE",29/8/2022 00:00:00,25/9/2022 00:00:00,"P06-2023"
"P&V","MYDDELTON HOUSE GARDENS","SUPPLIES AND SERVICES","UNRECONCILED COMPANY CARD EXP","4880","R HARMES  - SEPT 2022 CREDIT CARD",6/9/2022 00:00:00,"266686",96.66,"NA0007","NATWEST CARD CENTRE",29/8/2022 00:00:00,25/9/2022 00:00:00,"P06-2023"
"P&V","MYDDLETON HSE HERITAGE CENTRE","SUPPLIES AND SERVICES","UNRECONCILED COMPANY CARD EXP","4880","E BOAKO-AGGREY  - SEPT 2022 CREDIT CARD",6/9/2022 00:00:00,"266686",17.5,"NA0007","NATWEST CARD CENTRE",29/8/2022 00:00:00,25/9/2022 00:00:00,"P06-2023"
"P&V","OPERATIONAL MANAGEMENT (L&E)","SUPPLIES AND SERVICES","UNRECONCILED COMPANY CARD EXP","4880","J HETHERINGTON  - SEPT 2022 CREDIT CARD",6/9/2022 00:00:00,"266686",2262.7,"NA0007","NATWEST CARD CENTRE",29/8/2022 00:00:00,25/9/2022 00:00:00,"P06-2023"
"P&V","OPERATIONAL MANAGEMENT (L&E)","SUPPLIES AND SERVICES","UNRECONCILED COMPANY CARD EXP","4880","D HUTLEY  - SEPT 2022 CREDIT CARD",6/9/2022 00:00:00,"266686",395.24,"NA0007","NATWEST CARD CENTRE",29/8/2022 00:00:00,25/9/2022 00:00:00,"P06-2023"
"P&V","POLICY & PERFORMANCE (L&E)","SUPPLIES AND SERVICES","UNRECONCILED COMPANY CARD EXP","4880","S SACKETT  - SEPT 2022 CREDIT CARD",6/9/2022 00:00:00,"266686",205.53,"NA0007","NATWEST CARD CENTRE",29/8/2022 00:00:00,25/9/2022 00:00:00,"P06-2023"
"P&V","EVENTS MANAGEMENT (PR)","SUPPLIES AND SERVICES","UNRECONCILED COMPANY CARD EXP","4880","S STONE  - SEPT 2022 CREDIT CARD",6/9/2022 00:00:00,"266686",247.77,"NA0007","NATWEST CARD CENTRE",29/8/2022 00:00:00,25/9/2022 00:00:00,"P06-2023"
"CEO","CHIEF EXECUTIVE","SUPPLIES AND SERVICES","OTHER EXPENSES","4899","P119095-SERVICE-Sport & Leisure Seminar 2022",20/9/2022 00:00:00,"266875",179,"AP0429","APSE (OLD TRAFFORD MANCHESTER)",29/8/2022 00:00:00,25/9/2022 00:00:00,"P06-2023"
"CEO","CHIEF EXECUTIVE","SUPPLIES AND SERVICES","OTHER EXPENSES","4899","P119411-SERVICE-Catering & Room Hire 28/06/22",20/9/2022 00:00:00,"267115",466.67,"WA0161","WALTHAM ABBEY MARRIOTT HOTEL",29/8/2022 00:00:00,25/9/2022 00:00:00,"P06-2023"
"CEO","CHIEF EXECUTIVE","SUPPLIES AND SERVICES","OTHER EXPENSES","4899","P119467-SERVICE-Room Hire & Catering on 21/09/22",25/9/2022 00:00:00,"267269",525,"GR0097","GREENWICH LEISURE LTD",29/8/2022 00:00:00,25/9/2022 00:00:00,"P06-2023"
"CEO","COMMERCIAL ACCOMMODATION","SUPPLIES AND SERVICES","OTHER EXPENSES","4899","P117468-SERVICE-Land Registry Fees",6/9/2022 00:00:00,"266679",6,"HM0032","HM LAND REGISTRY",29/8/2022 00:00:00,25/9/2022 00:00:00,"P06-2023"
"R&B","FINANCE","SUPPLIES AND SERVICES","OTHER EXPENSES","4899","KENNEDYS",6/9/2022 00:00:00,"266671",0,"KE0104","KENNEDYS",29/8/2022 00:00:00,25/9/2022 00:00:00,"P06-2023"
"CEO","COMMONWEALTH GAMES 2022","SUPPLIES AND SERVICES","OTHER EXPENSES","4899","P119190-SERVICE-CWG Water Testing by Beacon",6/9/2022 00:00:00,"266512",150,"GR0097","GREENWICH LEISURE LTD",29/8/2022 00:00:00,25/9/2022 00:00:00,"P06-2023"
"CEO","COMMONWEALTH GAMES 2022","SUPPLIES AND SERVICES","OTHER EXPENSES","4899","P118791-SERVICE-CWG Skip hire",6/9/2022 00:00:00,"266514",9459.4,"GR0097","GREENWICH LEISURE LTD",29/8/2022 00:00:00,25/9/2022 00:00:00,"P06-2023"
"CEO","COMMONWEALTH GAMES 2022","SUPPLIES AND SERVICES","OTHER EXPENSES","4899","P119223-SERVICE-Additional Audio payment",6/9/2022 00:00:00,"266676",500,"GR0097","GREENWICH LEISURE LTD",29/8/2022 00:00:00,25/9/2022 00:00:00,"P06-2023"
"CEO","COMMONWEALTH GAMES 2022","SUPPLIES AND SERVICES","OTHER EXPENSES","4899","P119154-SERVICE-Repair to internal handrail",6/9/2022 00:00:00,"266717",260,"RE0094","REACT 2 IT (BUILDING & REFURBISHMENT) LTD",29/8/2022 00:00:00,25/9/2022 00:00:00,"P06-2023"
"CEO","COMMONWEALTH GAMES 2022","SUPPLIES AND SERVICES","OTHER EXPENSES","4899","P119170-SERVICE-CWG catering & Hospitality",20/9/2022 00:00:00,"266876",57453.59,"BO0473","BOULEVARD EVENTS",29/8/2022 00:00:00,25/9/2022 00:00:00,"P06-2023"
"CEO","COMMONWEALTH GAMES 2022","SUPPLIES AND SERVICES","OTHER EXPENSES","4899","P119152-SERVICE-Reinstate concrete blocks on Northwall Road",21/9/2022 00:00:00,"267069",350,"LO0410","(MAIN) LONDON LEGACY DEVELOPMENT CORPORATION",29/8/2022 00:00:00,25/9/2022 00:00:00,"P06-2023"
"CEO","COMMONWEALTH GAMES 2022","SUPPLIES AND SERVICES","OTHER EXPENSES","4899","P119171-SERVICE-Final manaagement fee for Boulevard catering",25/9/2022 00:00:00,"267271",1894.94,"GR0097","GREENWICH LEISURE LTD",29/8/2022 00:00:00,25/9/2022 00:00:00,"P06-2023"
"CEO","COMMONWEALTH GAMES 2022","SUPPLIES AND SERVICES","OTHER EXPENSES","4899","P119377-SERVICE-CWG Damages",25/9/2022 00:00:00,"267272",6243.99,"GR0097","GREENWICH LEISURE LTD",29/8/2022 00:00:00,25/9/2022 00:00:00,"P06-2023"
,"LEE VALLEY CAMPSITE","SUPPLIES AND SERVICES","OTHER EXPENSES","4899","P118702-SERVICE-Sewardstone Peakychairs tables and umbrella",12/9/2022 00:00:00,"266505",-279.99,"AM0406","AMAZON PAYMENTS UK LIMITED",29/8/2022 00:00:00,25/9/2022 00:00:00,"P06-2023"
,"LEE VALLEY CAMPSITE","SUPPLIES AND SERVICES","OTHER EXPENSES","4899","P119314-SERVICE-Stocktake August 2022",20/9/2022 00:00:00,"266653",150,"VE0038","VENNERS LTD",29/8/2022 00:00:00,25/9/2022 00:00:00,"P06-2023"
"P&V","COMMUNITY ACCESS FUND","SUPPLIES AND SERVICES","OTHER EXPENSES","4899","P119319-SERVICE-Prince's Trust 14/9/22 mini bus hire",14/9/2022 00:00:00,"266932",250,"CH0652","CHAMPION COACH HIRE",29/8/2022 00:00:00,25/9/2022 00:00:00,"P06-2023"
,"LV LEISURE CENTRE CAMPSITE","SUPPLIES AND SERVICES","OTHER EXPENSES","4899","P119254-SERVICE-Timesheet on Edmonton campsite 72 hrs",13/9/2022 00:00:00,"266894",1080,"NE0225","DIMITRI NEOPHYTOU",29/8/2022 00:00:00,25/9/2022 00:00:00,"P06-2023"
,"LV LEISURE CENTRE CAMPSITE","SUPPLIES AND SERVICES","OTHER EXPENSES","4899","P119412-SERVICE-Campsite 66 hours worked",21/9/2022 00:00:00,"267151",990,"NE0225","DIMITRI NEOPHYTOU",29/8/2022 00:00:00,25/9/2022 00:00:00,"P06-2023"
,"LV LEISURE CENTRE GOLF COURSE","SUPPLIES AND SERVICES","OTHER EXPENSES","4899","P119412-SERVICE-Golf course 24 hours works",21/9/2022 00:00:00,"267151",360,"NE0225","DIMITRI NEOPHYTOU",29/8/2022 00:00:00,25/9/2022 00:00:00,"P06-2023"
"P&V","AWARDS AND ACCREDITATIONS","SUPPLIES AND SERVICES","OTHER EXPENSES","4899","P118414-SERVICE-Mystery Vists and Quality Audits",25/9/2022 00:00:00,"267267",1125,"RI0053","RIGHT DIRECTIONS (MANAGEMENT) LTD",29/8/2022 00:00:00,25/9/2022 00:00:00,"P06-2023"
"CEO","PROPERTY","CAPITAL EXPENDITURE","CAPITAL EXPENDITURE","4990","P119305-SERVICE-Consultants Work in Conjuction with Enfield C",20/9/2022 00:00:00,"266896",5000,"MO0036","MONTAGU EVANS LLP",29/8/2022 00:00:00,25/9/2022 00:00:00,"P06-2023"
"P&V","ASSET PROTECTION, MAINT, DEVEL","CAPITAL EXPENDITURE","CAPITAL EXPENDITURE","4990","P116798-SERVICE-WWC Pump Repair",20/9/2022 00:00:00,"266496",38686.89,"CL0039","XYLEM WATER SOLUTIONS UK  LIMITED",29/8/2022 00:00:00,25/9/2022 00:00:00,"P06-2023"
"P&V","ASSET PROTECTION, MAINT, DEVEL","CAPITAL EXPENDITURE","CAPITAL EXPENDITURE","4990","P119461-SERVICE-Combi tanker surplied to suck out man hole an",25/9/2022 00:00:00,"266559",384,"CO0550","CONVERT WATER LTD",29/8/2022 00:00:00,25/9/2022 00:00:00,"P06-2023"
"P&V","ASSET PROTECTION, MAINT, DEVEL","CAPITAL EXPENDITURE","CAPITAL EXPENDITURE","4990","ALTRON COMMUNICATIONS EQUIPMEN",31/8/2022 00:00:00,"266562",0,"AL0491","ALTRON COMMUNICATIONS EQUIPMENT LTD",29/8/2022 00:00:00,25/9/2022 00:00:00,"P06-2023"
"P&V","ASSET PROTECTION, MAINT, DEVEL","CAPITAL EXPENDITURE","CAPITAL EXPENDITURE","4990","ALTRON COMMUNICATIONS EQUIPMEN",31/8/2022 00:00:00,"266563",0,"AL0491","ALTRON COMMUNICATIONS EQUIPMENT LTD",29/8/2022 00:00:00,25/9/2022 00:00:00,"P06-2023"
"P&V","ASSET PROTECTION, MAINT, DEVEL","CAPITAL EXPENDITURE","CAPITAL EXPENDITURE","4990","P119343-SERVICE-Edmonton Campsite Cess alarm",13/9/2022 00:00:00,"266699",180,"CO0550","CONVERT WATER LTD",29/8/2022 00:00:00,25/9/2022 00:00:00,"P06-2023"
"P&V","ASSET PROTECTION, MAINT, DEVEL","CAPITAL EXPENDITURE","CAPITAL EXPENDITURE","4990","P117071-SERVICE-Velo - Replace Camera",7/9/2022 00:00:00,"266715",4268.87,"ST0642","STANLEY SECURITY SOLUTIONS LTD",29/8/2022 00:00:00,25/9/2022 00:00:00,"P06-2023"
"P&V","ASSET PROTECTION, MAINT, DEVEL","CAPITAL EXPENDITURE","CAPITAL EXPENDITURE","4990","P119450-SERVICE-Sewardstone campsite",22/9/2022 00:00:00,"266956",135,"KG0075","K G DRAIN SERVICES LIMITED",29/8/2022 00:00:00,25/9/2022 00:00:00,"P06-2023"
"P&V","ASSET PROTECTION, MAINT, DEVEL","CAPITAL EXPENDITURE","CAPITAL EXPENDITURE","4990","CAPSER",21/9/2022 00:00:00,"267110",-650,"MO0041","CAPSER",29/8/2022 00:00:00,25/9/2022 00:00:00,"P06-2023"
"P&V","ASSET PROTECTION, MAINT, DEVEL","CAPITAL EXPENDITURE","CAPITAL EXPENDITURE","4990","P119296-SERVICE-Inspect and CCTV collapsed drain at Sewardsto",21/9/2022 00:00:00,"267110",650,"MO0041","CAPSER",29/8/2022 00:00:00,25/9/2022 00:00:00,"P06-2023"
"P&V","ASSET PROTECTION, MAINT, DEVEL","CAPITAL EXPENDITURE","CAPITAL EXPENDITURE","4990","CAPSER",21/9/2022 00:00:00,"267110",300,"MO0041","CAPSER",29/8/2022 00:00:00,25/9/2022 00:00:00,"P06-2023"
"P&V","ASSET PROTECTION, MAINT, DEVEL","CAPITAL EXPENDITURE","CAPITAL EXPENDITURE","4990","CAPSER",21/9/2022 00:00:00,"267110",350,"MO0041","CAPSER",29/8/2022 00:00:00,25/9/2022 00:00:00,"P06-2023"
"P&V","ASSET PROTECTION, MAINT, DEVEL","CAPITAL EXPENDITURE","CAPITAL EXPENDITURE","4990","CAPSER",25/9/2022 00:00:00,"267111",450,"MO0041","CAPSER",29/8/2022 00:00:00,25/9/2022 00:00:00,"P06-2023"
"P&V","ASSET PROTECTION, MAINT, DEVEL","CAPITAL EXPENDITURE","CAPITAL EXPENDITURE","4990","CAPSER",25/9/2022 00:00:00,"267111",-2450,"MO0041","CAPSER",29/8/2022 00:00:00,25/9/2022 00:00:00,"P06-2023"
"P&V","ASSET PROTECTION, MAINT, DEVEL","CAPITAL EXPENDITURE","CAPITAL EXPENDITURE","4990","P119451-SERVICE-Additional works in relation to PO P116252",25/9/2022 00:00:00,"267111",2450,"MO0041","CAPSER",29/8/2022 00:00:00,25/9/2022 00:00:00,"P06-2023"
"P&V","ASSET PROTECTION, MAINT, DEVEL","CAPITAL EXPENDITURE","CAPITAL EXPENDITURE","4990","CAPSER",25/9/2022 00:00:00,"267111",2000,"MO0041","CAPSER",29/8/2022 00:00:00,25/9/2022 00:00:00,"P06-2023"
"P&V","ASSET PROTECTION, MAINT, DEVEL","CAPITAL EXPENDITURE","CAPITAL EXPENDITURE","4990","P116252-SERVICE-Stanstead Marina Works",21/9/2022 00:00:00,"267112",6060,"MO0041","CAPSER",29/8/2022 00:00:00,25/9/2022 00:00:00,"P06-2023"
"P&V","ASSET PROTECTION, MAINT, DEVEL","CAPITAL EXPENDITURE","CAPITAL EXPENDITURE","4990","CAPSER",21/9/2022 00:00:00,"267112",1060,"MO0041","CAPSER",29/8/2022 00:00:00,25/9/2022 00:00:00,"P06-2023"
"P&V","ASSET PROTECTION, MAINT, DEVEL","CAPITAL EXPENDITURE","CAPITAL EXPENDITURE","4990","CAPSER",21/9/2022 00:00:00,"267112",5000,"MO0041","CAPSER",29/8/2022 00:00:00,25/9/2022 00:00:00,"P06-2023"
"P&V","ASSET PROTECTION, MAINT, DEVEL","CAPITAL EXPENDITURE","CAPITAL EXPENDITURE","4990","CAPSER",21/9/2022 00:00:00,"267112",-6060,"MO0041","CAPSER",29/8/2022 00:00:00,25/9/2022 00:00:00,"P06-2023"
"P&V","ASSET PROTECTION, MAINT, DEVEL","CAPITAL EXPENDITURE","CAPITAL EXPENDITURE","4990","P119059-SERVICE-White Water New Bridge",21/9/2022 00:00:00,"267146",4375,"CH0468","CUNDALL",29/8/2022 00:00:00,25/9/2022 00:00:00,"P06-2023"
"R&B","INFORMATION TECHNOLOGY","CAPITAL EXPENDITURE","CAPITAL EXPENDITURE","4990","P118565-SERVICE-5 Year warranty",21/9/2022 00:00:00,"267068",88.2,"CC0711","CCS MEDIA LIMITED",29/8/2022 00:00:00,25/9/2022 00:00:00,"P06-2023"
"R&B","INFORMATION TECHNOLOGY","CAPITAL EXPENDITURE","CAPITAL EXPENDITURE","4990","P118565-SERVICE-5 Year Warranty",21/9/2022 00:00:00,"267068",75.81,"CC0711","CCS MEDIA LIMITED",29/8/2022 00:00:00,25/9/2022 00:00:00,"P06-2023"
"R&B","INFORMATION TECHNOLOGY","CAPITAL EXPENDITURE","CAPITAL EXPENDITURE","4990","P118565-SERVICE-PC - Higher Spec - 200DD",21/9/2022 00:00:00,"267108",893,"CC0711","CCS MEDIA LIMITED",29/8/2022 00:00:00,25/9/2022 00:00:00,"P06-2023"
"R&B","INFORMATION TECHNOLOGY","CAPITAL EXPENDITURE","CAPITAL EXPENDITURE","4990","P119475-SERVICE-Netgear GS728TPv2 24-Port Gigabit PoE+",25/9/2022 00:00:00,"267297",692.84,"CO0499","COMMS EXPRESS",29/8/2022 00:00:00,25/9/2022 00:00:00,"P06-2023"
"R&B","INFORMATION TECHNOLOGY","CAPITAL EXPENDITURE","CAPITAL EXPENDITURE","4990","P119220-SERVICE-Head Office Data Quotation",25/9/2022 00:00:00,"267345",780,"DE0318","DESIGN AND MANAGEMENT SYSTEMS LTD",29/8/2022 00:00:00,25/9/2022 00:00:00,"P06-2023"
,"LEE VALLEY CAMPSITE","CAPITAL EXPENDITURE","CAPITAL EXPENDITURE","4990","P115805-SERVICE-Glamping Units",25/9/2022 00:00:00,"265645",39690,"MO0482","MODULAR LEISURE BUILDINGS LTD",29/8/2022 00:00:00,25/9/2022 00:00:00,"P06-2023"
,"LEE VALLEY CARAVAN PARK","CAPITAL EXPENDITURE","CAPITAL EXPENDITURE","4990","P119230-SERVICE-Prep work for Peeky Pods",1/9/2022 00:00:00,"264745",11285,"BR0018","BRADSHAW ELECTRICAL LIMITED",29/8/2022 00:00:00,25/9/2022 00:00:00,"P06-2023"
"P&V","NORTH AREA RANGERS","CAPITAL EXPENDITURE","CAPITAL EXPENDITURE","4990","P116077-SERVICE-St. Paul's Field Landscape and Path Network D",6/9/2022 00:00:00,"266732",4950,"LA0471","LANPRO SERVICES LIMITED",29/8/2022 00:00:00,25/9/2022 00:00:00,"P06-2023"
"P&V","BIODIVERSITY ACTION PLAN","CAPITAL EXPENDITURE","CAPITAL EXPENDITURE","4990","P117390-SERVICE-Preliminary Appraisal",6/9/2022 00:00:00,"266737",1375,"TE0626","TEMPLE GROUP LTD",29/8/2022 00:00:00,25/9/2022 00:00:00,"P06-2023"
"P&V","BIODIVERSITY ACTION PLAN","CAPITAL EXPENDITURE","CAPITAL EXPENDITURE","4990","P117391-SERVICE-Surveys",6/9/2022 00:00:00,"266737",7778,"TE0626","TEMPLE GROUP LTD",29/8/2022 00:00:00,25/9/2022 00:00:00,"P06-2023"
"P&V","BIODIVERSITY ACTION PLAN","CAPITAL EXPENDITURE","CAPITAL EXPENDITURE","4990","P118324-SERVICE-Delivery and Release of Rudd from National Gr",7/9/2022 00:00:00,"266758",150,"MA0166","MAINSTREAM FISHERIES LTD",29/8/2022 00:00:00,25/9/2022 00:00:00,"P06-2023"
,"LEE VALLEY ICE CENTRE","CAPITAL EXPENDITURE","CAPITAL EXPENDITURE","4990","P119278-SERVICE-Projected works as per interim certificate 14",7/9/2022 00:00:00,"266643",1009763.33,"BU0634","BUCKINGHAM GROUP CONTRACTING LIMITED",29/8/2022 00:00:00,25/9/2022 00:00:00,"P06-2023"
,"LEE VALLEY ICE CENTRE","CAPITAL EXPENDITURE","CAPITAL EXPENDITURE","4990","P119277-SERVICE-Project management August 2022",7/9/2022 00:00:00,"266702",54136,"WR0199","WRENBRIDGE LAND LTD",29/8/2022 00:00:00,25/9/2022 00:00:00,"P06-2023"
,"LEE VALLEY ICE CENTRE","CAPITAL EXPENDITURE","CAPITAL EXPENDITURE","4990","P118829-SERVICE-Project Management Services July 2022",6/9/2022 00:00:00,"266739",55636,"WR0199","WRENBRIDGE LAND LTD",29/8/2022 00:00:00,25/9/2022 00:00:00,"P06-2023"
"P&V","EVENTS MANAGEMENT (PR)","THIRD PARTY PAYMENTS","EVENTS","5101","P119030-SERVICE-Showground event cut",6/9/2022 00:00:00,"266684",422.34,"GL0214","GLENDALE GROUNDS MANAGEMENT LIMITED",29/8/2022 00:00:00,25/9/2022 00:00:00,"P06-2023"
"P&V","EVENTS MANAGEMENT (PR)","THIRD PARTY PAYMENTS","EVENTS","5101","P119458-SERVICE-Taverna food 16 - 18/9/22",25/9/2022 00:00:00,"267266",85.42,"FI0193","FIVE STAR CATERING LTD",29/8/2022 00:00:00,25/9/2022 00:00:00,"P06-2023"
"CEO","PR/COMMUNICATIONS","THIRD PARTY PAYMENTS","CONSULTANTS (GENERAL)","5110","P118107-SERVICE-Communications Support for 2022-23",20/9/2022 00:00:00,"266962",3000,"LO0024","LONDON COMMUNICATIONS AGENCY LTD",29/8/2022 00:00:00,25/9/2022 00:00:00,"P06-2023"
"CEO","PROPERTY","THIRD PARTY PAYMENTS","CONSULTANTS (GENERAL)","5110","P119408-SERVICE-Planning Fees for Hayes Hill Farm",21/9/2022 00:00:00,"267082",2222.4,"LE0479","LEE VALLEY FARM PARK LIMITED",29/8/2022 00:00:00,25/9/2022 00:00:00,"P06-2023"
"P&V","ASSET PROTECTION, MAINT, DEVEL","THIRD PARTY PAYMENTS","CONSULTANTS (GENERAL)","5110","P116052-SERVICE-LVAC re top indoor track",6/9/2022 00:00:00,"266515",1350,"SP0182","SPORTS LABS LTD",29/8/2022 00:00:00,25/9/2022 00:00:00,"P06-2023"
"P&V","ASSET PROTECTION, MAINT, DEVEL","THIRD PARTY PAYMENTS","CONSULTANTS (GENERAL)","5110","P119460-SERVICE-Detailed design stage fro LVWWC extreme kayak",25/9/2022 00:00:00,"266773",3000,"EX0288","USEFUL SIMPLE GROUP LTD",29/8/2022 00:00:00,25/9/2022 00:00:00,"P06-2023"
"R&B","INTERNAL AUDIT/HEALTH & SAFETY","THIRD PARTY PAYMENTS","CONSULTANTS (GENERAL)","5110","P117619-SERVICE-H&S support April - Sept 2022",6/9/2022 00:00:00,"266700",7108.33,"RI0181","RD HEALTH & SAFETY LIMITED",29/8/2022 00:00:00,25/9/2022 00:00:00,"P06-2023"
"CEO","LEGAL SERVICES","THIRD PARTY PAYMENTS","CONSULTANTS (GENERAL)","5110","P119266-SERVICE-GLL Advice",6/9/2022 00:00:00,"266690",2863,"WO0344","WOMBLE BOND DICKINSON (UK) LLP",29/8/2022 00:00:00,25/9/2022 00:00:00,"P06-2023"
"CEO","LEGAL SERVICES","THIRD PARTY PAYMENTS","CONSULTANTS (GENERAL)","5110","P119285-SERVICE-Dispute with Trust",7/9/2022 00:00:00,"266746",13403.6,"WO0344","WOMBLE BOND DICKINSON (UK) LLP",29/8/2022 00:00:00,25/9/2022 00:00:00,"P06-2023"
"CEO","LEGAL SERVICES","THIRD PARTY PAYMENTS","CONSULTANTS (GENERAL)","5110","P119291-SERVICE-Dispute with Trust",7/9/2022 00:00:00,"266747",18554.5,"WO0344","WOMBLE BOND DICKINSON (UK) LLP",29/8/2022 00:00:00,25/9/2022 00:00:00,"P06-2023"
"CEO","LEGAL SERVICES","THIRD PARTY PAYMENTS","CONSULTANTS (GENERAL)","5110","P119400-SERVICE-Licence for Network Rail",20/9/2022 00:00:00,"267076",1000,"RA0325","RADIUS LAW",29/8/2022 00:00:00,25/9/2022 00:00:00,"P06-2023"
"CEO","COMMERCIAL ACCOMMODATION","THIRD PARTY PAYMENTS","CONSULTANTS (LEGAL SERVICES)","5120","P119395-SERVICE-Rent Report for the Lease Renewal of LV Boat",20/9/2022 00:00:00,"267114",2414.94,"CR0472","CROSTHWAITE LIMITED",29/8/2022 00:00:00,25/9/2022 00:00:00,"P06-2023"
"P&V","SPORTS DEVELOPMENT GRANTS & AG","THIRD PARTY PAYMENTS","CONTRIBUTIONS/GRANTS MADE","5140","P119062-SERVICE-HTC New age games Jan- March 2022",25/9/2022 00:00:00,"267274",492.75,"GR0097","GREENWICH LEISURE LTD",29/8/2022 00:00:00,25/9/2022 00:00:00,"P06-2023"
"P&V","SPORTS DEVELOPMENT GRANTS & AG","THIRD PARTY PAYMENTS","CONTRIBUTIONS/GRANTS MADE","5140","P119065-SERVICE-New age games Sept - Dec 2022",25/9/2022 00:00:00,"267275",711.75,"GR0097","GREENWICH LEISURE LTD",29/8/2022 00:00:00,25/9/2022 00:00:00,"P06-2023"
"P&V","SPORTS DEVELOPMENT GRANTS & AG","THIRD PARTY PAYMENTS","ICE TRANSITION FUND (GRANTS)","5144","005 ICE TRANSITION FUND",21/9/2022 00:00:00,"266960",1101.3,"LE0464","LEE VALLEY LIONS ADULTS CLUB",29/8/2022 00:00:00,25/9/2022 00:00:00,"P06-2023"
"P&V","SPORTS DEVELOPMENT GRANTS & AG","THIRD PARTY PAYMENTS","ICE TRANSITION FUND (GRANTS)","5144","004 ICE TRANSITION FUND",21/9/2022 00:00:00,"266961",327.6,"LE0284","LEE VALLEY LIONS JUNIORS CLUB",29/8/2022 00:00:00,25/9/2022 00:00:00,"P06-2023"
"R&B","BALANCE SHEET (AUTHORITY)","CREDITORS","EMPLOYEES INCOME TAX","6701","PAYE",12/9/2022 00:00:00,"266761",52214.03,"HM0368","HMRC",29/8/2022 00:00:00,25/9/2022 00:00:00,"P06-2023"
"R&B","BALANCE SHEET (AUTHORITY)","CREDITORS","EMPLOYEES NATIONAL INSURANCE","6702","PAYE",12/9/2022 00:00:00,"266761",28291.14,"HM0368","HMRC",29/8/2022 00:00:00,25/9/2022 00:00:00,"P06-2023"
"R&B","BALANCE SHEET (AUTHORITY)","CREDITORS","EMPLOYERS NATIONAL INSURANCE","6704","PAYE",12/9/2022 00:00:00,"266761",43407.77,"HM0368","HMRC",29/8/2022 00:00:00,25/9/2022 00:00:00,"P06-2023"
"R&B","BALANCE SHEET (AUTHORITY)","CREDITORS","EMPLOYEES PENSION LGPS","6706","EMPLOYEE CONTRIBUTIONS",12/9/2022 00:00:00,"266762",25149.64,"LO0334","LONDON PENSION FUND OPERATIONAL ACCOUNT",29/8/2022 00:00:00,25/9/2022 00:00:00,"P06-2023"
"R&B","BALANCE SHEET (AUTHORITY)","CREDITORS","EMPLOYEES PENSION LGPS","6706","AVC CONTRIBUTIONS",12/9/2022 00:00:00,"266763",125,"LO0455","LOCAL GOVERNMENT AVC DEPARTMENT",29/8/2022 00:00:00,25/9/2022 00:00:00,"P06-2023"
"R&B","BALANCE SHEET (AUTHORITY)","CREDITORS","EMPLOYERS PENSION LGPS","6707","EMPLOYER CONTRIBUTIONS",12/9/2022 00:00:00,"266762",53713.69,"LO0334","LONDON PENSION FUND OPERATIONAL ACCOUNT",29/8/2022 00:00:00,25/9/2022 00:00:00,"P06-2023"
"R&B","BALANCE SHEET (AUTHORITY)","CREDITORS","EMPLOYEES STUDENT LOANS","6709","PAYE",12/9/2022 00:00:00,"266761",1007,"HM0368","HMRC",29/8/2022 00:00:00,25/9/2022 00:00:00,"P06-2023"
"R&B","BALANCE SHEET (AUTHORITY)","CREDITORS","EMPLOYEES AEO/DEO","6710","ATTACHMENT OF EARNINGS",12/9/2022 00:00:00,"266759",91.46,"DE0309","DEPARTMENT FOR WORK & PENSIONS",29/8/2022 00:00:00,25/9/2022 00:00:00,"P06-2023"
"R&B","BALANCE SHEET (AUTHORITY)","CREDITORS","EMPLOYEES AEO/DEO","6710","ATTACHMENT OF EARNINGS",12/9/2022 00:00:00,"266760",40.06,"HM0458","HMCTS-HERTFORDSHIRE MAGISTRATES COURT",29/8/2022 00:00:00,25/9/2022 00:00:00,"P06-2023"
"R&B","BALANCE SHEET (AUTHORITY)","CREDITORS","EMPLOYEES UNION SUBSCRIPTIONS","6711","MEMBERSHIP FEES",12/9/2022 00:00:00,"266764",57,"UN0002","UNISON Greater London Region",29/8/2022 00:00:00,25/9/2022 00:00:00,"P06-2023"
"R&B","BALANCE SHEET (AUTHORITY)","CREDITORS","CONSTRUCTION INDUSTRY SCHEME","6721","R G JOYCE",31/8/2022 00:00:00,"266594",-60,"JO0019","R G JOYCE",29/8/2022 00:00:00,25/9/2022 00:00:00,"P06-2023"
"R&B","BALANCE SHEET (AUTHORITY)","CREDITORS","CONSTRUCTION INDUSTRY SCHEME","6721","R G JOYCE",7/9/2022 00:00:00,"266824",-180,"JO0019","R G JOYCE",29/8/2022 00:00:00,25/9/2022 00:00:00,"P06-2023"
"R&B","BALANCE SHEET (AUTHORITY)","CREDITORS","CONSTRUCTION INDUSTRY SCHEME","6721","KENDALL & SONS LIMITED",7/9/2022 00:00:00,"266827",-243,"KE0023","KENDALL & SONS LIMITED",29/8/2022 00:00:00,25/9/2022 00:00:00,"P06-2023"
"R&B","BALANCE SHEET (AUTHORITY)","CREDITORS","CONSTRUCTION INDUSTRY SCHEME","6721","JOYCE",13/9/2022 00:00:00,"266929",260,"IN0016","INLAND REVENUE ONLY 948/L1005",29/8/2022 00:00:00,25/9/2022 00:00:00,"P06-2023"
"R&B","BALANCE SHEET (AUTHORITY)","CREDITORS","CONSTRUCTION INDUSTRY SCHEME","6721","CASPER",13/9/2022 00:00:00,"266929",840,"IN0016","INLAND REVENUE ONLY 948/L1005",29/8/2022 00:00:00,25/9/2022 00:00:00,"P06-2023"
"R&B","BALANCE SHEET (AUTHORITY)","CREDITORS","CONSTRUCTION INDUSTRY SCHEME","6721","R G JOYCE",14/9/2022 00:00:00,"267012",-30,"JO0019","R G JOYCE",29/8/2022 00:00:00,25/9/2022 00:00:00,"P06-2023"
"R&B","BALANCE SHEET (AUTHORITY)","CREDITORS","CONSTRUCTION INDUSTRY SCHEME","6721","KENDALL & SONS LIMITED",14/9/2022 00:00:00,"267015",-30,"KE0023","KENDALL & SONS LIMITED",29/8/2022 00:00:00,25/9/2022 00:00:00,"P06-2023"
"R&B","BALANCE SHEET (AUTHORITY)","CREDITORS","CONSTRUCTION INDUSTRY SCHEME","6721","R G JOYCE",21/9/2022 00:00:00,"267201",-326,"JO0019","R G JOYCE",29/8/2022 00:00:00,25/9/2022 00:00:00,"P06-2023"
"R&B","BALANCE SHEET (AUTHORITY)","CREDITORS","CONSTRUCTION INDUSTRY SCHEME","6721","CAPSER",21/9/2022 00:00:00,"267216",-272,"MO0041","CAPSER",29/8/2022 00:00:00,25/9/2022 00:00:00,"P06-2023"
"R&B","REVENUE SUSPENSE (AUTHORITY)","GENERAL SUSPENSE","GENERAL SUSPENSE","6890","DAISY COMMUNICATIONS LTD",20/9/2022 00:00:00,"266885",2267.06,"ID0002","DAISY COMMUNICATIONS LTD",29/8/2022 00:00:00,25/9/2022 00:00:00,"P06-2023"
"P&V","CAR PARK INCOME","INCOME","CAR PARKING INCOME","9730","P119249-SERVICE-P&D Recharge OM&M - Aug 2022",12/9/2022 00:00:00,"266642",31.74,"PA0372","PARKINGEYE LIMITED",29/8/2022 00:00:00,25/9/2022 00:00:00,"P06-2023"
"P&V","CAR PARK INCOME","INCOME","CAR PARKING INCOME","9730","P119249-SERVICE-P&D Recharge WAG - Aug 2022",12/9/2022 00:00:00,"266642",36.06,"PA0372","PARKINGEYE LIMITED",29/8/2022 00:00:00,25/9/2022 00:00:00,"P06-2023"
"P&V","CAR PARK INCOME","INCOME","CAR PARKING INCOME","9730","P119249-SERVICE-P&D Recharge CA110660 - Aug 2022",12/9/2022 00:00:00,"266642",15.48,"PA0372","PARKINGEYE LIMITED",29/8/2022 00:00:00,25/9/2022 00:00:00,"P06-2023"
"P&V","CAR PARK INCOME","INCOME","CAR PARKING INCOME","9730","P119249-SERVICE-P&D Recharge CMM - Aug 2022",12/9/2022 00:00:00,"266642",10.5,"PA0372","PARKINGEYE LIMITED",29/8/2022 00:00:00,25/9/2022 00:00:00,"P06-2023"
"P&V","CAR PARK INCOME","INCOME","CAR PARKING INCOME","9730","P119249-SERVICE-P&D Recharge FG - Aug 2022",12/9/2022 00:00:00,"266642",32.1,"PA0372","PARKINGEYE LIMITED",29/8/2022 00:00:00,25/9/2022 00:00:00,"P06-2023"
"P&V","CAR PARK INCOME","INCOME","CAR PARKING INCOME","9730","P119249-SERVICE-P&D Recharge GPP - Aug 2022",12/9/2022 00:00:00,"266642",39,"PA0372","PARKINGEYE LIMITED",29/8/2022 00:00:00,25/9/2022 00:00:00,"P06-2023"
"P&V","CAR PARK INCOME","INCOME","CAR PARKING INCOME","9730","P119249-SERVICE-P&D Recharge Pindar - Aug 2022",12/9/2022 00:00:00,"266642",46.08,"PA0372","PARKINGEYE LIMITED",29/8/2022 00:00:00,25/9/2022 00:00:00,"P06-2023"
"P&V","CAR PARK INCOME","INCOME","CAR PARKING INCOME","9730","P119249-SERVICE-Paid Parking Tickets used CMM - Aug 2022",12/9/2022 00:00:00,"266645",1.05,"PA0372","PARKINGEYE LIMITED",29/8/2022 00:00:00,25/9/2022 00:00:00,"P06-2023"
"P&V","CAR PARK INCOME","INCOME","CAR PARKING INCOME","9730","P119249-SERVICE-Paid Parking Tickets used WAG - Aug 2022",12/9/2022 00:00:00,"266645",3.62,"PA0372","PARKINGEYE LIMITED",29/8/2022 00:00:00,25/9/2022 00:00:00,"P06-2023"
"P&V","CAR PARK INCOME","INCOME","CAR PARKING INCOME","9730","P119249-SERVICE-Paid Parking Tickets used GPP - Aug 2022",12/9/2022 00:00:00,"266645",3.91,"PA0372","PARKINGEYE LIMITED",29/8/2022 00:00:00,25/9/2022 00:00:00,"P06-2023"
"P&V","CAR PARK INCOME","INCOME","CAR PARKING INCOME","9730","P119249-SERVICE-Paid Parking Tickets used FG - Aug 2022",12/9/2022 00:00:00,"266645",3.22,"PA0372","PARKINGEYE LIMITED",29/8/2022 00:00:00,25/9/2022 00:00:00,"P06-2023"
"P&V","CAR PARK INCOME","INCOME","CAR PARKING INCOME","9730","PARKINGEYE LIMITED",6/9/2022 00:00:00,"266646",-33.68,"PA0372","PARKINGEYE LIMITED",29/8/2022 00:00:00,25/9/2022 00:00:00,"P06-2023"
"P&V","CAR PARK INCOME","INCOME","CAR PARKING INCOME","9730","PARKINGEYE LIMITED",6/9/2022 00:00:00,"266647",-64,"PA0372","PARKINGEYE LIMITED",29/8/2022 00:00:00,25/9/2022 00:00:00,"P06-2023"
"P&V","CAR PARK INCOME","INCOME","CAR PARKING INCOME","9730","PARKINGEYE LIMITED",6/9/2022 00:00:00,"266648",-138.35,"PA0372","PARKINGEYE LIMITED",29/8/2022 00:00:00,25/9/2022 00:00:00,"P06-2023"
"P&V","CAR PARK INCOME","INCOME","CAR PARKING INCOME","9730","PARKINGEYE LIMITED",6/9/2022 00:00:00,"266649",-83.5,"PA0372","PARKINGEYE LIMITED",29/8/2022 00:00:00,25/9/2022 00:00:00,"P06-2023"
"P&V","CAR PARK INCOME","INCOME","CAR PARKING INCOME","9730","PARKINGEYE LIMITED",6/9/2022 00:00:00,"266650",-109.53,"PA0372","PARKINGEYE LIMITED",29/8/2022 00:00:00,25/9/2022 00:00:00,"P06-2023"
"P&V","CAR PARK INCOME","INCOME","CAR PARKING INCOME","9730","PARKINGEYE LIMITED",6/9/2022 00:00:00,"266651",-53.35,"PA0372","PARKINGEYE LIMITED",29/8/2022 00:00:00,25/9/2022 00:00:00,"P06-2023"
"P&V","CAR PARK INCOME","INCOME","CAR PARKING INCOME","9730","PARKINGEYE LIMITED",6/9/2022 00:00:00,"266652",-90.5,"PA0372","PARKINGEYE LIMITED",29/8/2022 00:00:00,25/9/2022 00:00:00,"P06-2023"
"P&V","CAR PARK INCOME","INCOME","CAR PARKING INCOME","9730","PARKINGEYE LIMITED",7/9/2022 00:00:00,"266744",-6427.45,"PA0372","PARKINGEYE LIMITED",29/8/2022 00:00:00,25/9/2022 00:00:00,"P06-2023"
"P&V","CAR PARK INCOME","INCOME","CAR PARKING INCOME","9730","PARKINGEYE LIMITED",7/9/2022 00:00:00,"266744",427.24,"PA0372","PARKINGEYE LIMITED",29/8/2022 00:00:00,25/9/2022 00:00:00,"P06-2023"
"P&V","CAR PARK INCOME","INCOME","CAR PARKING INCOME","9730","PARKINGEYE LIMITED",12/9/2022 00:00:00,"266780",0,"PA0372","PARKINGEYE LIMITED",29/8/2022 00:00:00,25/9/2022 00:00:00,"P06-2023"
"P&V","CAR PARK INCOME","INCOME","CAR PARKING INCOME","9730","PARKINGEYE LIMITED",12/9/2022 00:00:00,"266781",0,"PA0372","PARKINGEYE LIMITED",29/8/2022 00:00:00,25/9/2022 00:00:00,"P06-2023"
"P&V","CAR PARK INCOME","INCOME","CAR PARKING INCOME","9730","PARKINGEYE LIMITED",12/9/2022 00:00:00,"266782",0,"PA0372","PARKINGEYE LIMITED",29/8/2022 00:00:00,25/9/2022 00:00:00,"P06-2023"
"P&V","CAR PARK INCOME","INCOME","CAR PARKING INCOME","9730","PARKINGEYE LIMITED",12/9/2022 00:00:00,"266783",0,"PA0372","PARKINGEYE LIMITED",29/8/2022 00:00:00,25/9/2022 00:00:00,"P06-2023"
"P&V","CAR PARK INCOME","INCOME","CAR PARKING INCOME","9730","PARKINGEYE LIMITED",12/9/2022 00:00:00,"266784",0,"PA0372","PARKINGEYE LIMITED",29/8/2022 00:00:00,25/9/2022 00:00:00,"P06-2023"
"P&V","CAR PARK INCOME","INCOME","CAR PARKING INCOME","9730","PARKINGEYE LIMITED",12/9/2022 00:00:00,"266785",0,"PA0372","PARKINGEYE LIMITED",29/8/2022 00:00:00,25/9/2022 00:00:00,"P06-2023"
"P&V","CAR PARK INCOME","INCOME","CAR PARKING INCOME","9730","PARKINGEYE LIMITED",12/9/2022 00:00:00,"266786",0,"PA0372","PARKINGEYE LIMITED",29/8/2022 00:00:00,25/9/2022 00:00:00,"P06-2023"
"P&V","CAR PARK INCOME","INCOME","CAR PARKING INCOME","9730","PARKINGEYE LIMITED",20/9/2022 00:00:00,"267098",-119.08,"PA0372","PARKINGEYE LIMITED",29/8/2022 00:00:00,25/9/2022 00:00:00,"P06-2023"
,"LEE VALLEY CARAVAN PARK","INCOME","TRADING AC - EXTERNAL SALES","9875","P119367-SERVICE-2 pallets of wood",25/9/2022 00:00:00,"267163",468,"LO0473","LOGS DIRECT LTD",29/8/2022 00:00:00,25/9/2022 00:00:00,"P06-2023"
"CEO","LEGAL SERVICES","INCOME","OTHER INCOME","9950","CLYDE & CO (BLM)",6/9/2022 00:00:00,"266511",0,"BL0633","CLYDE & CO (BLM)",29/8/2022 00:00:00,25/9/2022 00:00:00,"P06-2023"
"P&V","EVENTS MANAGEMENT (PR)","INCOME","OTHER INCOME","9950","P119352-SERVICE-Aerate the 3 most compacted areas of the Show",25/9/2022 00:00:00,"267253",5200,"TE0261","TERRAIN AERATION SERVICES LIMITED",29/8/2022 00:00:00,25/9/2022 00:00:00,"P06-2023"
